Workbook

Sheet GUIA PARA PREENCHIMENTO
A1: GUIA PARA PREENCHIMENTO
A3: 1 - Preencher apenas as guias azuis:
A5: 2 - Recomendamos preencher somente as células com fundo azul claro. As demais possuem fórmulas e sugerimos não alterá-las.

Sheet MODELO PROPOSTA
B2: MODELO DA PROPOSTA COMPLETA
B4: .
B5: I – FORMALIZAÇÃO
B7: PREGÃO ELETRÔNICO N. 66/22
B8: OBJETO: Prestação de serviços continuados, por empresa especializada, referentes a apoio a Processos, Tratamento de Dados e Inovação em Tecnologia da Informação, com dedicação exclusiva de profissionais, pelo período de 12 (doze) meses
B9: LICITANTE: _____________________________________________________
B10: CNPJ: ________________________________________________________
B11: ENDEREÇO COMPLETO: _________________________________________
B12: TELEFONE:_____________________________________________________
B13: E-MAIL: ________________________________________________________
B15: Apresentamos nossa proposta para o item único da presente licitação, de acordo com as disposições do Edital.
B16: Decorre do conteúdo da presente proposta a explicitação do seguinte PREÇO DE JULGAMENTO (GLOBAL) PARA O ITEM:
B17: =Resumo!H72 -> 9709442.502
B18: =Extenso_Valor(B17) -> nove milhões, setecentos e nove mil, quatrocentos e quarenta e dois reais e cinquenta centavos
B20: (por extenso)
B22: No valor proposto estão incluídos todos os custos e todas as despesas, diretas e indiretas, para a execução dos serviços objeto da licitação, em conformidade com as especificações e demais condições e exigências constantes do Edital.
B23: Informamos que eventuais rubricas dispostas em Acordo ou Convenção Coletiva de Trabalho que não se relacionem ao custo direto da venda do serviço, tais como “Participação nos Resultados” e “Abono substitutivo de Participação nos Resultados”, serão consideradas nos custos indiretos da proposta.
B24: O prazo de validade da presente proposta é de ______ (por extenso) dias. (observado o disposto no Título 11 do Edital).
B26: Convenção coletiva de trabalho ou a norma coletiva a que estamos obrigados:
B27: Data-Base:
B28: Número do Registro SRT:
B29: Regime de tributação da empresa:
B30: Empresa é beneficiada pela desoneração da folha de pagamento instituída pela Lei n. 12.546, de 2001, alterada pela Lei n. 13.161, de 2015?
B31: Empresa adere ao PAT (Programa de Alimentação do Trabalhador)?
B32: (Se adere ao PAT): Os valores do auxílio-alimentação apresentados na presente proposta correspondem somente aos efetivamente pagos pela empresa aos empregados?
B34: DECLARAÇÕES
B36: A SEREM PRESTADAS SOMENTE NA HIPÓTESE DE LICITANTE MICROEMPRESA OU EMPRESA DE PEQUENO PORTE, EM CONFORMIDADE COM OS ARTIGOS 17, 18, 30 E 31 DA LEI COMPLEMENTAR N. 123, de 2006, E O ACÓRDÃO TCU 2798/2010-PLENÁRIO
B37: Declaramos que:
B38: a) em se tratando dos serviços vedados descritos no artigo 17 da Lei Complementar n. 123, de 2006, notadamente os descritos no inciso XII (cessão ou locação de mão de obra), ressalvados os serviços listados nos parágrafos 5o-B a 5o-E do artigo 18 da referida Lei, a proposta apresentada não contempla qualquer benefício tributário referente ao SIMPLES NACIONAL, conforme os subitens 5.7 e 5.8 do Edital;
B39: b) na hipótese de contratação desta Microempresa ou Empresa de Pequeno Porte inscrita no SIMPLES NACIONAL e executora de atividade vedada, ficamos sujeitos à exclusão obrigatória no SIMPLES NACIONAL a contar do mês seguinte ao da contratação, em consequência do que dispõem o artigo 17, inciso XII e o artigo 31, inciso II da Lei Complementar n, 123, de 2006, devendo entregar à Câmara dos Deputados, à título de comprovação, cópia de ofício – com comprovante de entrega e recebimento, que comunique a assinatura do contrato de prestação de serviços mediante cessão de mão de obra e encaminhado pela contratada à Receita Federal do Brasil até o último dia útil do mês subsequente ao da contratação, consoante artigo 30, § 1º, inciso II da Lei Complementar n. 123, de 2006.
B43: A SEREM PRESTADAS SOMENTE NA HIPÓTESE DE LICITANTE BENEFICIADA PELA DESONERAÇÃO DA FOLHA DE PAGAMENTO INSTITUÍDA PELA LEI N. 12.546, DE 2011, ALTERADA PELA LEI N. 13.161, DE 2015.
B45: Declaramos, sob as penas da Lei, que:
B46: a) recolhemos a contribuição previdenciária incidente sobre o valor da receita bruta, em substituição às contribuições previdenciárias incidentes sobre a folha de pagamento, previstas nos incisos I e III do caput do artigo 22 da Lei n. 8.212, de 24 de julho de 1991, na forma do caput do artigo 7º (ou 8º) da Lei n. 12.546, de 14 de dezembro de 2011, alterada pela Lei n. 13.161, de 31 de agosto de 2015;
B47: b) temos ciência que nossa manifestação, conforme alínea “a” anterior, será remetida à Receita Federal do Brasil e que, em caso de constatação de falsidade, estará sujeita às sanções administrativas cabíveis, sem prejuízo do encaminhamento dos documentos ao Ministério Público para apuração de eventual responsabilidade criminal desta declarante.
B50: É OBRIGATÓRIA A COMPROVAÇÃO A QUE SE REFERE A ALÍNEA “A” DO SUBITEM 5.9.5 DO TÍTULO 5 DO EDITAL.
B52: DADOS PARA ASSINATURA DO CONTRATO
B53: Nome do signatário
B54: Cargo
B55: Qualificação (Naturalidade e domicílio)
B56: OBS.: O signatário deve possuir poderes de administração estabelecidos em contrato social e/ou possuir procuração com poderes para assinar contratos em nome da empresa. A documentação comprobatória deverá ser encaminhada quando da assinatura do contrato.
B59: Brasília, de de 2022.
B61: Assinatura do representante legal da empresa
B64: Nome do representante legal da empresa

Sheet Remunerações
B1: QUADRO DE REMUNERAÇÕES
C3: ITEM | D3: POSTO DE TRABALHO | E3: QUANTIDADE | F3: SALÁRIO | G3: ADICIONAL DE PERICULOSIDADE | H3: ADICIONAL DE INSALUBRIDADE | I3: ADICIONAL NOTURNO | J3: OUTROS | K3: SALÁRIO COM ADICIONAIS
D4: POSTO DE TRABALHO - EQUIPE DE TRABALHO
C5: 1 | D5: =HLOOKUP($C5,'Dados Gerais'!$D$5:$I$68,6) -> Analista de TI - Agile Master - sênior | E5: =HLOOKUP($C5,'Dados Gerais'!$D$5:$I$68,10) -> 8 | F5: =HLOOKUP($C5,'Dados Gerais'!$D$5:$H$68,8) -> 11027 | G5: =HLOOKUP($C5,'Dados Gerais'!$D$5:$H$68,26) -> 0 | H5: =HLOOKUP($C5,'Dados Gerais'!$D$5:$H$68,32) -> 0 | I5: =HLOOKUP($C5,'Dados Gerais'!$D$5:$H$68,47) -> 0 | J5: =HLOOKUP($C5,'Dados Gerais'!$D$5:$H$68,34) -> 0 | K5: =SUM(F5:J5) -> 11027
C6: 2 | D6: =HLOOKUP($C6,'Dados Gerais'!$D$5:$I$68,6) -> Analista de TI - Engenheiro de Dados - sênior | E6: =HLOOKUP($C6,'Dados Gerais'!$D$5:$I$68,10) -> 5 | F6: =HLOOKUP($C6,'Dados Gerais'!$D$5:$H$68,8) -> 13998.55 | G6: =HLOOKUP($C6,'Dados Gerais'!$D$5:$H$68,26) -> 0 | H6: =HLOOKUP($C6,'Dados Gerais'!$D$5:$H$68,32) -> 0 | I6: =HLOOKUP($C6,'Dados Gerais'!$D$5:$H$68,47) -> 0 | J6: =HLOOKUP($C6,'Dados Gerais'!$D$5:$H$68,34) -> 0 | K6: =SUM(F6:J6) -> 13998.55
C7: 3 | D7: =HLOOKUP($C7,'Dados Gerais'!$D$5:$I$68,6) -> Analista de TI - Analista de Dados - sênior | E7: =HLOOKUP($C7,'Dados Gerais'!$D$5:$I$68,10) -> 9 | F7: =HLOOKUP($C7,'Dados Gerais'!$D$5:$H$68,8) -> 9747.54 | G7: =HLOOKUP($C7,'Dados Gerais'!$D$5:$H$68,26) -> 0 | H7: =HLOOKUP($C7,'Dados Gerais'!$D$5:$H$68,32) -> 0 | I7: =HLOOKUP($C7,'Dados Gerais'!$D$5:$H$68,47) -> 0 | J7: =HLOOKUP($C7,'Dados Gerais'!$D$5:$H$68,34) -> 0 | K7: 9747.54
C8: 4 | D8: =HLOOKUP($C8,'Dados Gerais'!$D$5:$I$68,6) -> Analista de TI - Arquiteto de Dados - sênior | E8: =HLOOKUP($C8,'Dados Gerais'!$D$5:$I$68,10) -> 6 | F8: =HLOOKUP($C8,'Dados Gerais'!$D$5:$H$68,8) -> 11079.73 | G8: =HLOOKUP($C8,'Dados Gerais'!$D$5:$H$68,26) -> 0 | H8: =HLOOKUP($C8,'Dados Gerais'!$D$5:$H$68,32) -> 0 | I8: =HLOOKUP($C8,'Dados Gerais'!$D$5:$H$68,47) -> 0 | J8: =HLOOKUP($C8,'Dados Gerais'!$D$5:$H$68,34) -> 0 | K8: 11079.73
C9: 5 | D9: =HLOOKUP($C9,'Dados Gerais'!$D$5:$I$68,6) -> Analista de TI - Planejamento e Processos Digitais - sênior | E9: =HLOOKUP($C9,'Dados Gerais'!$D$5:$I$68,10) -> 4 | F9: =HLOOKUP($C9,'Dados Gerais'!$D$5:$H$68,8) -> 8369.94 | G9: =HLOOKUP($C9,'Dados Gerais'!$D$5:$H$68,26) -> 0 | H9: =HLOOKUP($C9,'Dados Gerais'!$D$5:$H$68,32) -> 0 | I9: =HLOOKUP($C9,'Dados Gerais'!$D$5:$H$68,47) -> 0 | J9: =HLOOKUP($C9,'Dados Gerais'!$D$5:$H$68,34) -> 0 | K9: =SUM(F9:J9) -> 8369.94
C10: 6 | D10: =HLOOKUP($C10,'Dados Gerais'!$D$5:$I$68,6) -> Analista de Design e Cultura Digital - sênior | E10: =HLOOKUP($C10,'Dados Gerais'!$D$5:$I$68,10) -> 2 | F10: =HLOOKUP($C10,'Dados Gerais'!$D$5:$I$68,8) -> 7036.27 | G10: =HLOOKUP($C10,'Dados Gerais'!$D$5:$H$68,26) -> 0 | H10: =HLOOKUP($C10,'Dados Gerais'!$D$5:$H$68,32) -> 0 | I10: =HLOOKUP($C10,'Dados Gerais'!$D$5:$H$68,47) -> 0 | J10: =HLOOKUP($C10,'Dados Gerais'!$D$5:$H$68,34) -> 0 | K10: 7036.27
D12: TOTAL DE POSTOS | E12: =SUM(E5:E11) -> 34

Sheet Resumo
B3: RESUMO - TOTAIS MENSAIS - FATURA ORDINÁRIA (SEM O 13º E SEM OS ITENS SOB DEMANDA)
C6: ITEM | D6: POSTO DE TRABALHO | E6: QUANTIDADE | F6: PREÇO UNIT (SEM O 13º) | G6: DESTAQUE DO 13º | H6: PREÇO POR EMPREGADO | I6: PREÇO TOTAL (MENSAL)
C7: POSTO DE TRABALHO - EQUIPE DE TRABALHO
C8: 1 | D8: =HLOOKUP(C8,'Dados Gerais'!$D$5:$BH$10,6) -> Analista de TI - Agile Master - sênior | E8: =HLOOKUP(C8,'Dados Gerais'!$D$5:$BH$14,10) -> 8 | F8: ='1'!E105 -> 23065.48988 | G8: 0 | H8: =G8+F8 -> 23065.48988 | I8: =H8*E8 -> 184523.919
C9: 2 | D9: =HLOOKUP(C9,'Dados Gerais'!$D$5:$BH$10,6) -> Analista de TI - Engenheiro de Dados - sênior | E9: =HLOOKUP(C9,'Dados Gerais'!$D$5:$BH$14,10) -> 5 | F9: ='2'!E105 -> 28981.28892 | G9: 0 | H9: 28981.28892 | I9: 144906.4446
C10: 3 | D10: =HLOOKUP(C10,'Dados Gerais'!$D$5:$BH$10,6) -> Analista de TI - Analista de Dados - sênior | E10: =HLOOKUP(C10,'Dados Gerais'!$D$5:$BH$14,10) -> 9 | F10: ='3'!E105 -> 20518.32743 | G10: 0 | H10: 20518.32743 | I10: 184664.9469
C11: 4 | D11: =HLOOKUP(C11,'Dados Gerais'!$D$5:$BH$10,6) -> Analista de TI - Arquiteto de Dados - sênior | E11: =HLOOKUP(C11,'Dados Gerais'!$D$5:$BH$14,10) -> 6 | F11: ='4'!E105 -> 23170.46615 | G11: 0 | H11: 23170.46615 | I11: 139022.7969
C12: 5 | D12: =HLOOKUP(C12,'Dados Gerais'!$D$5:$BH$10,6) -> Analista de TI - Planejamento e Processos Digitais - sênior | E12: =HLOOKUP(C12,'Dados Gerais'!$D$5:$BH$14,10) -> 4 | F12: ='5'!E105 -> 17775.69891 | G12: 0 | H12: 17775.69891 | I12: 71102.79565
C13: 6 | D13: =HLOOKUP(C13,'Dados Gerais'!$D$5:$BH$10,6) -> Analista de Design e Cultura Digital - sênior | E13: =HLOOKUP(C13,'Dados Gerais'!$D$5:$BH$14,10) -> 2 | F13: ='6'!E105 -> 15120.6477 | G13: 0 | H13: 15120.6477 | I13: 30241.29541
D15: TOTAL MENSAL - SALÁRIOS | I15: =SUM(I8:I14) -> 754462.1985
B18: RESUMO - TOTAIS MENSAIS - DESTAQUE DO 13º SALÁRIO
C21: ITEM | D21: POSTO DE TRABALHO | E21: QUANTIDADE | F21: PREÇO UNIT (SEM O 13º) | G21: DESTAQUE DO 13º | H21: PREÇO POR EMPREGADO | I21: PREÇO TOTAL (MENSAL)
C22: POSTO DE TRABALHO - EQUIPE DE TRABALHO
C23: 1 | D23: =D8 -> Analista de TI - Agile Master - sênior | E23: 8 | F23: 0 | G23: ='1'!F113 -> 1674.35 | H23: =G23+F23 -> 1674.35 | I23: =H23*E23 -> 13394.8
C24: 2 | D24: Analista de TI - Engenheiro de Dados - sênior | E24: 5 | F24: 0 | G24: ='2'!F113 -> 2125.56 | H24: 2125.56 | I24: 10627.8
C25: 3 | D25: Analista de TI - Analista de Dados - sênior | E25: 9 | F25: 0 | G25: ='3'!F113 -> 1480.09 | H25: 1480.09 | I25: 13320.81
C26: 4 | D26: Analista de TI - Arquiteto de Dados - sênior | E26: 6 | F26: 0 | G26: ='4'!F113 -> 1682.36 | H26: 1682.36 | I26: 10094.16
C27: 5 | D27: Analista de TI - Planejamento e Processos Digitais - sênior | E27: 4 | F27: 0 | G27: ='5'!F113 -> 1270.91 | H27: 1270.91 | I27: 5083.64
C28: 6 | D28: Analista de Design e Cultura Digital - sênior | E28: 2 | F28: 0 | G28: ='6'!F113 -> 1068.4 | H28: 1068.4 | I28: 2136.8
D30: TOTAL MENSAL - DESTAQUE DO 13º | I30: =SUM(I23:I29) -> 54658.01
B33: RESUMO - TOTAIS MENSAIS - FATURA ORDINÁRIA TOTAL
C36: ITEM | D36: POSTO DE TRABALHO | E36: QUANTIDADE | F36: PREÇO UNIT (SEM O 13º) | G36: DESTAQUE DO 13º | H36: PREÇO POR EMPREGADO | I36: PREÇO TOTAL (MENSAL)
C37: POSTO DE TRABALHO - EQUIPE DE TRABALHO
C38: 1 | D38: =D23 -> Analista de TI - Agile Master - sênior | E38: 8 | F38: =F8 -> 23065.48988 | G38: =G23 -> 1674.35 | H38: =G38+F38 -> 24739.83988 | I38: =H38*E38 -> 197918.719
C39: 2 | D39: Analista de TI - Engenheiro de Dados - sênior | E39: 5 | F39: 28981.28892 | G39: 2125.56 | H39: 31106.84892 | I39: 155534.2446
C40: 3 | D40: Analista de TI - Analista de Dados - sênior | E40: 9 | F40: 20518.32743 | G40: 1480.09 | H40: 21998.41743 | I40: 197985.7569
C41: 4 | D41: Analista de TI - Arquiteto de Dados - sênior | E41: 6 | F41: 23170.46615 | G41: 1682.36 | H41: 24852.82615 | I41: 149116.9569
C42: 5 | D42: Analista de TI - Planejamento e Processos Digitais - sênior | E42: 4 | F42: 17775.69891 | G42: 1270.91 | H42: 19046.60891 | I42: 76186.43565
C43: 6 | D43: Analista de Design e Cultura Digital - sênior | E43: 2 | F43: 15120.6477 | G43: 1068.4 | H43: 16189.0477 | I43: 32378.09541
D45: TOTAL MENSAL - SALÁRIOS | I45: =SUM(I38:I44) -> 809120.2085
C47: ITEM | D47: DESCRIÇÃO | I47: PREÇO TOTAL (MENSAL)
C48: EQUIP | D48: EQUIPAMENTOS NÃO RELACIONADOS DIRETAMENTE A UM POSTO DE TRABALHO | I48: ='[1]Não Rel - Depr'!M150 -> 0
C49: HEXTRA | D49: HORAS EXTRAS | I49: ='[1]Não Rel - Depr'!M150 -> 0
C50: HNOT | D50: ADICIONAL DE HORAS NOTURNAS (SOB DEMANDA) | I50: ='[1]Not. Demanda'!G142 -> 0
C51: SREP | D51: SISTEMA DE REGISTRO ELETRÔNICO DE PRESENÇA - SREP | I51: 0
C52: EPI - N.REL | D52: EQUIPAMENTOS DE PROTEÇÃO INDIVIDUAL NÃO RELACIONADOS DIRETAMENTE A UM POSTO DE TRABALHO | I52: ='[1]Não Rel - EPI'!K97 -> 0
C53: FERR - N.REL | D53: FERRAMENTAS NÃO RELACIONADAS DIRETAMENTE A UM POSTO DE TRABALHO | I53: ='[1]Não Rel - Depr'!M151 -> 0
C54: MAT SOB DEMANDA | D54: MATERIAIS NÃO RELACIONADOS DIRETAMENTE A UM POSTO DE TRABALHO - AQUISIÇÃO SOB DEMANDA | I54: ='[1]Não Rel - Mat Consumo'!L134 -> 0
C55: MAT CONS DURAVEL SOB DEMANDA | D55: MATERIAIS DE CONSUMO DURÁVEL NÃO RELACIONADOS DIRETAMENTE A UM POSTO DE TRABALHO - AQUISIÇÃO SOB DEMANDA | I55: ='[1]Não Rel - Mat Cons Durável'!L120 -> 0
C56: EQ SOB DEMANDA | D56: SERVIÇOS NÃO RELACIONADOS DIRETAMENTE A UM POSTO DE TRABALHO - AQUISIÇÃO SOB DEMANDA | I56: ='[1]Não Rel - Serviços'!K96 -> 0
D58: TOTAL MENSAL - ITENS SOB DEMANDA | I58: =SUM(I48:I57) -> 0 | K58: =(I58+I45)*12 -> 9709442.502
D60: TOTAL MENSAL - ITENS ORDINÁRIOS
D61: DESCRIÇÃO | H61: VALOR
D62: Postos de Trabalho - Inclusive 13º Salário | H62: =I45 -> 809120.2085
D63: Adicional de Horas Noturnas | H63: =I50 -> 0
D64: Sistema de Registro Eletrônico de Presença - SREP | H64: =I51 -> 0
D65: Equipamentos de Proteção Individual não relacionados diretamente a um posto de trabalho | H65: =I52 -> 0
D66: Ferramentas não relacionadas diretamente a um posto de trabalho | H66: =I53 -> 0
G68: TOTAL MENSAL - ITENS ORDINÁRIOS | H68: =SUM(H62:H67) -> 809120.2085
D70: TOTAL ANUAL - ITENS ORDINÁRIOS
G72: 12 x TOTAL MENSAL - ITENS ORDINÁRIOS | H72: =H68*12 -> 9709442.502

Sheet 1
B2: PLANILHA DE ESTIMATIVA DE CUSTOS
B3: Padrão IN 05/2017 e IN 07/2018 - MPDG
B5: 1 | D5: =HLOOKUP($B$5,'Dados Gerais'!$D$5:$BH$21,6) -> Analista de TI - Agile Master - sênior | E5: QUANTIDADE | F5: =HLOOKUP($B$5,'Dados Gerais'!$D$5:$BH$21,10) -> 8
B6: CCT | D6: =HLOOKUP($B$5,'Dados Gerais'!$D$5:$BH$21,16) -> SINDPD/DF X SINDESEI/DF 2021/2022 Nº DF000608/2021 | E6: DATA-BASE | F6: =HLOOKUP($B$5,'Dados Gerais'!$D$5:$BH$21,17) -> 2021-05-01
B8: MÓDULO 1 - COMPOSIÇÃO DA REMUNERAÇÃO | F8: Valor
C9: A | D9: Salário-Base | F9: =HLOOKUP($B$5,'Dados Gerais'!$D$5:$BH$21,8) -> 11027
C10: B | D10: Adicional de Periculosidade | F10: =HLOOKUP($B$5,'Dados Gerais'!$D$5:$BH$38,25) -> 0
C11: C | D11: Adicional de Insalubridade | F11: =HLOOKUP($B$5,'Dados Gerais'!$D$5:$BH$38,27) -> 0
C12: D | D12: Adicional Noturno | F12: =HLOOKUP($B$5,'Dados Gerais'!$D$5:$BH$51,46) -> 0 | H12: * Nota 1 - O Módulo 1 refere-se ao valor mensal devido ao empregado pela prestação do serviço no período de 12 meses.
C13: E | D13: Adicional de Hora Extra | F13: =HLOOKUP($B$5,'Dados Gerais'!$D$5:$BH$68,63) -> 0 | H13: * Nota 2 - O adicional de hora extra no feriado trabalhado foi suprimido pela Lei 13.467/17
C14: F | D14: Outros (especificar) | F14: =HLOOKUP($B$5,'Dados Gerais'!$D$5:$BH$60,33) -> 0 | H14: * Nota 3 - ART. 7º, § 2º, DA LEI Nº 605/49.Sendo mensalista o obreiro, o adicional noturno pago de forma fixa já é considerado integrado para os efeitos do pagamento do repouso semanal remunerado, nos termos do art. 7º, § 2º, da Lei nº 605/49.
D16: TOTAL DA REMUNERAÇÃO | F16: =SUM(F9:F14) -> 11027
B18: MÓDULO 2 - ENCARGOS E BENEFÍCIOS ANUAIS, MENSAIS E DIÁRIOS | E18: Percentuais | F18: Valor
B19: Submódulo 2.1 - 13º Salário, Férias e Adicional de Férias
C20: A | D20: 13º Salário - Calculado no Módulo 7 - Destacado | E20: 0 | F20: =ROUND(E20*F$16,2) -> 0 | H20: * Nota 1 - Provisiona-se, mensalmente, o proporcional a 1/12 dos valores referentes a gratificação natalina
C21: B | D21: Adicional de Férias | E21: ='[2]Encargos Sociais'!E30 -> 0.0303030303 | F21: =ROUND(E21*F$16,2) -> 334.15 | H21: * Nota 2 - O adicional de férias contido no Submódulo 2.1 corresponde a 1/3 da remuneração que, por sua vez, é dividida por 12 contome Nota 1.
B23: Submódulo 2.2 - Encargos Previdenciários (GPS), Fundo de Garantia por Tempo de Serviço (FGTS) e Outras Contribuições
C24: A | D24: INSS (art. 22, inciso I, Lei nº 8.212/91) | E24: ='Encargos Sociais'!E13 -> 0.2 | F24: =ROUND(E24*($F$16+$F$41+$F$73),2) -> 2516.9
C25: B | D25: Salário Educação (art. 3º, inciso I, Decreto nº 87.043/82) | E25: ='Encargos Sociais'!E14 -> 0.025 | F25: =ROUND(E25*($F$16+$F$41+$F$73),2) -> 314.61
C26: C | D26: SAT/RAT (art. 22, II, Lei 8.212/91 e Anexo V, Decreto 6.042/07) - Enquadramento 8211-3/00 | E26: ='Encargos Sociais'!E15 -> 0.01 | F26: 125.85
C27: D | D27: SESC ou SESI (art. 30, Lei nº 8.036/90 e art. 1º, Lei 8.154/90) | E27: ='Encargos Sociais'!E16 -> 0.015 | F27: 188.77
C28: E | D28: SENAI ou SENAC (Decreto nº 2.318/86) | E28: ='Encargos Sociais'!E17 -> 0.01 | F28: 125.85
C29: F | D29: SEBRAE (§ 3º, art. 8º, Lei 8.029/90, alterada pela Lei nº 8.154/90) | E29: ='Encargos Sociais'!E18 -> 0.006 | F29: 75.51
C30: G | D30: INCRA (art. 1º, I, Decreto Lei 1.146/70 e Lei 7.787, de 30/06/89) | E30: ='Encargos Sociais'!E19 -> 0.002 | F30: 25.17 | H30: * Nota 1 - Os percentuais dos encargos previdenciários, do FGTS e demais contribuições são estabelecidos por legislação vigente.
C31: H | D31: FGTS (Lei Complementar nº 110/01 e art. 30, Lei nº 8.036/90) | E31: ='Encargos Sociais'!E20 -> 0.08 | F31: 1006.76 | H31: * Nota 2 - O SAT, a depender do grau de risco do serviço, irá variar entre 1%, para risco leve, de 2%, para risco médio, e de 3% para risco grave.
C32: I | D32: SECONCI (Convenções Coletivas de Trabalho da construção) | E32: ='Encargos Sociais'!E21 -> 0 | F32: 0 | H32: * Nota 3 - Os percentuais do Submódulo 2.2 incidem sobre o Módulo 1 e o Submódulo 2.1.
B34: Submódulo 2.3 - Benefícios Mensais e Diários
C35: A | D35: Auxílio Transporte | F35: =HLOOKUP($B$5,'Dados Gerais'!$D$5:$BH$94,83) -> 0
C36: B | D36: Auxílio Alimentação | F36: =HLOOKUP($B$5,'Dados Gerais'!$D$5:$BH$94,90) -> 770
C37: C | D37: Assistência Médica e Familiar | F37: =HLOOKUP($B$5,'Dados Gerais'!$D$5:$BH$102,98) -> 96.3
C38: D | D38: Outros (Seguro de vida e auxílio funeral e auxílio odontológico) | F38: =HLOOKUP($B$5,'Dados Gerais'!$D$5:$BH$119,115) -> 12.39 | H38: * Nota 1 - O valor informado deverá ser o custo real do benefício (descontado o valor eventualmente pago pelo empregado).
H39: * Nota 2 - Observar a previsão dos benefícios contidos em Acordos, Convenções e Dissídios Coletivos de Trabalho e o disposto no art. 6º da IN 5/2017
D40: QUADRO-RESUMO DO MÓDULO 2
D41: 2.1 - 13º Salário, Férias e Adicional de Férias - 13º Destacado - Calculado no Módulo 7 | E41: =SUM(E20:E21) -> 0.0303030303 | F41: =F20+F21 -> 334.15
D42: 2.2 - Encargos Previdenciários (GPS), Fundo de Garantia por Tempo de Serviço (FGTS) e Contribuições | E42: =SUM(E24:E32) -> 0.348 | F42: =SUM(F24:F32) -> 4379.42
D43: 2.3 - Benefícios Mensais e Diários | F43: =SUM(F35:F38) -> 878.69
D45: TOTAL DOS ENCARGOS E BENEFÍCIOS | F45: =SUM(F41:F43) -> 5592.26
B47: MÓDULO 3 - PREVISÃO PARA RESCISÃO | E47: Percentuais | F47: Valor
C48: A | D48: Aviso Prévio Indenizado (Art. 7º, inciso XXI, da CF/1988 e arts. 477, 487, §1º, e 491 da CLT) | E48: ='[2]Encargos Sociais'!E35 -> 0.003333333333 | F48: =ROUND(E48*($F$16+$F$59),2) -> 40.1
C49: B | D49: Incidência do FGTS sobre o Aviso Prévio Indenizado (Súmula 305 TST) | E49: ='[2]Encargos Sociais'!E36 -> 0.0002666666667 | F49: 3.21 | H49: * Nota 1 - Adotou-se os parâmetros do estudo do STF (http://www.stf.jus.br/arquivo/cms/sobrestfestudosci/anexo/encargos_sociais_03102007.pdf), onde 5% do pessoal é demitido pelo empregador no decurso do contrato (para estes, considerou-se o aviso prévio indenizado). Desprezou-se as demissões por justa causa e os pedidos de demissão.
C50: C | D50: Multa do FGTS e Contribuição Social sobre o Aviso Prévio Indenizado (Art. 18, §1º, da Lei 8.036/1990 e art. 1º da LC nº 110/2001) | E50: ='[2]Encargos Sociais'!E37 -> 0.001274074074 | F50: 15.33 | H50: * Nota 2 - No cálculo do percentual, considerou-se 36 dias, correspondendo à metade da duração média dos contratos (2 anos)
C51: D | D51: Aviso Prévio Trabalhado (Art. 488, parágrafo único, CLT) | E51: ='[2]Encargos Sociais'!E38 -> 0.01083333333 | F51: 130.32 | H51: * Nota 3 - Incide sobre a Remuneração + 13º salário (1/12) + Férias (1/12) + Adicional de Férias (1/36) x 50% multa (40% para o empregado e 10% de contribuição social) x 8% FGTS
C52: E | D52: Incidência de GPS, FGTS e outras contribuições sobre o Aviso Prévio Trabalhado | E52: ='[2]Encargos Sociais'!E39 -> 0.00377 | F52: 45.35 | H52: * Nota 4 - Os 95% restantes do cálculo, a um prazo médio de contrato de 4 anos. Assim, calcula-se 7 dias para o 1º ano de contrato e mais 3 dias para os 3 anos seguintes.
C53: F | D53: Multa do FGTS e Contribuição Social sobre o Aviso Prévio Trabalhado | E53: ='[2]Encargos Sociais'!E40 -> 0.01146666667 | F53: 137.94
D55: TOTAL DE PREVISÃO PARA RESCISÃO | F55: =SUM(F48:F53) -> 372.25
B57: MÓDULO 4 - CUSTO DE REPOSIÇÃO DO PROFISSIONAL AUSENTE | E57: Percentuais | F57: Valor
B58: Submódulo 4.1 - Ausências Legais
C59: A | D59: Férias (Arts. 129 e 130, inc. I, da CLT) | E59: ='[2]Encargos Sociais'!E24 -> 0.09090909091 | F59: =ROUND(E59*$F$16,2) -> 1002.45 | H59: * Nota 1 - As alíneas “A” a “F” referem-se somente ao custo que será pago ao repositor pelos dias trabalhados quando da necessidade de substituir a mão de obra alocada na prestação do serviço.
C60: B | D60: Ausências Legais (Arts. 131 e 473 da CLT) | E60: ='Encargos Sociais'!E25 -> 0.007936507937 | F60: =ROUND(E60*$F$16,2) -> 87.52 | H60: * Nota 2 - Adotou-se a estimativa do SINAPI de 2 dias por ano.
C61: C | D61: Licença-Paternidade (Art. 7º, XIX, e art. 10, §1º, do ADCT, CF/1988 e Art. 1º, II, da Lei 11.770/2008) | E61: ='Encargos Sociais'!E26 -> 0.0008277777778 | F61: 9.13 | H61: * Nota 3 - Utilizada a proporção de 50% para homens, 5 dias de afastamento, e a probabilidade de um trabalhador requerer a Licença Paternidade em 5,22%, conforme SINAPI (citando dados da PNAD 2015)
C62: D | D62: Ausência por Acidente de Trabalho (Art. 131, III, da CLT) | E62: ='Encargos Sociais'!E27 -> 0.0008541666667 | F62: 9.42 | H62: * Nota 4 - Utilzada a estatística de 1,96% dos contribuintes beneficiados com a emissão do auxílio, conforme Anuário Estatístico da Previdência Social. Afastamento de 15 dias a cargo da empresa.
C63: E | D63: Afastamento Maternidade (Art. 71 da Lei nº 8.213/1991) | E63: ='Encargos Sociais'!E28 -> 0.003292592593 | F63: 36.31 | H63: * Nota 5 - Utilizada a proporção de 50% para mulheres, 180 dias de afastamento, e a probabilidade de uma trabalhadora requerer a Licença Maternidade em 4,91%, conforme SINAPI (citando dados do IBGE 2016)
C64: F | D64: Auxílio Enfermidade - Doença (Art. 59 da Lei nº 8.213/1991) | E64: ='Encargos Sociais'!E29 -> 0.007122222222 | F64: 78.54 | H64: * Nota 6 - Utilizada a estatística de 3,37% dos contribuintes beneficiados com o auxílio, conforme Anuário Estatístico da Previdência Social de 2015 (acrescidos de 2 dias ao ano, para os quais o trabalhador nem requer o benefício da Previdência - conforme SINAPI)
B66: Submódulo 4.2 - Intrajornada
C67: A | D67: Intervalo para repouso ou alimentação | E67: ='Encargos Sociais'!E32 -> 0 | F67: =ROUND(E67*$F$16,2) -> 0
D69: QUADRO-RESUMO DO MÓDULO 4 | F69: Valor
D70: 4.1 - Ausências Legais | E70: =SUM(E59:E64) -> 0.1109423581 | F70: =ROUND(E70*$F$16,2) -> 1223.36
D71: 4.2 - Intrajornada | E71: =E67 -> 0 | F71: =ROUND(E71*$F$16,2) -> 0
D73: TOTAL DE PREVISÃO PARA RESCISÃO E INTERVALO INTRAJORNADA | F73: =SUM(F70:F71) -> 1223.36
B75: MÓDULO 5 - INSUMOS DIVERSOS | F75: Valor
C76: A | D76: Uniformes - aquisição | F76: =ROUND(HLOOKUP($B$5,Uniformes!K11:DZ32,3)/12,2) -> 0
C77: B | D77: Materiais de consumo relacionados ao posto - aquisição | F77: =ROUND(HLOOKUP(B5,'Mat Cons'!I11:DX13,3)/12,2) -> 0
C78: C | D78: Materiais permanentes relacionados ao posto - remuneração da sua depreciação / manutenção | F78: =HLOOKUP(B5,'Mat Perm'!Q11:EF13,3) -> 0
C79: D | D79: Equipamentos relacionados ao posto - remuneração da sua depreciação / manutenção | F79: =HLOOKUP(B5,'Equip Rel'!Q11:EF13,3) -> 0
C80: E | D80: Equipamentos de Proteção Individual - EPI - aquisição | F80: =ROUND(HLOOKUP(B5,EPI!I11:DX13,3)/12,2) -> 0
D82: TOTAL DE INSUMOS DIVERSOS | F82: =SUM(F76:F81) -> 0 | H82: * Nota - Valores mensais por empregado
B84: MÓDULO 6 - CUSTOS INDIRETOS, TRIBUTOS E LUCRO - BDI | E84: Percentuais | F84: Valor
C85: A | D85: Custos Indiretos | E85: =BDI!E6 -> 0.061
C86: A.1 | D86: Administração Central | E86: =BDI!E7 -> 0.026
C87: A.2 | D87: Seguros, Garantias e Riscos | E87: =BDI!E8 -> 0.035
C88: B | D88: Lucro | E88: =BDI!E10 -> 0.04
C89: C | D89: Tributos | E89: =SUM(E90:E91) -> 0.124
C90: C.1 | D90: Tributos Federais (COFINS, PIS e CPRB) | E90: =BDI!E18 -> 0.074
C91: C.2 | D91: Tributos Distritais (ISS) | E91: =BDI!E23 -> 0.05 | H91: * Nota - Utilizou-se o indicado pelo Sindicato da Arquitetura e da Engenharia (Sinaenco, 2008, p. 22), que adota um percentual redutor de 20% no cálculo dos custos tributários relativos às contribuições PIS e COFINS
C92: D | D92: Despesas Financeiras | E92: =BDI!E13 -> 0.005251960574
D94: TOTAL DE BDI | E94: =BDI!E26 -> 0.2663 | F94: =E94*E102 -> 4850.619881
D96: QUADRO-RESUMO DO CUSTO MENSAL POR EMPREGADO - SEM O 13º | E96: Valor
D97: Módulo 1 - Composição da Remuneração | E97: =F16 -> 11027
D98: Módulo 2 - Encargos e Benefícios Anuais, Mensais e Diários | E98: =F45 -> 5592.26
D99: Módulo 3 - Provisão para Rescisão | E99: =F55 -> 372.25
D100: Módulo 4 - Custo de Reposição do Profissional Ausente | E100: =F73 -> 1223.36
D101: Módulo 5 - Insumos Diversos | E101: =F82 -> 0
D102: SUBTOTAL (A+B+C+D+E) | E102: =SUM(E97:E101) -> 18214.87
D103: Módulo 6 - Custos Indiretos, Tributos e Lucro | E103: =F94 -> 4850.619881
D105: TOTAL DO POSTO | E105: =SUM(E102:E103) -> 23065.48988
B107: MÓDULO 7 - DESTAQUE DO MÓDULO 2 - 13º SALÁRIO | E107: Percentuais | F107: Valor
C108: A | D108: 13º Salário | E108: ='[2]Encargos Sociais'!E31 -> 0.08333333333 | F108: =ROUND(E108*F$16,2) -> 918.92
C109: B | D109: Encargos Sociais sobre o 13º Salário - Taxa calculada no SUBMÓDULO 2.2 | E109: =SUM($E$24:$E$32) -> 0.348 | F109: =ROUND(E109*$F$108,2) -> 319.78 | H109: * Nota 1 - Provisiona-se, mensalmente, o proporcional a 1/12 dos valores referentes a gratificação natalina
C110: C | D110: Reincidência de férias sobre o 13º Salário | E110: =E59 -> 0.09090909091 | F110: =ROUND(E110*$F$108,2) -> 83.54
C111: D | D111: BDI sobre o 13º Salário - Taxa calculada no MÓDULO 6 | E111: =E94 -> 0.2663 | F111: =ROUND(E111*($F$108+$F$109+$F$110),2) -> 352.11
D113: TOTAL DO DESTAQUE DO 13º SALÁRIO | F113: =SUM(F108:F111) -> 1674.35
D115: QUADRO-RESUMO DO CUSTO MENSAL POR EMPREGADO | E115: Valor
D116: Custo total - sem o 13º Salário | E116: =E105 -> 23065.48988
D117: Destaque do 13º Salário (valor mensal) | E117: =F113 -> 1674.35
D119: TOTAL DO POSTO | E119: =E116+E117 -> 24739.83988

Sheet 2
B2: PLANILHA DE ESTIMATIVA DE CUSTOS
B3: Padrão IN 05/2017 e IN 07/2018 - MPDG
B5: 2 | D5: =HLOOKUP($B$5,'Dados Gerais'!$D$5:$BH$21,6) -> Analista de TI - Engenheiro de Dados - sênior | E5: QUANTIDADE | F5: =HLOOKUP($B$5,'Dados Gerais'!$D$5:$BH$21,10) -> 5
B6: CCT | D6: =HLOOKUP($B$5,'Dados Gerais'!$D$5:$BH$21,16) -> SINDPD/DF X SINDESEI/DF 2021/2022 Nº DF000608/2021 | E6: DATA-BASE | F6: =HLOOKUP($B$5,'Dados Gerais'!$D$5:$BH$21,17) -> 2021-05-01
B8: MÓDULO 1 - COMPOSIÇÃO DA REMUNERAÇÃO | F8: Valor
C9: A | D9: Salário-Base | F9: =HLOOKUP($B$5,'Dados Gerais'!$D$5:$BH$21,8) -> 13998.55
C10: B | D10: Adicional de Periculosidade | F10: =HLOOKUP($B$5,'Dados Gerais'!$D$5:$BH$38,25) -> 0
C11: C | D11: Adicional de Insalubridade | F11: =HLOOKUP($B$5,'Dados Gerais'!$D$5:$BH$38,27) -> 0
C12: D | D12: Adicional Noturno | F12: =HLOOKUP($B$5,'Dados Gerais'!$D$5:$BH$51,46) -> 0 | H12: * Nota 1 - O Módulo 1 refere-se ao valor mensal devido ao empregado pela prestação do serviço no período de 12 meses.
C13: E | D13: Adicional de Hora Extra | F13: =HLOOKUP($B$5,'Dados Gerais'!$D$5:$BH$68,63) -> 0 | H13: * Nota 2 - O adicional de hora extra no feriado trabalhado foi suprimido pela Lei 13.467/17
C14: F | D14: Outros (especificar) | F14: =HLOOKUP($B$5,'Dados Gerais'!$D$5:$BH$60,33) -> 0 | H14: * Nota 3 - ART. 7º, § 2º, DA LEI Nº 605/49.Sendo mensalista o obreiro, o adicional noturno pago de forma fixa já é considerado integrado para os efeitos do pagamento do repouso semanal remunerado, nos termos do art. 7º, § 2º, da Lei nº 605/49.
D16: TOTAL DA REMUNERAÇÃO | F16: =SUM(F9:F14) -> 13998.55
B18: MÓDULO 2 - ENCARGOS E BENEFÍCIOS ANUAIS, MENSAIS E DIÁRIOS | E18: Percentuais | F18: Valor
B19: Submódulo 2.1 - 13º Salário, Férias e Adicional de Férias
C20: A | D20: 13º Salário - Calculado no Módulo 7 - Destacado | E20: 0 | F20: =ROUND(E20*F$16,2) -> 0 | H20: * Nota 1 - Provisiona-se, mensalmente, o proporcional a 1/12 dos valores referentes a gratificação natalina
C21: B | D21: Adicional de Férias | E21: ='[2]Encargos Sociais'!E30 -> 0.0303030303 | F21: =ROUND(E21*F$16,2) -> 424.2 | H21: * Nota 2 - O adicional de férias contido no Submódulo 2.1 corresponde a 1/3 da remuneração que, por sua vez, é dividida por 12 contome Nota 1.
B23: Submódulo 2.2 - Encargos Previdenciários (GPS), Fundo de Garantia por Tempo de Serviço (FGTS) e Outras Contribuições
C24: A | D24: INSS (art. 22, inciso I, Lei nº 8.212/91) | E24: ='Encargos Sociais'!E13 -> 0.2 | F24: =ROUND(E24*($F$16+$F$41+$F$73),2) -> 3195.16
C25: B | D25: Salário Educação (art. 3º, inciso I, Decreto nº 87.043/82) | E25: ='Encargos Sociais'!E14 -> 0.025 | F25: =ROUND(E25*($F$16+$F$41+$F$73),2) -> 399.39
C26: C | D26: SAT/RAT (art. 22, II, Lei 8.212/91 e Anexo V, Decreto 6.042/07) - Enquadramento 8211-3/00 | E26: ='Encargos Sociais'!E15 -> 0.01 | F26: 159.76
C27: D | D27: SESC ou SESI (art. 30, Lei nº 8.036/90 e art. 1º, Lei 8.154/90) | E27: ='Encargos Sociais'!E16 -> 0.015 | F27: 239.64
C28: E | D28: SENAI ou SENAC (Decreto nº 2.318/86) | E28: ='Encargos Sociais'!E17 -> 0.01 | F28: 159.76
C29: F | D29: SEBRAE (§ 3º, art. 8º, Lei 8.029/90, alterada pela Lei nº 8.154/90) | E29: ='Encargos Sociais'!E18 -> 0.006 | F29: 95.85
C30: G | D30: INCRA (art. 1º, I, Decreto Lei 1.146/70 e Lei 7.787, de 30/06/89) | E30: ='Encargos Sociais'!E19 -> 0.002 | F30: 31.95 | H30: * Nota 1 - Os percentuais dos encargos previdenciários, do FGTS e demais contribuições são estabelecidos por legislação vigente.
C31: H | D31: FGTS (Lei Complementar nº 110/01 e art. 30, Lei nº 8.036/90) | E31: ='Encargos Sociais'!E20 -> 0.08 | F31: 1278.06 | H31: * Nota 2 - O SAT, a depender do grau de risco do serviço, irá variar entre 1%, para risco leve, de 2%, para risco médio, e de 3% para risco grave.
C32: I | D32: SECONCI (Convenções Coletivas de Trabalho da construção) | E32: ='Encargos Sociais'!E21 -> 0 | F32: 0 | H32: * Nota 3 - Os percentuais do Submódulo 2.2 incidem sobre o Módulo 1 e o Submódulo 2.1.
B34: Submódulo 2.3 - Benefícios Mensais e Diários
C35: A | D35: Auxílio Transporte | F35: =HLOOKUP($B$5,'Dados Gerais'!$D$5:$BH$94,83) -> 0
C36: B | D36: Auxílio Alimentação | F36: =HLOOKUP($B$5,'Dados Gerais'!$D$5:$BH$94,90) -> 770
C37: C | D37: Assistência Médica e Familiar | F37: =HLOOKUP($B$5,'Dados Gerais'!$D$5:$BH$102,98) -> 96.3
C38: D | D38: Outros (Seguro de vida e auxílio funeral e auxílio odontológico) | F38: =HLOOKUP($B$5,'Dados Gerais'!$D$5:$BH$119,115) -> 12.39 | H38: * Nota 1 - O valor informado deverá ser o custo real do benefício (descontado o valor eventualmente pago pelo empregado).
H39: * Nota 2 - Observar a previsão dos benefícios contidos em Acordos, Convenções e Dissídios Coletivos de Trabalho e o disposto no art. 6º da IN 5/2017
D40: QUADRO-RESUMO DO MÓDULO 2
D41: 2.1 - 13º Salário, Férias e Adicional de Férias - 13º Destacado - Calculado no Módulo 7 | E41: =SUM(E20:E21) -> 0.0303030303 | F41: =F20+F21 -> 424.2
D42: 2.2 - Encargos Previdenciários (GPS), Fundo de Garantia por Tempo de Serviço (FGTS) e Contribuições | E42: =SUM(E24:E32) -> 0.348 | F42: =SUM(F24:F32) -> 5559.57
D43: 2.3 - Benefícios Mensais e Diários | F43: =SUM(F35:F38) -> 878.69
D45: TOTAL DOS ENCARGOS E BENEFÍCIOS | F45: =SUM(F41:F43) -> 6862.46
B47: MÓDULO 3 - PREVISÃO PARA RESCISÃO | E47: Percentuais | F47: Valor
C48: A | D48: Aviso Prévio Indenizado (Art. 7º, inciso XXI, da CF/1988 e arts. 477, 487, §1º, e 491 da CLT) | E48: ='[2]Encargos Sociais'!E35 -> 0.003333333333 | F48: =ROUND(E48*($F$16+$F$59),2) -> 50.9
C49: B | D49: Incidência do FGTS sobre o Aviso Prévio Indenizado (Súmula 305 TST) | E49: ='[2]Encargos Sociais'!E36 -> 0.0002666666667 | F49: 4.07 | H49: * Nota 1 - Adotou-se os parâmetros do estudo do STF (http://www.stf.jus.br/arquivo/cms/sobrestfestudosci/anexo/encargos_sociais_03102007.pdf), onde 5% do pessoal é demitido pelo empregador no decurso do contrato (para estes, considerou-se o aviso prévio indenizado). Desprezou-se as demissões por justa causa e os pedidos de demissão.
C50: C | D50: Multa do FGTS e Contribuição Social sobre o Aviso Prévio Indenizado (Art. 18, §1º, da Lei 8.036/1990 e art. 1º da LC nº 110/2001) | E50: ='[2]Encargos Sociais'!E37 -> 0.001274074074 | F50: 19.46 | H50: * Nota 2 - No cálculo do percentual, considerou-se 36 dias, correspondendo à metade da duração média dos contratos (2 anos)
C51: D | D51: Aviso Prévio Trabalhado (Art. 488, parágrafo único, CLT) | E51: ='[2]Encargos Sociais'!E38 -> 0.01083333333 | F51: 165.44 | H51: * Nota 3 - Incide sobre a Remuneração + 13º salário (1/12) + Férias (1/12) + Adicional de Férias (1/36) x 50% multa (40% para o empregado e 10% de contribuição social) x 8% FGTS
C52: E | D52: Incidência de GPS, FGTS e outras contribuições sobre o Aviso Prévio Trabalhado | E52: ='[2]Encargos Sociais'!E39 -> 0.00377 | F52: 57.57 | H52: * Nota 4 - Os 95% restantes do cálculo, a um prazo médio de contrato de 4 anos. Assim, calcula-se 7 dias para o 1º ano de contrato e mais 3 dias para os 3 anos seguintes.
C53: F | D53: Multa do FGTS e Contribuição Social sobre o Aviso Prévio Trabalhado | E53: ='[2]Encargos Sociais'!E40 -> 0.01146666667 | F53: 175.11
D55: TOTAL DE PREVISÃO PARA RESCISÃO | F55: =SUM(F48:F53) -> 472.55
B57: MÓDULO 4 - CUSTO DE REPOSIÇÃO DO PROFISSIONAL AUSENTE | E57: Percentuais | F57: Valor
B58: Submódulo 4.1 - Ausências Legais
C59: A | D59: Férias (Arts. 129 e 130, inc. I, da CLT) | E59: ='[2]Encargos Sociais'!E24 -> 0.09090909091 | F59: =ROUND(E59*$F$16,2) -> 1272.6 | H59: * Nota 1 - As alíneas “A” a “F” referem-se somente ao custo que será pago ao repositor pelos dias trabalhados quando da necessidade de substituir a mão de obra alocada na prestação do serviço.
C60: B | D60: Ausências Legais (Arts. 131 e 473 da CLT) | E60: ='Encargos Sociais'!E25 -> 0.007936507937 | F60: =ROUND(E60*$F$16,2) -> 111.1 | H60: * Nota 2 - Adotou-se a estimativa do SINAPI de 2 dias por ano.
C61: C | D61: Licença-Paternidade (Art. 7º, XIX, e art. 10, §1º, do ADCT, CF/1988 e Art. 1º, II, da Lei 11.770/2008) | E61: ='Encargos Sociais'!E26 -> 0.0008277777778 | F61: 11.59 | H61: * Nota 3 - Utilizada a proporção de 50% para homens, 5 dias de afastamento, e a probabilidade de um trabalhador requerer a Licença Paternidade em 5,22%, conforme SINAPI (citando dados da PNAD 2015)
C62: D | D62: Ausência por Acidente de Trabalho (Art. 131, III, da CLT) | E62: ='Encargos Sociais'!E27 -> 0.0008541666667 | F62: 11.96 | H62: * Nota 4 - Utilzada a estatística de 1,96% dos contribuintes beneficiados com a emissão do auxílio, conforme Anuário Estatístico da Previdência Social. Afastamento de 15 dias a cargo da empresa.
C63: E | D63: Afastamento Maternidade (Art. 71 da Lei nº 8.213/1991) | E63: ='Encargos Sociais'!E28 -> 0.003292592593 | F63: 46.09 | H63: * Nota 5 - Utilizada a proporção de 50% para mulheres, 180 dias de afastamento, e a probabilidade de uma trabalhadora requerer a Licença Maternidade em 4,91%, conforme SINAPI (citando dados do IBGE 2016)
C64: F | D64: Auxílio Enfermidade - Doença (Art. 59 da Lei nº 8.213/1991) | E64: ='Encargos Sociais'!E29 -> 0.007122222222 | F64: 99.7 | H64: * Nota 6 - Utilizada a estatística de 3,37% dos contribuintes beneficiados com o auxílio, conforme Anuário Estatístico da Previdência Social de 2015 (acrescidos de 2 dias ao ano, para os quais o trabalhador nem requer o benefício da Previdência - conforme SINAPI)
B66: Submódulo 4.2 - Intrajornada
C67: A | D67: Intervalo para repouso ou alimentação | E67: ='Encargos Sociais'!E32 -> 0 | F67: =ROUND(E67*$F$16,2) -> 0
D69: QUADRO-RESUMO DO MÓDULO 4 | F69: Valor
D70: 4.1 - Ausências Legais | E70: =SUM(E59:E64) -> 0.1109423581 | F70: =ROUND(E70*$F$16,2) -> 1553.03
D71: 4.2 - Intrajornada | E71: =E67 -> 0 | F71: =ROUND(E71*$F$16,2) -> 0
D73: TOTAL DE PREVISÃO PARA RESCISÃO E INTERVALO INTRAJORNADA | F73: =SUM(F70:F71) -> 1553.03
B75: MÓDULO 5 - INSUMOS DIVERSOS | F75: Valor
C76: A | D76: Uniformes - aquisição | F76: =ROUND(HLOOKUP($B$5,Uniformes!K11:DZ32,3)/12,2) -> 0
C77: B | D77: Materiais de consumo relacionados ao posto - aquisição | F77: =ROUND(HLOOKUP(B5,'Mat Cons'!I11:DX13,3)/12,2) -> 0
C78: C | D78: Materiais permanentes relacionados ao posto - remuneração da sua depreciação / manutenção | F78: =HLOOKUP(B5,'Mat Perm'!Q11:EF13,3) -> 0
C79: D | D79: Equipamentos relacionados ao posto - remuneração da sua depreciação / manutenção | F79: =HLOOKUP(B5,'Equip Rel'!Q11:EF13,3) -> 0
C80: E | D80: Equipamentos de Proteção Individual - EPI - aquisição | F80: =ROUND(HLOOKUP(B5,EPI!I11:DX13,3)/12,2) -> 0
D82: TOTAL DE INSUMOS DIVERSOS | F82: =SUM(F76:F81) -> 0 | H82: * Nota - Valores mensais por empregado
B84: MÓDULO 6 - CUSTOS INDIRETOS, TRIBUTOS E LUCRO - BDI | E84: Percentuais | F84: Valor
C85: A | D85: Custos Indiretos | E85: =BDI!E6 -> 0.061
C86: A.1 | D86: Administração Central | E86: =BDI!E7 -> 0.026
C87: A.2 | D87: Seguros, Garantias e Riscos | E87: =BDI!E8 -> 0.035
C88: B | D88: Lucro | E88: =BDI!E10 -> 0.04
C89: C | D89: Tributos | E89: =SUM(E90:E91) -> 0.124
C90: C.1 | D90: Tributos Federais (COFINS, PIS e CPRB) | E90: =BDI!E18 -> 0.074
C91: C.2 | D91: Tributos Distritais (ISS) | E91: =BDI!E23 -> 0.05 | H91: * Nota - Utilizou-se o indicado pelo Sindicato da Arquitetura e da Engenharia (Sinaenco, 2008, p. 22), que adota um percentual redutor de 20% no cálculo dos custos tributários relativos às contribuições PIS e COFINS
C92: D | D92: Despesas Financeiras | E92: =BDI!E13 -> 0.005251960574
D94: TOTAL DE BDI | E94: =BDI!E26 -> 0.2663 | F94: =E94*E102 -> 6094.698917
D96: QUADRO-RESUMO DO CUSTO MENSAL POR EMPREGADO - SEM O 13º | E96: Valor
D97: Módulo 1 - Composição da Remuneração | E97: =F16 -> 13998.55
D98: Módulo 2 - Encargos e Benefícios Anuais, Mensais e Diários | E98: =F45 -> 6862.46
D99: Módulo 3 - Provisão para Rescisão | E99: =F55 -> 472.55
D100: Módulo 4 - Custo de Reposição do Profissional Ausente | E100: =F73 -> 1553.03
D101: Módulo 5 - Insumos Diversos | E101: =F82 -> 0
D102: SUBTOTAL (A+B+C+D+E) | E102: =SUM(E97:E101) -> 22886.59
D103: Módulo 6 - Custos Indiretos, Tributos e Lucro | E103: =F94 -> 6094.698917
D105: TOTAL DO POSTO | E105: =SUM(E102:E103) -> 28981.28892
B107: MÓDULO 7 - DESTAQUE DO MÓDULO 2 - 13º SALÁRIO | E107: Percentuais | F107: Valor
C108: A | D108: 13º Salário | E108: ='[2]Encargos Sociais'!E31 -> 0.08333333333 | F108: =ROUND(E108*F$16,2) -> 1166.55
C109: B | D109: Encargos Sociais sobre o 13º Salário - Taxa calculada no SUBMÓDULO 2.2 | E109: =SUM($E$24:$E$32) -> 0.348 | F109: =ROUND(E109*$F$108,2) -> 405.96 | H109: * Nota 1 - Provisiona-se, mensalmente, o proporcional a 1/12 dos valores referentes a gratificação natalina
C110: C | D110: Reincidência de férias sobre o 13º Salário | E110: =E59 -> 0.09090909091 | F110: =ROUND(E110*$F$108,2) -> 106.05
C111: D | D111: BDI sobre o 13º Salário - Taxa calculada no MÓDULO 6 | E111: =E94 -> 0.2663 | F111: =ROUND(E111*($F$108+$F$109+$F$110),2) -> 447
D113: TOTAL DO DESTAQUE DO 13º SALÁRIO | F113: =SUM(F108:F111) -> 2125.56
D115: QUADRO-RESUMO DO CUSTO MENSAL POR EMPREGADO | E115: Valor
D116: Custo total - sem o 13º Salário | E116: =E105 -> 28981.28892
D117: Destaque do 13º Salário (valor mensal) | E117: =F113 -> 2125.56
D119: TOTAL DO POSTO | E119: =E116+E117 -> 31106.84892

Sheet 3
B2: PLANILHA DE ESTIMATIVA DE CUSTOS
B3: Padrão IN 05/2017 e IN 07/2018 - MPDG
B5: 3 | D5: =HLOOKUP($B$5,'Dados Gerais'!$D$5:$BH$21,6) -> Analista de TI - Analista de Dados - sênior | E5: QUANTIDADE | F5: =HLOOKUP($B$5,'Dados Gerais'!$D$5:$BH$21,10) -> 9
B6: CCT | D6: =HLOOKUP($B$5,'Dados Gerais'!$D$5:$BH$21,16) -> SINDPD/DF X SINDESEI/DF 2021/2022 Nº DF000608/2021 | E6: DATA-BASE | F6: =HLOOKUP($B$5,'Dados Gerais'!$D$5:$BH$21,17) -> 2021-05-01
B8: MÓDULO 1 - COMPOSIÇÃO DA REMUNERAÇÃO | F8: Valor
C9: A | D9: Salário-Base | F9: =HLOOKUP($B$5,'Dados Gerais'!$D$5:$BH$21,8) -> 9747.54
C10: B | D10: Adicional de Periculosidade | F10: =HLOOKUP($B$5,'Dados Gerais'!$D$5:$BH$38,25) -> 0
C11: C | D11: Adicional de Insalubridade | F11: =HLOOKUP($B$5,'Dados Gerais'!$D$5:$BH$38,27) -> 0
C12: D | D12: Adicional Noturno | F12: =HLOOKUP($B$5,'Dados Gerais'!$D$5:$BH$51,46) -> 0 | H12: * Nota 1 - O Módulo 1 refere-se ao valor mensal devido ao empregado pela prestação do serviço no período de 12 meses.
C13: E | D13: Adicional de Hora Extra | F13: =HLOOKUP($B$5,'Dados Gerais'!$D$5:$BH$68,63) -> 0 | H13: * Nota 2 - O adicional de hora extra no feriado trabalhado foi suprimido pela Lei 13.467/17
C14: F | D14: Outros (especificar) | F14: =HLOOKUP($B$5,'Dados Gerais'!$D$5:$BH$60,33) -> 0 | H14: * Nota 3 - ART. 7º, § 2º, DA LEI Nº 605/49.Sendo mensalista o obreiro, o adicional noturno pago de forma fixa já é considerado integrado para os efeitos do pagamento do repouso semanal remunerado, nos termos do art. 7º, § 2º, da Lei nº 605/49.
D16: TOTAL DA REMUNERAÇÃO | F16: =SUM(F9:F14) -> 9747.54
B18: MÓDULO 2 - ENCARGOS E BENEFÍCIOS ANUAIS, MENSAIS E DIÁRIOS | E18: Percentuais | F18: Valor
B19: Submódulo 2.1 - 13º Salário, Férias e Adicional de Férias
C20: A | D20: 13º Salário - Calculado no Módulo 7 - Destacado | E20: 0 | F20: =ROUND(E20*F$16,2) -> 0 | H20: * Nota 1 - Provisiona-se, mensalmente, o proporcional a 1/12 dos valores referentes a gratificação natalina
C21: B | D21: Adicional de Férias | E21: ='[2]Encargos Sociais'!E30 -> 0.0303030303 | F21: =ROUND(E21*F$16,2) -> 295.38 | H21: * Nota 2 - O adicional de férias contido no Submódulo 2.1 corresponde a 1/3 da remuneração que, por sua vez, é dividida por 12 contome Nota 1.
B23: Submódulo 2.2 - Encargos Previdenciários (GPS), Fundo de Garantia por Tempo de Serviço (FGTS) e Outras Contribuições
C24: A | D24: INSS (art. 22, inciso I, Lei nº 8.212/91) | E24: ='Encargos Sociais'!E13 -> 0.2 | F24: =ROUND(E24*($F$16+$F$41+$F$73),2) -> 2224.87
C25: B | D25: Salário Educação (art. 3º, inciso I, Decreto nº 87.043/82) | E25: ='Encargos Sociais'!E14 -> 0.025 | F25: =ROUND(E25*($F$16+$F$41+$F$73),2) -> 278.11
C26: C | D26: SAT/RAT (art. 22, II, Lei 8.212/91 e Anexo V, Decreto 6.042/07) - Enquadramento 8211-3/00 | E26: ='Encargos Sociais'!E15 -> 0.01 | F26: 111.24
C27: D | D27: SESC ou SESI (art. 30, Lei nº 8.036/90 e art. 1º, Lei 8.154/90) | E27: ='Encargos Sociais'!E16 -> 0.015 | F27: 166.87
C28: E | D28: SENAI ou SENAC (Decreto nº 2.318/86) | E28: ='Encargos Sociais'!E17 -> 0.01 | F28: 111.24
C29: F | D29: SEBRAE (§ 3º, art. 8º, Lei 8.029/90, alterada pela Lei nº 8.154/90) | E29: ='Encargos Sociais'!E18 -> 0.006 | F29: 66.75
C30: G | D30: INCRA (art. 1º, I, Decreto Lei 1.146/70 e Lei 7.787, de 30/06/89) | E30: ='Encargos Sociais'!E19 -> 0.002 | F30: 22.25 | H30: * Nota 1 - Os percentuais dos encargos previdenciários, do FGTS e demais contribuições são estabelecidos por legislação vigente.
C31: H | D31: FGTS (Lei Complementar nº 110/01 e art. 30, Lei nº 8.036/90) | E31: ='Encargos Sociais'!E20 -> 0.08 | F31: 889.95 | H31: * Nota 2 - O SAT, a depender do grau de risco do serviço, irá variar entre 1%, para risco leve, de 2%, para risco médio, e de 3% para risco grave.
C32: I | D32: SECONCI (Convenções Coletivas de Trabalho da construção) | E32: ='Encargos Sociais'!E21 -> 0 | F32: 0 | H32: * Nota 3 - Os percentuais do Submódulo 2.2 incidem sobre o Módulo 1 e o Submódulo 2.1.
B34: Submódulo 2.3 - Benefícios Mensais e Diários
C35: A | D35: Auxílio Transporte | F35: =HLOOKUP($B$5,'Dados Gerais'!$D$5:$BH$94,83) -> 0
C36: B | D36: Auxílio Alimentação | F36: =HLOOKUP($B$5,'Dados Gerais'!$D$5:$BH$94,90) -> 770
C37: C | D37: Assistência Médica e Familiar | F37: =HLOOKUP($B$5,'Dados Gerais'!$D$5:$BH$102,98) -> 96.3
C38: D | D38: Outros (Seguro de vida e auxílio funeral e auxílio odontológico) | F38: =HLOOKUP($B$5,'Dados Gerais'!$D$5:$BH$119,115) -> 12.39 | H38: * Nota 1 - O valor informado deverá ser o custo real do benefício (descontado o valor eventualmente pago pelo empregado).
H39: * Nota 2 - Observar a previsão dos benefícios contidos em Acordos, Convenções e Dissídios Coletivos de Trabalho e o disposto no art. 6º da IN 5/2017
D40: QUADRO-RESUMO DO MÓDULO 2
D41: 2.1 - 13º Salário, Férias e Adicional de Férias - 13º Destacado - Calculado no Módulo 7 | E41: =SUM(E20:E21) -> 0.0303030303 | F41: =F20+F21 -> 295.38
D42: 2.2 - Encargos Previdenciários (GPS), Fundo de Garantia por Tempo de Serviço (FGTS) e Contribuições | E42: =SUM(E24:E32) -> 0.348 | F42: =SUM(F24:F32) -> 3871.28
D43: 2.3 - Benefícios Mensais e Diários | F43: =SUM(F35:F38) -> 878.69
D45: TOTAL DOS ENCARGOS E BENEFÍCIOS | F45: =SUM(F41:F43) -> 5045.35
B47: MÓDULO 3 - PREVISÃO PARA RESCISÃO | E47: Percentuais | F47: Valor
C48: A | D48: Aviso Prévio Indenizado (Art. 7º, inciso XXI, da CF/1988 e arts. 477, 487, §1º, e 491 da CLT) | E48: ='[2]Encargos Sociais'!E35 -> 0.003333333333 | F48: =ROUND(E48*($F$16+$F$59),2) -> 35.45
C49: B | D49: Incidência do FGTS sobre o Aviso Prévio Indenizado (Súmula 305 TST) | E49: ='[2]Encargos Sociais'!E36 -> 0.0002666666667 | F49: 2.84 | H49: * Nota 1 - Adotou-se os parâmetros do estudo do STF (http://www.stf.jus.br/arquivo/cms/sobrestfestudosci/anexo/encargos_sociais_03102007.pdf), onde 5% do pessoal é demitido pelo empregador no decurso do contrato (para estes, considerou-se o aviso prévio indenizado). Desprezou-se as demissões por justa causa e os pedidos de demissão.
C50: C | D50: Multa do FGTS e Contribuição Social sobre o Aviso Prévio Indenizado (Art. 18, §1º, da Lei 8.036/1990 e art. 1º da LC nº 110/2001) | E50: ='[2]Encargos Sociais'!E37 -> 0.001274074074 | F50: 13.55 | H50: * Nota 2 - No cálculo do percentual, considerou-se 36 dias, correspondendo à metade da duração média dos contratos (2 anos)
C51: D | D51: Aviso Prévio Trabalhado (Art. 488, parágrafo único, CLT) | E51: ='[2]Encargos Sociais'!E38 -> 0.01083333333 | F51: 115.2 | H51: * Nota 3 - Incide sobre a Remuneração + 13º salário (1/12) + Férias (1/12) + Adicional de Férias (1/36) x 50% multa (40% para o empregado e 10% de contribuição social) x 8% FGTS
C52: E | D52: Incidência de GPS, FGTS e outras contribuições sobre o Aviso Prévio Trabalhado | E52: ='[2]Encargos Sociais'!E39 -> 0.00377 | F52: 40.09 | H52: * Nota 4 - Os 95% restantes do cálculo, a um prazo médio de contrato de 4 anos. Assim, calcula-se 7 dias para o 1º ano de contrato e mais 3 dias para os 3 anos seguintes.
C53: F | D53: Multa do FGTS e Contribuição Social sobre o Aviso Prévio Trabalhado | E53: ='[2]Encargos Sociais'!E40 -> 0.01146666667 | F53: 121.93
D55: TOTAL DE PREVISÃO PARA RESCISÃO | F55: =SUM(F48:F53) -> 329.06
B57: MÓDULO 4 - CUSTO DE REPOSIÇÃO DO PROFISSIONAL AUSENTE | E57: Percentuais | F57: Valor
B58: Submódulo 4.1 - Ausências Legais
C59: A | D59: Férias (Arts. 129 e 130, inc. I, da CLT) | E59: ='[2]Encargos Sociais'!E24 -> 0.09090909091 | F59: =ROUND(E59*$F$16,2) -> 886.14 | H59: * Nota 1 - As alíneas “A” a “F” referem-se somente ao custo que será pago ao repositor pelos dias trabalhados quando da necessidade de substituir a mão de obra alocada na prestação do serviço.
C60: B | D60: Ausências Legais (Arts. 131 e 473 da CLT) | E60: ='Encargos Sociais'!E25 -> 0.007936507937 | F60: =ROUND(E60*$F$16,2) -> 77.36 | H60: * Nota 2 - Adotou-se a estimativa do SINAPI de 2 dias por ano.
C61: C | D61: Licença-Paternidade (Art. 7º, XIX, e art. 10, §1º, do ADCT, CF/1988 e Art. 1º, II, da Lei 11.770/2008) | E61: ='Encargos Sociais'!E26 -> 0.0008277777778 | F61: 8.07 | H61: * Nota 3 - Utilizada a proporção de 50% para homens, 5 dias de afastamento, e a probabilidade de um trabalhador requerer a Licença Paternidade em 5,22%, conforme SINAPI (citando dados da PNAD 2015)
C62: D | D62: Ausência por Acidente de Trabalho (Art. 131, III, da CLT) | E62: ='Encargos Sociais'!E27 -> 0.0008541666667 | F62: 8.33 | H62: * Nota 4 - Utilzada a estatística de 1,96% dos contribuintes beneficiados com a emissão do auxílio, conforme Anuário Estatístico da Previdência Social. Afastamento de 15 dias a cargo da empresa.
C63: E | D63: Afastamento Maternidade (Art. 71 da Lei nº 8.213/1991) | E63: ='Encargos Sociais'!E28 -> 0.003292592593 | F63: 32.09 | H63: * Nota 5 - Utilizada a proporção de 50% para mulheres, 180 dias de afastamento, e a probabilidade de uma trabalhadora requerer a Licença Maternidade em 4,91%, conforme SINAPI (citando dados do IBGE 2016)
C64: F | D64: Auxílio Enfermidade - Doença (Art. 59 da Lei nº 8.213/1991) | E64: ='Encargos Sociais'!E29 -> 0.007122222222 | F64: 69.42 | H64: * Nota 6 - Utilizada a estatística de 3,37% dos contribuintes beneficiados com o auxílio, conforme Anuário Estatístico da Previdência Social de 2015 (acrescidos de 2 dias ao ano, para os quais o trabalhador nem requer o benefício da Previdência - conforme SINAPI)
B66: Submódulo 4.2 - Intrajornada
C67: A | D67: Intervalo para repouso ou alimentação | E67: ='Encargos Sociais'!E32 -> 0 | F67: =ROUND(E67*$F$16,2) -> 0
D69: QUADRO-RESUMO DO MÓDULO 4 | F69: Valor
D70: 4.1 - Ausências Legais | E70: =SUM(E59:E64) -> 0.1109423581 | F70: =ROUND(E70*$F$16,2) -> 1081.42
D71: 4.2 - Intrajornada | E71: =E67 -> 0 | F71: =ROUND(E71*$F$16,2) -> 0
D73: TOTAL DE PREVISÃO PARA RESCISÃO E INTERVALO INTRAJORNADA | F73: =SUM(F70:F71) -> 1081.42
B75: MÓDULO 5 - INSUMOS DIVERSOS | F75: Valor
C76: A | D76: Uniformes - aquisição | F76: =ROUND(HLOOKUP($B$5,Uniformes!K11:DZ13,3)/12,2) -> 0
C77: B | D77: Materiais de consumo relacionados ao posto - aquisição | F77: =ROUND(HLOOKUP(B5,'Mat Cons'!I11:DX13,3)/12,2) -> 0
C78: C | D78: Materiais permanentes relacionados ao posto - remuneração da sua depreciação / manutenção | F78: =HLOOKUP(B5,'Mat Perm'!Q11:EF13,3) -> 0
C79: D | D79: Equipamentos relacionados ao posto - remuneração da sua depreciação / manutenção | F79: =HLOOKUP(B5,'Equip Rel'!Q11:EF13,3) -> 0
C80: E | D80: Equipamentos de Proteção Individual - EPI - aquisição | F80: =ROUND(HLOOKUP(B5,EPI!I11:DX13,3)/12,2) -> 0
D82: TOTAL DE INSUMOS DIVERSOS | F82: =SUM(F76:F81) -> 0 | H82: * Nota - Valores mensais por empregado
B84: MÓDULO 6 - CUSTOS INDIRETOS, TRIBUTOS E LUCRO - BDI | E84: Percentuais | F84: Valor
C85: A | D85: Custos Indiretos | E85: =BDI!E6 -> 0.061
C86: A.1 | D86: Administração Central | E86: =BDI!E7 -> 0.026
C87: A.2 | D87: Seguros, Garantias e Riscos | E87: =BDI!E8 -> 0.035
C88: B | D88: Lucro | E88: =BDI!E10 -> 0.04
C89: C | D89: Tributos | E89: =SUM(E90:E91) -> 0.124
C90: C.1 | D90: Tributos Federais (COFINS, PIS e CPRB) | E90: =BDI!E18 -> 0.074
C91: C.2 | D91: Tributos Distritais (ISS) | E91: =BDI!E23 -> 0.05 | H91: * Nota - Utilizou-se o indicado pelo Sindicato da Arquitetura e da Engenharia (Sinaenco, 2008, p. 22), que adota um percentual redutor de 20% no cálculo dos custos tributários relativos às contribuições PIS e COFINS
C92: D | D92: Despesas Financeiras | E92: =BDI!E13 -> 0.005251960574
D94: TOTAL DE BDI | E94: =BDI!E26 -> 0.2663 | F94: =E94*E102 -> 4314.957431
D96: QUADRO-RESUMO DO CUSTO MENSAL POR EMPREGADO - SEM O 13º | E96: Valor
D97: Módulo 1 - Composição da Remuneração | E97: =F16 -> 9747.54
D98: Módulo 2 - Encargos e Benefícios Anuais, Mensais e Diários | E98: =F45 -> 5045.35
D99: Módulo 3 - Provisão para Rescisão | E99: =F55 -> 329.06
D100: Módulo 4 - Custo de Reposição do Profissional Ausente | E100: =F73 -> 1081.42
D101: Módulo 5 - Insumos Diversos | E101: =F82 -> 0
D102: SUBTOTAL (A+B+C+D+E) | E102: =SUM(E97:E101) -> 16203.37
D103: Módulo 6 - Custos Indiretos, Tributos e Lucro | E103: =F94 -> 4314.957431
D105: TOTAL DO POSTO | E105: =SUM(E102:E103) -> 20518.32743
B107: MÓDULO 7 - DESTAQUE DO MÓDULO 2 - 13º SALÁRIO | E107: Percentuais | F107: Valor
C108: A | D108: 13º Salário | E108: ='[2]Encargos Sociais'!E31 -> 0.08333333333 | F108: =ROUND(E108*F$16,2) -> 812.3
C109: B | D109: Encargos Sociais sobre o 13º Salário - Taxa calculada no SUBMÓDULO 2.2 | E109: =SUM($E$24:$E$32) -> 0.348 | F109: =ROUND(E109*$F$108,2) -> 282.68 | H109: * Nota 1 - Provisiona-se, mensalmente, o proporcional a 1/12 dos valores referentes a gratificação natalina
C110: C | D110: Reincidência de férias sobre o 13º Salário | E110: =E59 -> 0.09090909091 | F110: =ROUND(E110*$F$108,2) -> 73.85
C111: D | D111: BDI sobre o 13º Salário - Taxa calculada no MÓDULO 6 | E111: =E94 -> 0.2663 | F111: =ROUND(E111*($F$108+$F$109+$F$110),2) -> 311.26
D113: TOTAL DO DESTAQUE DO 13º SALÁRIO | F113: =SUM(F108:F111) -> 1480.09
D115: QUADRO-RESUMO DO CUSTO MENSAL POR EMPREGADO | E115: Valor
D116: Custo total - sem o 13º Salário | E116: =E105 -> 20518.32743
D117: Destaque do 13º Salário (valor mensal) | E117: =F113 -> 1480.09
D119: TOTAL DO POSTO | E119: =E116+E117 -> 21998.41743

Sheet 4
B2: PLANILHA DE ESTIMATIVA DE CUSTOS
B3: Padrão IN 05/2017 e IN 07/2018 - MPDG
B5: 4 | D5: =HLOOKUP($B$5,'Dados Gerais'!$D$5:$BH$21,6) -> Analista de TI - Arquiteto de Dados - sênior | E5: QUANTIDADE | F5: =HLOOKUP($B$5,'Dados Gerais'!$D$5:$BH$21,10) -> 6
B6: CCT | D6: =HLOOKUP($B$5,'Dados Gerais'!$D$5:$BH$21,16) -> SINDPD/DF X SINDESEI/DF 2021/2022 Nº DF000608/2021 | E6: DATA-BASE | F6: =HLOOKUP($B$5,'Dados Gerais'!$D$5:$BH$21,17) -> 2021-05-01
B8: MÓDULO 1 - COMPOSIÇÃO DA REMUNERAÇÃO | F8: Valor
C9: A | D9: Salário-Base | F9: =HLOOKUP($B$5,'Dados Gerais'!$D$5:$BH$21,8) -> 11079.73
C10: B | D10: Adicional de Periculosidade | F10: =HLOOKUP($B$5,'Dados Gerais'!$D$5:$BH$38,25) -> 0
C11: C | D11: Adicional de Insalubridade | F11: =HLOOKUP($B$5,'Dados Gerais'!$D$5:$BH$38,27) -> 0
C12: D | D12: Adicional Noturno | F12: =HLOOKUP($B$5,'Dados Gerais'!$D$5:$BH$51,46) -> 0 | H12: * Nota 1 - O Módulo 1 refere-se ao valor mensal devido ao empregado pela prestação do serviço no período de 12 meses.
C13: E | D13: Adicional de Hora Extra | F13: =HLOOKUP($B$5,'Dados Gerais'!$D$5:$BH$68,63) -> 0 | H13: * Nota 2 - O adicional de hora extra no feriado trabalhado foi suprimido pela Lei 13.467/17
C14: F | D14: Outros (especificar) | F14: =HLOOKUP($B$5,'Dados Gerais'!$D$5:$BH$60,33) -> 0 | H14: * Nota 3 - ART. 7º, § 2º, DA LEI Nº 605/49.Sendo mensalista o obreiro, o adicional noturno pago de forma fixa já é considerado integrado para os efeitos do pagamento do repouso semanal remunerado, nos termos do art. 7º, § 2º, da Lei nº 605/49.
D16: TOTAL DA REMUNERAÇÃO | F16: =SUM(F9:F14) -> 11079.73
B18: MÓDULO 2 - ENCARGOS E BENEFÍCIOS ANUAIS, MENSAIS E DIÁRIOS | E18: Percentuais | F18: Valor
B19: Submódulo 2.1 - 13º Salário, Férias e Adicional de Férias
C20: A | D20: 13º Salário - Calculado no Módulo 7 - Destacado | E20: 0 | F20: =ROUND(E20*F$16,2) -> 0 | H20: * Nota 1 - Provisiona-se, mensalmente, o proporcional a 1/12 dos valores referentes a gratificação natalina
C21: B | D21: Adicional de Férias | E21: ='[2]Encargos Sociais'!E30 -> 0.0303030303 | F21: =ROUND(E21*F$16,2) -> 335.75 | H21: * Nota 2 - O adicional de férias contido no Submódulo 2.1 corresponde a 1/3 da remuneração que, por sua vez, é dividida por 12 contome Nota 1.
B23: Submódulo 2.2 - Encargos Previdenciários (GPS), Fundo de Garantia por Tempo de Serviço (FGTS) e Outras Contribuições
C24: A | D24: INSS (art. 22, inciso I, Lei nº 8.212/91) | E24: ='Encargos Sociais'!E13 -> 0.2 | F24: =ROUND(E24*($F$16+$F$41+$F$73),2) -> 2528.94
C25: B | D25: Salário Educação (art. 3º, inciso I, Decreto nº 87.043/82) | E25: ='Encargos Sociais'!E14 -> 0.025 | F25: =ROUND(E25*($F$16+$F$41+$F$73),2) -> 316.12
C26: C | D26: SAT/RAT (art. 22, II, Lei 8.212/91 e Anexo V, Decreto 6.042/07) - Enquadramento 8211-3/00 | E26: ='Encargos Sociais'!E15 -> 0.01 | F26: 126.45
C27: D | D27: SESC ou SESI (art. 30, Lei nº 8.036/90 e art. 1º, Lei 8.154/90) | E27: ='Encargos Sociais'!E16 -> 0.015 | F27: 189.67
C28: E | D28: SENAI ou SENAC (Decreto nº 2.318/86) | E28: ='Encargos Sociais'!E17 -> 0.01 | F28: 126.45
C29: F | D29: SEBRAE (§ 3º, art. 8º, Lei 8.029/90, alterada pela Lei nº 8.154/90) | E29: ='Encargos Sociais'!E18 -> 0.006 | F29: 75.87
C30: G | D30: INCRA (art. 1º, I, Decreto Lei 1.146/70 e Lei 7.787, de 30/06/89) | E30: ='Encargos Sociais'!E19 -> 0.002 | F30: 25.29 | H30: * Nota 1 - Os percentuais dos encargos previdenciários, do FGTS e demais contribuições são estabelecidos por legislação vigente.
C31: H | D31: FGTS (Lei Complementar nº 110/01 e art. 30, Lei nº 8.036/90) | E31: ='Encargos Sociais'!E20 -> 0.08 | F31: 1011.58 | H31: * Nota 2 - O SAT, a depender do grau de risco do serviço, irá variar entre 1%, para risco leve, de 2%, para risco médio, e de 3% para risco grave.
C32: I | D32: SECONCI (Convenções Coletivas de Trabalho da construção) | E32: ='Encargos Sociais'!E21 -> 0 | F32: 0 | H32: * Nota 3 - Os percentuais do Submódulo 2.2 incidem sobre o Módulo 1 e o Submódulo 2.1.
B34: Submódulo 2.3 - Benefícios Mensais e Diários
C35: A | D35: Auxílio Transporte | F35: =HLOOKUP($B$5,'Dados Gerais'!$D$5:$BH$94,83) -> 0
C36: B | D36: Auxílio Alimentação | F36: =HLOOKUP($B$5,'Dados Gerais'!$D$5:$BH$94,90) -> 770
C37: C | D37: Assistência Médica e Familiar | F37: =HLOOKUP($B$5,'Dados Gerais'!$D$5:$BH$102,98) -> 96.3
C38: D | D38: Outros (Seguro de vida e auxílio funeral e auxílio odontológico) | F38: =HLOOKUP($B$5,'Dados Gerais'!$D$5:$BH$119,115) -> 12.39 | H38: * Nota 1 - O valor informado deverá ser o custo real do benefício (descontado o valor eventualmente pago pelo empregado).
H39: * Nota 2 - Observar a previsão dos benefícios contidos em Acordos, Convenções e Dissídios Coletivos de Trabalho e o disposto no art. 6º da IN 5/2017
D40: QUADRO-RESUMO DO MÓDULO 2
D41: 2.1 - 13º Salário, Férias e Adicional de Férias - 13º Destacado - Calculado no Módulo 7 | E41: =SUM(E20:E21) -> 0.0303030303 | F41: =F20+F21 -> 335.75
D42: 2.2 - Encargos Previdenciários (GPS), Fundo de Garantia por Tempo de Serviço (FGTS) e Contribuições | E42: =SUM(E24:E32) -> 0.348 | F42: =SUM(F24:F32) -> 4400.37
D43: 2.3 - Benefícios Mensais e Diários | F43: =SUM(F35:F38) -> 878.69
D45: TOTAL DOS ENCARGOS E BENEFÍCIOS | F45: =SUM(F41:F43) -> 5614.81
B47: MÓDULO 3 - PREVISÃO PARA RESCISÃO | E47: Percentuais | F47: Valor
C48: A | D48: Aviso Prévio Indenizado (Art. 7º, inciso XXI, da CF/1988 e arts. 477, 487, §1º, e 491 da CLT) | E48: ='[2]Encargos Sociais'!E35 -> 0.003333333333 | F48: =ROUND(E48*($F$16+$F$59),2) -> 40.29
C49: B | D49: Incidência do FGTS sobre o Aviso Prévio Indenizado (Súmula 305 TST) | E49: ='[2]Encargos Sociais'!E36 -> 0.0002666666667 | F49: 3.22 | H49: * Nota 1 - Adotou-se os parâmetros do estudo do STF (http://www.stf.jus.br/arquivo/cms/sobrestfestudosci/anexo/encargos_sociais_03102007.pdf), onde 5% do pessoal é demitido pelo empregador no decurso do contrato (para estes, considerou-se o aviso prévio indenizado). Desprezou-se as demissões por justa causa e os pedidos de demissão.
C50: C | D50: Multa do FGTS e Contribuição Social sobre o Aviso Prévio Indenizado (Art. 18, §1º, da Lei 8.036/1990 e art. 1º da LC nº 110/2001) | E50: ='[2]Encargos Sociais'!E37 -> 0.001274074074 | F50: 15.4 | H50: * Nota 2 - No cálculo do percentual, considerou-se 36 dias, correspondendo à metade da duração média dos contratos (2 anos)
C51: D | D51: Aviso Prévio Trabalhado (Art. 488, parágrafo único, CLT) | E51: ='[2]Encargos Sociais'!E38 -> 0.01083333333 | F51: 130.94 | H51: * Nota 3 - Incide sobre a Remuneração + 13º salário (1/12) + Férias (1/12) + Adicional de Férias (1/36) x 50% multa (40% para o empregado e 10% de contribuição social) x 8% FGTS
C52: E | D52: Incidência de GPS, FGTS e outras contribuições sobre o Aviso Prévio Trabalhado | E52: ='[2]Encargos Sociais'!E39 -> 0.00377 | F52: 45.57 | H52: * Nota 4 - Os 95% restantes do cálculo, a um prazo médio de contrato de 4 anos. Assim, calcula-se 7 dias para o 1º ano de contrato e mais 3 dias para os 3 anos seguintes.
C53: F | D53: Multa do FGTS e Contribuição Social sobre o Aviso Prévio Trabalhado | E53: ='[2]Encargos Sociais'!E40 -> 0.01146666667 | F53: 138.6
D55: TOTAL DE PREVISÃO PARA RESCISÃO | F55: =SUM(F48:F53) -> 374.02
B57: MÓDULO 4 - CUSTO DE REPOSIÇÃO DO PROFISSIONAL AUSENTE | E57: Percentuais | F57: Valor
B58: Submódulo 4.1 - Ausências Legais
C59: A | D59: Férias (Arts. 129 e 130, inc. I, da CLT) | E59: ='[2]Encargos Sociais'!E24 -> 0.09090909091 | F59: =ROUND(E59*$F$16,2) -> 1007.25 | H59: * Nota 1 - As alíneas “A” a “F” referem-se somente ao custo que será pago ao repositor pelos dias trabalhados quando da necessidade de substituir a mão de obra alocada na prestação do serviço.
C60: B | D60: Ausências Legais (Arts. 131 e 473 da CLT) | E60: ='Encargos Sociais'!E25 -> 0.007936507937 | F60: =ROUND(E60*$F$16,2) -> 87.93 | H60: * Nota 2 - Adotou-se a estimativa do SINAPI de 2 dias por ano.
C61: C | D61: Licença-Paternidade (Art. 7º, XIX, e art. 10, §1º, do ADCT, CF/1988 e Art. 1º, II, da Lei 11.770/2008) | E61: ='Encargos Sociais'!E26 -> 0.0008277777778 | F61: 9.17 | H61: * Nota 3 - Utilizada a proporção de 50% para homens, 5 dias de afastamento, e a probabilidade de um trabalhador requerer a Licença Paternidade em 5,22%, conforme SINAPI (citando dados da PNAD 2015)
C62: D | D62: Ausência por Acidente de Trabalho (Art. 131, III, da CLT) | E62: ='Encargos Sociais'!E27 -> 0.0008541666667 | F62: 9.46 | H62: * Nota 4 - Utilzada a estatística de 1,96% dos contribuintes beneficiados com a emissão do auxílio, conforme Anuário Estatístico da Previdência Social. Afastamento de 15 dias a cargo da empresa.
C63: E | D63: Afastamento Maternidade (Art. 71 da Lei nº 8.213/1991) | E63: ='Encargos Sociais'!E28 -> 0.003292592593 | F63: 36.48 | H63: * Nota 5 - Utilizada a proporção de 50% para mulheres, 180 dias de afastamento, e a probabilidade de uma trabalhadora requerer a Licença Maternidade em 4,91%, conforme SINAPI (citando dados do IBGE 2016)
C64: F | D64: Auxílio Enfermidade - Doença (Art. 59 da Lei nº 8.213/1991) | E64: ='Encargos Sociais'!E29 -> 0.007122222222 | F64: 78.91 | H64: * Nota 6 - Utilizada a estatística de 3,37% dos contribuintes beneficiados com o auxílio, conforme Anuário Estatístico da Previdência Social de 2015 (acrescidos de 2 dias ao ano, para os quais o trabalhador nem requer o benefício da Previdência - conforme SINAPI)
B66: Submódulo 4.2 - Intrajornada
C67: A | D67: Intervalo para repouso ou alimentação | E67: ='Encargos Sociais'!E32 -> 0 | F67: =ROUND(E67*$F$16,2) -> 0
D69: QUADRO-RESUMO DO MÓDULO 4 | F69: Valor
D70: 4.1 - Ausências Legais | E70: =SUM(E59:E64) -> 0.1109423581 | F70: =ROUND(E70*$F$16,2) -> 1229.21
D71: 4.2 - Intrajornada | E71: =E67 -> 0 | F71: =ROUND(E71*$F$16,2) -> 0
D73: TOTAL DE PREVISÃO PARA RESCISÃO E INTERVALO INTRAJORNADA | F73: =SUM(F70:F71) -> 1229.21
B75: MÓDULO 5 - INSUMOS DIVERSOS | F75: Valor
C76: A | D76: Uniformes - aquisição | F76: =ROUND(HLOOKUP($B$5,Uniformes!K11:DZ13,3)/12,2) -> 0
C77: B | D77: Materiais de consumo relacionados ao posto - aquisição | F77: =ROUND(HLOOKUP(B5,'Mat Cons'!I11:DX13,3)/12,2) -> 0
C78: C | D78: Materiais permanentes relacionados ao posto - remuneração da sua depreciação / manutenção | F78: =HLOOKUP(B5,'Mat Perm'!Q11:EF13,3) -> 0
C79: D | D79: Equipamentos relacionados ao posto - remuneração da sua depreciação / manutenção | F79: =HLOOKUP(B5,'Equip Rel'!Q11:EF13,3) -> 0
C80: E | D80: Equipamentos de Proteção Individual - EPI - aquisição | F80: =ROUND(HLOOKUP(B5,EPI!I11:DX13,3)/12,2) -> 0
D82: TOTAL DE INSUMOS DIVERSOS | F82: =SUM(F76:F81) -> 0 | H82: * Nota - Valores mensais por empregado
B84: MÓDULO 6 - CUSTOS INDIRETOS, TRIBUTOS E LUCRO - BDI | E84: Percentuais | F84: Valor
C85: A | D85: Custos Indiretos | E85: =BDI!E6 -> 0.061
C86: A.1 | D86: Administração Central | E86: =BDI!E7 -> 0.026
C87: A.2 | D87: Seguros, Garantias e Riscos | E87: =BDI!E8 -> 0.035
C88: B | D88: Lucro | E88: =BDI!E10 -> 0.04
C89: C | D89: Tributos | E89: =SUM(E90:E91) -> 0.124
C90: C.1 | D90: Tributos Federais (COFINS, PIS e CPRB) | E90: =BDI!E18 -> 0.074
C91: C.2 | D91: Tributos Distritais (ISS) | E91: =BDI!E23 -> 0.05 | H91: * Nota - Utilizou-se o indicado pelo Sindicato da Arquitetura e da Engenharia (Sinaenco, 2008, p. 22), que adota um percentual redutor de 20% no cálculo dos custos tributários relativos às contribuições PIS e COFINS
C92: D | D92: Despesas Financeiras | E92: =BDI!E13 -> 0.005251960574
D94: TOTAL DE BDI | E94: =BDI!E26 -> 0.2663 | F94: =E94*E102 -> 4872.696151
D96: QUADRO-RESUMO DO CUSTO MENSAL POR EMPREGADO - SEM O 13º | E96: Valor
D97: Módulo 1 - Composição da Remuneração | E97: =F16 -> 11079.73
D98: Módulo 2 - Encargos e Benefícios Anuais, Mensais e Diários | E98: =F45 -> 5614.81
D99: Módulo 3 - Provisão para Rescisão | E99: =F55 -> 374.02
D100: Módulo 4 - Custo de Reposição do Profissional Ausente | E100: =F73 -> 1229.21
D101: Módulo 5 - Insumos Diversos | E101: =F82 -> 0
D102: SUBTOTAL (A+B+C+D+E) | E102: =SUM(E97:E101) -> 18297.77
D103: Módulo 6 - Custos Indiretos, Tributos e Lucro | E103: =F94 -> 4872.696151
D105: TOTAL DO POSTO | E105: =SUM(E102:E103) -> 23170.46615
B107: MÓDULO 7 - DESTAQUE DO MÓDULO 2 - 13º SALÁRIO | E107: Percentuais | F107: Valor
C108: A | D108: 13º Salário | E108: ='[2]Encargos Sociais'!E31 -> 0.08333333333 | F108: =ROUND(E108*F$16,2) -> 923.31
C109: B | D109: Encargos Sociais sobre o 13º Salário - Taxa calculada no SUBMÓDULO 2.2 | E109: =SUM($E$24:$E$32) -> 0.348 | F109: =ROUND(E109*$F$108,2) -> 321.31 | H109: * Nota 1 - Provisiona-se, mensalmente, o proporcional a 1/12 dos valores referentes a gratificação natalina
C110: C | D110: Reincidência de férias sobre o 13º Salário | E110: =E59 -> 0.09090909091 | F110: =ROUND(E110*$F$108,2) -> 83.94
C111: D | D111: BDI sobre o 13º Salário - Taxa calculada no MÓDULO 6 | E111: =E94 -> 0.2663 | F111: =ROUND(E111*($F$108+$F$109+$F$110),2) -> 353.8
D113: TOTAL DO DESTAQUE DO 13º SALÁRIO | F113: =SUM(F108:F111) -> 1682.36
D115: QUADRO-RESUMO DO CUSTO MENSAL POR EMPREGADO | E115: Valor
D116: Custo total - sem o 13º Salário | E116: =E105 -> 23170.46615
D117: Destaque do 13º Salário (valor mensal) | E117: =F113 -> 1682.36
D119: TOTAL DO POSTO | E119: =E116+E117 -> 24852.82615

Sheet 5
B2: PLANILHA DE ESTIMATIVA DE CUSTOS
B3: Padrão IN 05/2017 e IN 07/2018 - MPDG
B5: 5 | D5: =HLOOKUP($B$5,'Dados Gerais'!$D$5:$BH$21,6) -> Analista de TI - Planejamento e Processos Digitais - sênior | E5: QUANTIDADE | F5: =HLOOKUP($B$5,'Dados Gerais'!$D$5:$BH$21,10) -> 4
B6: CCT | D6: =HLOOKUP($B$5,'Dados Gerais'!$D$5:$BH$21,16) -> SINDPD/DF X SINDESEI/DF 2021/2022 Nº DF000608/2021 | E6: DATA-BASE | F6: =HLOOKUP($B$5,'Dados Gerais'!$D$5:$BH$21,17) -> 2021-05-01
B8: MÓDULO 1 - COMPOSIÇÃO DA REMUNERAÇÃO | F8: Valor
C9: A | D9: Salário-Base | F9: =HLOOKUP($B$5,'Dados Gerais'!$D$5:$BH$21,8) -> 8369.94
C10: B | D10: Adicional de Periculosidade | F10: =HLOOKUP($B$5,'Dados Gerais'!$D$5:$BH$38,25) -> 0
C11: C | D11: Adicional de Insalubridade | F11: =HLOOKUP($B$5,'Dados Gerais'!$D$5:$BH$38,27) -> 0
C12: D | D12: Adicional Noturno | F12: =HLOOKUP($B$5,'Dados Gerais'!$D$5:$BH$51,46) -> 0 | H12: * Nota 1 - O Módulo 1 refere-se ao valor mensal devido ao empregado pela prestação do serviço no período de 12 meses.
C13: E | D13: Adicional de Hora Extra | F13: =HLOOKUP($B$5,'Dados Gerais'!$D$5:$BH$68,63) -> 0 | H13: * Nota 2 - O adicional de hora extra no feriado trabalhado foi suprimido pela Lei 13.467/17
C14: F | D14: Outros (especificar) | F14: =HLOOKUP($B$5,'Dados Gerais'!$D$5:$BH$60,33) -> 0 | H14: * Nota 3 - ART. 7º, § 2º, DA LEI Nº 605/49.Sendo mensalista o obreiro, o adicional noturno pago de forma fixa já é considerado integrado para os efeitos do pagamento do repouso semanal remunerado, nos termos do art. 7º, § 2º, da Lei nº 605/49.
D16: TOTAL DA REMUNERAÇÃO | F16: =SUM(F9:F14) -> 8369.94
B18: MÓDULO 2 - ENCARGOS E BENEFÍCIOS ANUAIS, MENSAIS E DIÁRIOS | E18: Percentuais | F18: Valor
B19: Submódulo 2.1 - 13º Salário, Férias e Adicional de Férias
C20: A | D20: 13º Salário - Calculado no Módulo 7 - Destacado | E20: 0 | F20: =ROUND(E20*F$16,2) -> 0 | H20: * Nota 1 - Provisiona-se, mensalmente, o proporcional a 1/12 dos valores referentes a gratificação natalina
C21: B | D21: Adicional de Férias | E21: ='[2]Encargos Sociais'!E30 -> 0.0303030303 | F21: =ROUND(E21*F$16,2) -> 253.63 | H21: * Nota 2 - O adicional de férias contido no Submódulo 2.1 corresponde a 1/3 da remuneração que, por sua vez, é dividida por 12 contome Nota 1.
B23: Submódulo 2.2 - Encargos Previdenciários (GPS), Fundo de Garantia por Tempo de Serviço (FGTS) e Outras Contribuições
C24: A | D24: INSS (art. 22, inciso I, Lei nº 8.212/91) | E24: ='Encargos Sociais'!E13 -> 0.2 | F24: =ROUND(E24*($F$16+$F$41+$F$73),2) -> 1910.43
C25: B | D25: Salário Educação (art. 3º, inciso I, Decreto nº 87.043/82) | E25: ='Encargos Sociais'!E14 -> 0.025 | F25: =ROUND(E25*($F$16+$F$41+$F$73),2) -> 238.8
C26: C | D26: SAT/RAT (art. 22, II, Lei 8.212/91 e Anexo V, Decreto 6.042/07) - Enquadramento 8211-3/00 | E26: ='Encargos Sociais'!E15 -> 0.01 | F26: 95.52
C27: D | D27: SESC ou SESI (art. 30, Lei nº 8.036/90 e art. 1º, Lei 8.154/90) | E27: ='Encargos Sociais'!E16 -> 0.015 | F27: 143.28
C28: E | D28: SENAI ou SENAC (Decreto nº 2.318/86) | E28: ='Encargos Sociais'!E17 -> 0.01 | F28: 95.52
C29: F | D29: SEBRAE (§ 3º, art. 8º, Lei 8.029/90, alterada pela Lei nº 8.154/90) | E29: ='Encargos Sociais'!E18 -> 0.006 | F29: 57.31
C30: G | D30: INCRA (art. 1º, I, Decreto Lei 1.146/70 e Lei 7.787, de 30/06/89) | E30: ='Encargos Sociais'!E19 -> 0.002 | F30: 19.1 | H30: * Nota 1 - Os percentuais dos encargos previdenciários, do FGTS e demais contribuições são estabelecidos por legislação vigente.
C31: H | D31: FGTS (Lei Complementar nº 110/01 e art. 30, Lei nº 8.036/90) | E31: ='Encargos Sociais'!E20 -> 0.08 | F31: 764.17 | H31: * Nota 2 - O SAT, a depender do grau de risco do serviço, irá variar entre 1%, para risco leve, de 2%, para risco médio, e de 3% para risco grave.
C32: I | D32: SECONCI (Convenções Coletivas de Trabalho da construção) | E32: ='Encargos Sociais'!E21 -> 0 | F32: 0 | H32: * Nota 3 - Os percentuais do Submódulo 2.2 incidem sobre o Módulo 1 e o Submódulo 2.1.
B34: Submódulo 2.3 - Benefícios Mensais e Diários
C35: A | D35: Auxílio Transporte | F35: =HLOOKUP($B$5,'Dados Gerais'!$D$5:$BH$94,83) -> 0
C36: B | D36: Auxílio Alimentação | F36: =HLOOKUP($B$5,'Dados Gerais'!$D$5:$BH$94,90) -> 770
C37: C | D37: Assistência Médica e Familiar | F37: =HLOOKUP($B$5,'Dados Gerais'!$D$5:$BH$102,98) -> 96.3
C38: D | D38: Outros (Seguro de vida e auxílio funeral e auxílio odontológico) | F38: =HLOOKUP($B$5,'Dados Gerais'!$D$5:$BH$119,115) -> 12.39 | H38: * Nota 1 - O valor informado deverá ser o custo real do benefício (descontado o valor eventualmente pago pelo empregado).
H39: * Nota 2 - Observar a previsão dos benefícios contidos em Acordos, Convenções e Dissídios Coletivos de Trabalho e o disposto no art. 6º da IN 5/2017
D40: QUADRO-RESUMO DO MÓDULO 2
D41: 2.1 - 13º Salário, Férias e Adicional de Férias - 13º Destacado - Calculado no Módulo 7 | E41: =SUM(E20:E21) -> 0.0303030303 | F41: =F20+F21 -> 253.63
D42: 2.2 - Encargos Previdenciários (GPS), Fundo de Garantia por Tempo de Serviço (FGTS) e Contribuições | E42: =SUM(E24:E32) -> 0.348 | F42: =SUM(F24:F32) -> 3324.13
D43: 2.3 - Benefícios Mensais e Diários | F43: =SUM(F35:F38) -> 878.69
D45: TOTAL DOS ENCARGOS E BENEFÍCIOS | F45: =SUM(F41:F43) -> 4456.45
B47: MÓDULO 3 - PREVISÃO PARA RESCISÃO | E47: Percentuais | F47: Valor
C48: A | D48: Aviso Prévio Indenizado (Art. 7º, inciso XXI, da CF/1988 e arts. 477, 487, §1º, e 491 da CLT) | E48: ='[2]Encargos Sociais'!E35 -> 0.003333333333 | F48: =ROUND(E48*($F$16+$F$59),2) -> 30.44
C49: B | D49: Incidência do FGTS sobre o Aviso Prévio Indenizado (Súmula 305 TST) | E49: ='[2]Encargos Sociais'!E36 -> 0.0002666666667 | F49: 2.43 | H49: * Nota 1 - Adotou-se os parâmetros do estudo do STF (http://www.stf.jus.br/arquivo/cms/sobrestfestudosci/anexo/encargos_sociais_03102007.pdf), onde 5% do pessoal é demitido pelo empregador no decurso do contrato (para estes, considerou-se o aviso prévio indenizado). Desprezou-se as demissões por justa causa e os pedidos de demissão.
C50: C | D50: Multa do FGTS e Contribuição Social sobre o Aviso Prévio Indenizado (Art. 18, §1º, da Lei 8.036/1990 e art. 1º da LC nº 110/2001) | E50: ='[2]Encargos Sociais'!E37 -> 0.001274074074 | F50: 11.63 | H50: * Nota 2 - No cálculo do percentual, considerou-se 36 dias, correspondendo à metade da duração média dos contratos (2 anos)
C51: D | D51: Aviso Prévio Trabalhado (Art. 488, parágrafo único, CLT) | E51: ='[2]Encargos Sociais'!E38 -> 0.01083333333 | F51: 98.92 | H51: * Nota 3 - Incide sobre a Remuneração + 13º salário (1/12) + Férias (1/12) + Adicional de Férias (1/36) x 50% multa (40% para o empregado e 10% de contribuição social) x 8% FGTS
C52: E | D52: Incidência de GPS, FGTS e outras contribuições sobre o Aviso Prévio Trabalhado | E52: ='[2]Encargos Sociais'!E39 -> 0.00377 | F52: 34.42 | H52: * Nota 4 - Os 95% restantes do cálculo, a um prazo médio de contrato de 4 anos. Assim, calcula-se 7 dias para o 1º ano de contrato e mais 3 dias para os 3 anos seguintes.
C53: F | D53: Multa do FGTS e Contribuição Social sobre o Aviso Prévio Trabalhado | E53: ='[2]Encargos Sociais'!E40 -> 0.01146666667 | F53: 104.7
D55: TOTAL DE PREVISÃO PARA RESCISÃO | F55: =SUM(F48:F53) -> 282.54
B57: MÓDULO 4 - CUSTO DE REPOSIÇÃO DO PROFISSIONAL AUSENTE | E57: Percentuais | F57: Valor
B58: Submódulo 4.1 - Ausências Legais
C59: A | D59: Férias (Arts. 129 e 130, inc. I, da CLT) | E59: ='[2]Encargos Sociais'!E24 -> 0.09090909091 | F59: =ROUND(E59*$F$16,2) -> 760.9 | H59: * Nota 1 - As alíneas “A” a “F” referem-se somente ao custo que será pago ao repositor pelos dias trabalhados quando da necessidade de substituir a mão de obra alocada na prestação do serviço.
C60: B | D60: Ausências Legais (Arts. 131 e 473 da CLT) | E60: ='Encargos Sociais'!E25 -> 0.007936507937 | F60: =ROUND(E60*$F$16,2) -> 66.43 | H60: * Nota 2 - Adotou-se a estimativa do SINAPI de 2 dias por ano.
C61: C | D61: Licença-Paternidade (Art. 7º, XIX, e art. 10, §1º, do ADCT, CF/1988 e Art. 1º, II, da Lei 11.770/2008) | E61: ='Encargos Sociais'!E26 -> 0.0008277777778 | F61: 6.93 | H61: * Nota 3 - Utilizada a proporção de 50% para homens, 5 dias de afastamento, e a probabilidade de um trabalhador requerer a Licença Paternidade em 5,22%, conforme SINAPI (citando dados da PNAD 2015)
C62: D | D62: Ausência por Acidente de Trabalho (Art. 131, III, da CLT) | E62: ='Encargos Sociais'!E27 -> 0.0008541666667 | F62: 7.15 | H62: * Nota 4 - Utilzada a estatística de 1,96% dos contribuintes beneficiados com a emissão do auxílio, conforme Anuário Estatístico da Previdência Social. Afastamento de 15 dias a cargo da empresa.
C63: E | D63: Afastamento Maternidade (Art. 71 da Lei nº 8.213/1991) | E63: ='Encargos Sociais'!E28 -> 0.003292592593 | F63: 27.56 | H63: * Nota 5 - Utilizada a proporção de 50% para mulheres, 180 dias de afastamento, e a probabilidade de uma trabalhadora requerer a Licença Maternidade em 4,91%, conforme SINAPI (citando dados do IBGE 2016)
C64: F | D64: Auxílio Enfermidade - Doença (Art. 59 da Lei nº 8.213/1991) | E64: ='Encargos Sociais'!E29 -> 0.007122222222 | F64: 59.61 | H64: * Nota 6 - Utilizada a estatística de 3,37% dos contribuintes beneficiados com o auxílio, conforme Anuário Estatístico da Previdência Social de 2015 (acrescidos de 2 dias ao ano, para os quais o trabalhador nem requer o benefício da Previdência - conforme SINAPI)
B66: Submódulo 4.2 - Intrajornada
C67: A | D67: Intervalo para repouso ou alimentação | E67: ='Encargos Sociais'!E32 -> 0 | F67: =ROUND(E67*$F$16,2) -> 0
D69: QUADRO-RESUMO DO MÓDULO 4 | F69: Valor
D70: 4.1 - Ausências Legais | E70: =SUM(E59:E64) -> 0.1109423581 | F70: =ROUND(E70*$F$16,2) -> 928.58
D71: 4.2 - Intrajornada | E71: =E67 -> 0 | F71: =ROUND(E71*$F$16,2) -> 0
D73: TOTAL DE PREVISÃO PARA RESCISÃO E INTERVALO INTRAJORNADA | F73: =SUM(F70:F71) -> 928.58
B75: MÓDULO 5 - INSUMOS DIVERSOS | F75: Valor
C76: A | D76: Uniformes - aquisição | F76: =ROUND(HLOOKUP($B$5,Uniformes!K11:DZ13,3)/12,2) -> 0
C77: B | D77: Materiais de consumo relacionados ao posto - aquisição | F77: =ROUND(HLOOKUP(B5,'Mat Cons'!I11:DX13,3)/12,2) -> 0
C78: C | D78: Materiais permanentes relacionados ao posto - remuneração da sua depreciação / manutenção | F78: =HLOOKUP(B5,'Mat Perm'!Q11:EF13,3) -> 0
C79: D | D79: Equipamentos relacionados ao posto - remuneração da sua depreciação / manutenção | F79: =HLOOKUP(B5,'Equip Rel'!Q11:EF13,3) -> 0
C80: E | D80: Equipamentos de Proteção Individual - EPI - aquisição | F80: =ROUND(HLOOKUP(B5,EPI!I11:DX13,3)/12,2) -> 0
D82: TOTAL DE INSUMOS DIVERSOS | F82: =SUM(F76:F81) -> 0 | H82: * Nota - Valores mensais por empregado
B84: MÓDULO 6 - CUSTOS INDIRETOS, TRIBUTOS E LUCRO - BDI | E84: Percentuais | F84: Valor
C85: A | D85: Custos Indiretos | E85: =BDI!E6 -> 0.061
C86: A.1 | D86: Administração Central | E86: =BDI!E7 -> 0.026
C87: A.2 | D87: Seguros, Garantias e Riscos | E87: =BDI!E8 -> 0.035
C88: B | D88: Lucro | E88: =BDI!E10 -> 0.04
C89: C | D89: Tributos | E89: =SUM(E90:E91) -> 0.124
C90: C.1 | D90: Tributos Federais (COFINS, PIS e CPRB) | E90: =BDI!E18 -> 0.074
C91: C.2 | D91: Tributos Distritais (ISS) | E91: =BDI!E23 -> 0.05 | H91: * Nota - Utilizou-se o indicado pelo Sindicato da Arquitetura e da Engenharia (Sinaenco, 2008, p. 22), que adota um percentual redutor de 20% no cálculo dos custos tributários relativos às contribuições PIS e COFINS
C92: D | D92: Despesas Financeiras | E92: =BDI!E13 -> 0.005251960574
D94: TOTAL DE BDI | E94: =BDI!E26 -> 0.2663 | F94: =E94*E102 -> 3738.188913
D96: QUADRO-RESUMO DO CUSTO MENSAL POR EMPREGADO - SEM O 13º | E96: Valor
D97: Módulo 1 - Composição da Remuneração | E97: =F16 -> 8369.94
D98: Módulo 2 - Encargos e Benefícios Anuais, Mensais e Diários | E98: =F45 -> 4456.45
D99: Módulo 3 - Provisão para Rescisão | E99: =F55 -> 282.54
D100: Módulo 4 - Custo de Reposição do Profissional Ausente | E100: =F73 -> 928.58
D101: Módulo 5 - Insumos Diversos | E101: =F82 -> 0
D102: SUBTOTAL (A+B+C+D+E) | E102: =SUM(E97:E101) -> 14037.51
D103: Módulo 6 - Custos Indiretos, Tributos e Lucro | E103: =F94 -> 3738.188913
D105: TOTAL DO POSTO | E105: =SUM(E102:E103) -> 17775.69891
B107: MÓDULO 7 - DESTAQUE DO MÓDULO 2 - 13º SALÁRIO | E107: Percentuais | F107: Valor
C108: A | D108: 13º Salário | E108: ='[2]Encargos Sociais'!E31 -> 0.08333333333 | F108: =ROUND(E108*F$16,2) -> 697.5
C109: B | D109: Encargos Sociais sobre o 13º Salário - Taxa calculada no SUBMÓDULO 2.2 | E109: =SUM($E$24:$E$32) -> 0.348 | F109: =ROUND(E109*$F$108,2) -> 242.73 | H109: * Nota 1 - Provisiona-se, mensalmente, o proporcional a 1/12 dos valores referentes a gratificação natalina
C110: C | D110: Reincidência de férias sobre o 13º Salário | E110: =E59 -> 0.09090909091 | F110: =ROUND(E110*$F$108,2) -> 63.41
C111: D | D111: BDI sobre o 13º Salário - Taxa calculada no MÓDULO 6 | E111: =E94 -> 0.2663 | F111: =ROUND(E111*($F$108+$F$109+$F$110),2) -> 267.27
D113: TOTAL DO DESTAQUE DO 13º SALÁRIO | F113: =SUM(F108:F111) -> 1270.91
D115: QUADRO-RESUMO DO CUSTO MENSAL POR EMPREGADO | E115: Valor
D116: Custo total - sem o 13º Salário | E116: =E105 -> 17775.69891
D117: Destaque do 13º Salário (valor mensal) | E117: =F113 -> 1270.91
D119: TOTAL DO POSTO | E119: =E116+E117 -> 19046.60891

Sheet 6
B2: PLANILHA DE ESTIMATIVA DE CUSTOS
B3: Padrão IN 05/2017 e IN 07/2018 - MPDG
B5: 6 | D5: =HLOOKUP($B$5,'Dados Gerais'!$D$5:$BH$21,6) -> Analista de Design e Cultura Digital - sênior | E5: QUANTIDADE | F5: =HLOOKUP($B$5,'Dados Gerais'!$D$5:$BH$21,10) -> 2
B6: CCT | D6: =HLOOKUP($B$5,'Dados Gerais'!$D$5:$BH$21,16) -> SINDPD/DF X SINDESEI/DF 2021/2022 Nº DF000608/2021 | E6: DATA-BASE | F6: =HLOOKUP($B$5,'Dados Gerais'!$D$5:$BH$21,17) -> 2021-05-01
B8: MÓDULO 1 - COMPOSIÇÃO DA REMUNERAÇÃO | F8: Valor
C9: A | D9: Salário-Base | F9: =HLOOKUP($B$5,'Dados Gerais'!$D$5:$BH$21,8) -> 7036.27
C10: B | D10: Adicional de Periculosidade | F10: =HLOOKUP($B$5,'Dados Gerais'!$D$5:$BH$38,25) -> 0
C11: C | D11: Adicional de Insalubridade | F11: =HLOOKUP($B$5,'Dados Gerais'!$D$5:$BH$38,27) -> 0
C12: D | D12: Adicional Noturno | F12: =HLOOKUP($B$5,'Dados Gerais'!$D$5:$BH$51,46) -> 0 | H12: * Nota 1 - O Módulo 1 refere-se ao valor mensal devido ao empregado pela prestação do serviço no período de 12 meses.
C13: E | D13: Adicional de Hora Extra | F13: =HLOOKUP($B$5,'Dados Gerais'!$D$5:$BH$68,63) -> 0 | H13: * Nota 2 - O adicional de hora extra no feriado trabalhado foi suprimido pela Lei 13.467/17
C14: F | D14: Outros (especificar) | F14: =HLOOKUP($B$5,'Dados Gerais'!$D$5:$BH$60,33) -> 0 | H14: * Nota 3 - ART. 7º, § 2º, DA LEI Nº 605/49.Sendo mensalista o obreiro, o adicional noturno pago de forma fixa já é considerado integrado para os efeitos do pagamento do repouso semanal remunerado, nos termos do art. 7º, § 2º, da Lei nº 605/49.
D16: TOTAL DA REMUNERAÇÃO | F16: =SUM(F9:F14) -> 7036.27
B18: MÓDULO 2 - ENCARGOS E BENEFÍCIOS ANUAIS, MENSAIS E DIÁRIOS | E18: Percentuais | F18: Valor
B19: Submódulo 2.1 - 13º Salário, Férias e Adicional de Férias
C20: A | D20: 13º Salário - Calculado no Módulo 7 - Destacado | E20: 0 | F20: =ROUND(E20*F$16,2) -> 0 | H20: * Nota 1 - Provisiona-se, mensalmente, o proporcional a 1/12 dos valores referentes a gratificação natalina
C21: B | D21: Adicional de Férias | E21: ='[2]Encargos Sociais'!E30 -> 0.0303030303 | F21: =ROUND(E21*F$16,2) -> 213.22 | H21: * Nota 2 - O adicional de férias contido no Submódulo 2.1 corresponde a 1/3 da remuneração que, por sua vez, é dividida por 12 contome Nota 1.
B23: Submódulo 2.2 - Encargos Previdenciários (GPS), Fundo de Garantia por Tempo de Serviço (FGTS) e Outras Contribuições
C24: A | D24: INSS (art. 22, inciso I, Lei nº 8.212/91) | E24: ='Encargos Sociais'!E13 -> 0.2 | F24: =ROUND(E24*($F$16+$F$41+$F$73),2) -> 1606.02
C25: B | D25: Salário Educação (art. 3º, inciso I, Decreto nº 87.043/82) | E25: ='Encargos Sociais'!E14 -> 0.025 | F25: =ROUND(E25*($F$16+$F$41+$F$73),2) -> 200.75
C26: C | D26: SAT/RAT (art. 22, II, Lei 8.212/91 e Anexo V, Decreto 6.042/07) - Enquadramento 8211-3/00 | E26: ='Encargos Sociais'!E15 -> 0.01 | F26: 80.3
C27: D | D27: SESC ou SESI (art. 30, Lei nº 8.036/90 e art. 1º, Lei 8.154/90) | E27: ='Encargos Sociais'!E16 -> 0.015 | F27: 120.45
C28: E | D28: SENAI ou SENAC (Decreto nº 2.318/86) | E28: ='Encargos Sociais'!E17 -> 0.01 | F28: 80.3
C29: F | D29: SEBRAE (§ 3º, art. 8º, Lei 8.029/90, alterada pela Lei nº 8.154/90) | E29: ='Encargos Sociais'!E18 -> 0.006 | F29: 48.18
C30: G | D30: INCRA (art. 1º, I, Decreto Lei 1.146/70 e Lei 7.787, de 30/06/89) | E30: ='Encargos Sociais'!E19 -> 0.002 | F30: 16.06 | H30: * Nota 1 - Os percentuais dos encargos previdenciários, do FGTS e demais contribuições são estabelecidos por legislação vigente.
C31: H | D31: FGTS (Lei Complementar nº 110/01 e art. 30, Lei nº 8.036/90) | E31: ='Encargos Sociais'!E20 -> 0.08 | F31: 642.41 | H31: * Nota 2 - O SAT, a depender do grau de risco do serviço, irá variar entre 1%, para risco leve, de 2%, para risco médio, e de 3% para risco grave.
C32: I | D32: SECONCI (Convenções Coletivas de Trabalho da construção) | E32: ='Encargos Sociais'!E21 -> 0 | F32: 0 | H32: * Nota 3 - Os percentuais do Submódulo 2.2 incidem sobre o Módulo 1 e o Submódulo 2.1.
B34: Submódulo 2.3 - Benefícios Mensais e Diários
C35: A | D35: Auxílio Transporte | F35: =HLOOKUP($B$5,'Dados Gerais'!$D$5:$BH$94,83) -> 0
C36: B | D36: Auxílio Alimentação | F36: =HLOOKUP($B$5,'Dados Gerais'!$D$5:$BH$94,90) -> 770
C37: C | D37: Assistência Médica e Familiar | F37: =HLOOKUP($B$5,'Dados Gerais'!$D$5:$BH$102,98) -> 96.3
C38: D | D38: Outros (Seguro de vida e auxílio funeral e auxílio odontológico) | F38: =HLOOKUP($B$5,'Dados Gerais'!$D$5:$BH$119,115) -> 12.39 | H38: * Nota 1 - O valor informado deverá ser o custo real do benefício (descontado o valor eventualmente pago pelo empregado).
H39: * Nota 2 - Observar a previsão dos benefícios contidos em Acordos, Convenções e Dissídios Coletivos de Trabalho e o disposto no art. 6º da IN 5/2017
D40: QUADRO-RESUMO DO MÓDULO 2
D41: 2.1 - 13º Salário, Férias e Adicional de Férias - 13º Destacado - Calculado no Módulo 7 | E41: =SUM(E20:E21) -> 0.0303030303 | F41: =F20+F21 -> 213.22
D42: 2.2 - Encargos Previdenciários (GPS), Fundo de Garantia por Tempo de Serviço (FGTS) e Contribuições | E42: =SUM(E24:E32) -> 0.348 | F42: =SUM(F24:F32) -> 2794.47
D43: 2.3 - Benefícios Mensais e Diários | F43: =SUM(F35:F38) -> 878.69
D45: TOTAL DOS ENCARGOS E BENEFÍCIOS | F45: =SUM(F41:F43) -> 3886.38
B47: MÓDULO 3 - PREVISÃO PARA RESCISÃO | E47: Percentuais | F47: Valor
C48: A | D48: Aviso Prévio Indenizado (Art. 7º, inciso XXI, da CF/1988 e arts. 477, 487, §1º, e 491 da CLT) | E48: ='[2]Encargos Sociais'!E35 -> 0.003333333333 | F48: =ROUND(E48*($F$16+$F$59),2) -> 25.59
C49: B | D49: Incidência do FGTS sobre o Aviso Prévio Indenizado (Súmula 305 TST) | E49: ='[2]Encargos Sociais'!E36 -> 0.0002666666667 | F49: 2.05 | H49: * Nota 1 - Adotou-se os parâmetros do estudo do STF (http://www.stf.jus.br/arquivo/cms/sobrestfestudosci/anexo/encargos_sociais_03102007.pdf), onde 5% do pessoal é demitido pelo empregador no decurso do contrato (para estes, considerou-se o aviso prévio indenizado). Desprezou-se as demissões por justa causa e os pedidos de demissão.
C50: C | D50: Multa do FGTS e Contribuição Social sobre o Aviso Prévio Indenizado (Art. 18, §1º, da Lei 8.036/1990 e art. 1º da LC nº 110/2001) | E50: ='[2]Encargos Sociais'!E37 -> 0.001274074074 | F50: 9.78 | H50: * Nota 2 - No cálculo do percentual, considerou-se 36 dias, correspondendo à metade da duração média dos contratos (2 anos)
C51: D | D51: Aviso Prévio Trabalhado (Art. 488, parágrafo único, CLT) | E51: ='[2]Encargos Sociais'!E38 -> 0.01083333333 | F51: 83.16 | H51: * Nota 3 - Incide sobre a Remuneração + 13º salário (1/12) + Férias (1/12) + Adicional de Férias (1/36) x 50% multa (40% para o empregado e 10% de contribuição social) x 8% FGTS
C52: E | D52: Incidência de GPS, FGTS e outras contribuições sobre o Aviso Prévio Trabalhado | E52: ='[2]Encargos Sociais'!E39 -> 0.00377 | F52: 28.94 | H52: * Nota 4 - Os 95% restantes do cálculo, a um prazo médio de contrato de 4 anos. Assim, calcula-se 7 dias para o 1º ano de contrato e mais 3 dias para os 3 anos seguintes.
C53: F | D53: Multa do FGTS e Contribuição Social sobre o Aviso Prévio Trabalhado | E53: ='[2]Encargos Sociais'!E40 -> 0.01146666667 | F53: 88.02
D55: TOTAL DE PREVISÃO PARA RESCISÃO | F55: =SUM(F48:F53) -> 237.54
B57: MÓDULO 4 - CUSTO DE REPOSIÇÃO DO PROFISSIONAL AUSENTE | E57: Percentuais | F57: Valor
B58: Submódulo 4.1 - Ausências Legais
C59: A | D59: Férias (Arts. 129 e 130, inc. I, da CLT) | E59: ='[2]Encargos Sociais'!E24 -> 0.09090909091 | F59: =ROUND(E59*$F$16,2) -> 639.66 | H59: * Nota 1 - As alíneas “A” a “F” referem-se somente ao custo que será pago ao repositor pelos dias trabalhados quando da necessidade de substituir a mão de obra alocada na prestação do serviço.
C60: B | D60: Ausências Legais (Arts. 131 e 473 da CLT) | E60: ='Encargos Sociais'!E25 -> 0.007936507937 | F60: =ROUND(E60*$F$16,2) -> 55.84 | H60: * Nota 2 - Adotou-se a estimativa do SINAPI de 2 dias por ano.
C61: C | D61: Licença-Paternidade (Art. 7º, XIX, e art. 10, §1º, do ADCT, CF/1988 e Art. 1º, II, da Lei 11.770/2008) | E61: ='Encargos Sociais'!E26 -> 0.0008277777778 | F61: 5.82 | H61: * Nota 3 - Utilizada a proporção de 50% para homens, 5 dias de afastamento, e a probabilidade de um trabalhador requerer a Licença Paternidade em 5,22%, conforme SINAPI (citando dados da PNAD 2015)
C62: D | D62: Ausência por Acidente de Trabalho (Art. 131, III, da CLT) | E62: ='Encargos Sociais'!E27 -> 0.0008541666667 | F62: 6.01 | H62: * Nota 4 - Utilzada a estatística de 1,96% dos contribuintes beneficiados com a emissão do auxílio, conforme Anuário Estatístico da Previdência Social. Afastamento de 15 dias a cargo da empresa.
C63: E | D63: Afastamento Maternidade (Art. 71 da Lei nº 8.213/1991) | E63: ='Encargos Sociais'!E28 -> 0.003292592593 | F63: 23.17 | H63: * Nota 5 - Utilizada a proporção de 50% para mulheres, 180 dias de afastamento, e a probabilidade de uma trabalhadora requerer a Licença Maternidade em 4,91%, conforme SINAPI (citando dados do IBGE 2016)
C64: F | D64: Auxílio Enfermidade - Doença (Art. 59 da Lei nº 8.213/1991) | E64: ='Encargos Sociais'!E29 -> 0.007122222222 | F64: 50.11 | H64: * Nota 6 - Utilizada a estatística de 3,37% dos contribuintes beneficiados com o auxílio, conforme Anuário Estatístico da Previdência Social de 2015 (acrescidos de 2 dias ao ano, para os quais o trabalhador nem requer o benefício da Previdência - conforme SINAPI)
B66: Submódulo 4.2 - Intrajornada
C67: A | D67: Intervalo para repouso ou alimentação | E67: ='Encargos Sociais'!E32 -> 0 | F67: =ROUND(E67*$F$16,2) -> 0
D69: QUADRO-RESUMO DO MÓDULO 4 | F69: Valor
D70: 4.1 - Ausências Legais | E70: =SUM(E59:E64) -> 0.1109423581 | F70: =ROUND(E70*$F$16,2) -> 780.62
D71: 4.2 - Intrajornada | E71: =E67 -> 0 | F71: =ROUND(E71*$F$16,2) -> 0
D73: TOTAL DE PREVISÃO PARA RESCISÃO E INTERVALO INTRAJORNADA | F73: =SUM(F70:F71) -> 780.62
B75: MÓDULO 5 - INSUMOS DIVERSOS | F75: Valor
C76: A | D76: Uniformes - aquisição | F76: =ROUND(HLOOKUP($B$5,Uniformes!K11:DZ13,3)/12,2) -> 0
C77: B | D77: Materiais de consumo relacionados ao posto - aquisição | F77: =ROUND(HLOOKUP(B5,'Mat Cons'!I11:DX13,3)/12,2) -> 0
C78: C | D78: Materiais permanentes relacionados ao posto - remuneração da sua depreciação / manutenção | F78: =HLOOKUP(B5,'Mat Perm'!Q11:EF13,3) -> 0
C79: D | D79: Equipamentos relacionados ao posto - remuneração da sua depreciação / manutenção | F79: =HLOOKUP(B5,'Equip Rel'!Q11:EF13,3) -> 0
C80: E | D80: Equipamentos de Proteção Individual - EPI - aquisição | F80: =ROUND(HLOOKUP(B5,EPI!I11:DX13,3)/12,2) -> 0
D82: TOTAL DE INSUMOS DIVERSOS | F82: =SUM(F76:F81) -> 0 | H82: * Nota - Valores mensais por empregado
B84: MÓDULO 6 - CUSTOS INDIRETOS, TRIBUTOS E LUCRO - BDI | E84: Percentuais | F84: Valor
C85: A | D85: Custos Indiretos | E85: =BDI!E6 -> 0.061
C86: A.1 | D86: Administração Central | E86: =BDI!E7 -> 0.026
C87: A.2 | D87: Seguros, Garantias e Riscos | E87: =BDI!E8 -> 0.035
C88: B | D88: Lucro | E88: =BDI!E10 -> 0.04
C89: C | D89: Tributos | E89: =SUM(E90:E91) -> 0.124
C90: C.1 | D90: Tributos Federais (COFINS, PIS e CPRB) | E90: =BDI!E18 -> 0.074
C91: C.2 | D91: Tributos Distritais (ISS) | E91: =BDI!E23 -> 0.05 | H91: * Nota - Utilizou-se o indicado pelo Sindicato da Arquitetura e da Engenharia (Sinaenco, 2008, p. 22), que adota um percentual redutor de 20% no cálculo dos custos tributários relativos às contribuições PIS e COFINS
C92: D | D92: Despesas Financeiras | E92: =BDI!E13 -> 0.005251960574
D94: TOTAL DE BDI | E94: =BDI!E26 -> 0.2663 | F94: =E94*E102 -> 3179.837703
D96: QUADRO-RESUMO DO CUSTO MENSAL POR EMPREGADO - SEM O 13º | E96: Valor
D97: Módulo 1 - Composição da Remuneração | E97: =F16 -> 7036.27
D98: Módulo 2 - Encargos e Benefícios Anuais, Mensais e Diários | E98: =F45 -> 3886.38
D99: Módulo 3 - Provisão para Rescisão | E99: =F55 -> 237.54
D100: Módulo 4 - Custo de Reposição do Profissional Ausente | E100: =F73 -> 780.62
D101: Módulo 5 - Insumos Diversos | E101: =F82 -> 0
D102: SUBTOTAL (A+B+C+D+E) | E102: =SUM(E97:E101) -> 11940.81
D103: Módulo 6 - Custos Indiretos, Tributos e Lucro | E103: =F94 -> 3179.837703
D105: TOTAL DO POSTO | E105: =SUM(E102:E103) -> 15120.6477
B107: MÓDULO 7 - DESTAQUE DO MÓDULO 2 - 13º SALÁRIO | E107: Percentuais | F107: Valor
C108: A | D108: 13º Salário | E108: ='[2]Encargos Sociais'!E31 -> 0.08333333333 | F108: =ROUND(E108*F$16,2) -> 586.36
C109: B | D109: Encargos Sociais sobre o 13º Salário - Taxa calculada no SUBMÓDULO 2.2 | E109: =SUM($E$24:$E$32) -> 0.348 | F109: =ROUND(E109*$F$108,2) -> 204.05 | H109: * Nota 1 - Provisiona-se, mensalmente, o proporcional a 1/12 dos valores referentes a gratificação natalina
C110: C | D110: Reincidência de férias sobre o 13º Salário | E110: =E59 -> 0.09090909091 | F110: =ROUND(E110*$F$108,2) -> 53.31
C111: D | D111: BDI sobre o 13º Salário - Taxa calculada no MÓDULO 6 | E111: =E94 -> 0.2663 | F111: =ROUND(E111*($F$108+$F$109+$F$110),2) -> 224.68
D113: TOTAL DO DESTAQUE DO 13º SALÁRIO | F113: =SUM(F108:F111) -> 1068.4
D115: QUADRO-RESUMO DO CUSTO MENSAL POR EMPREGADO | E115: Valor
D116: Custo total - sem o 13º Salário | E116: =E105 -> 15120.6477
D117: Destaque do 13º Salário (valor mensal) | E117: =F113 -> 1068.4
D119: TOTAL DO POSTO | E119: =E116+E117 -> 16189.0477

Sheet Dados Gerais
B3: INFORMAÇÕES DE ENTRADA
D5: 1 | E5: 2 | F5: 3 | G5: 4 | H5: 5 | I5: 6 | J5: 10 | K5: 11 | L5: 12 | M5: 13 | N5: 14 | O5: 15 | P5: 16 | Q5: 17 | R5: 18 | S5: 19 | T5: 20 | U5: 21 | V5: 22 | W5: 23 | X5: 24 | Y5: 25 | Z5: 26 | AA5: 27 | AB5: 28 | AC5: 29 | AD5: 30 | AE5: 31 | AF5: 32 | AG5: 33 | AH5: 34 | AI5: 35 | AJ5: 36 | AK5: 37 | AL5: 38 | AM5: 39 | AN5: 40 | AO5: 41 | AP5: 42 | AQ5: 43 | AR5: 44 | AS5: 45 | AT5: 46 | AU5: 47 | AV5: 48 | AW5: 49 | AX5: 50 | AY5: 51 | AZ5: 52 | BA5: 53 | BB5: 54 | BC5: 55 | BD5: 56 | BE5: 57 | BF5: 58 | BG5: 59 | BH5: 60
D6: CARGO 1 | E6: CARGO 2 | F6: CARGO 3 | G6: CARGO 4 | H6: CARGO 5 | I6: CARGO 6 | J6: CARGO 10 | K6: CARGO 11 | L6: CARGO 12 | M6: CARGO 13 | N6: CARGO 14 | O6: CARGO 15 | P6: CARGO 16 | Q6: CARGO 17 | R6: CARGO 18 | S6: CARGO 19 | T6: CARGO 20 | U6: CARGO 21 | V6: CARGO 22 | W6: CARGO 23 | X6: CARGO 24 | Y6: CARGO 25 | Z6: CARGO 26 | AA6: CARGO 27 | AB6: CARGO 28 | AC6: CARGO 29 | AD6: CARGO 30 | AE6: CARGO 31 | AF6: CARGO 32 | AG6: CARGO 33 | AH6: CARGO 34 | AI6: CARGO 35 | AJ6: CARGO 36 | AK6: CARGO 37 | AL6: CARGO 38 | AM6: CARGO 39 | AN6: CARGO 40 | AO6: CARGO 41 | AP6: CARGO 42 | AQ6: CARGO 43 | AR6: CARGO 44 | AS6: CARGO 45 | AT6: CARGO 46 | AU6: CARGO 47 | AV6: CARGO 48 | AW6: CARGO 49 | AX6: CARGO 50 | AY6: CARGO 51 | AZ6: CARGO 52 | BA6: CARGO 53 | BB6: CARGO 54 | BC6: CARGO 55 | BD6: CARGO 56 | BE6: CARGO 57 | BF6: CARGO 58 | BG6: CARGO 59 | BH6: CARGO 60
B7: INFORMAÇÕES BÁSICAS
B9: DESCRIÇÃO DOS POSTOS DE SERVIÇO
D10: Analista de TI - Agile Master - sênior | E10: Analista de TI - Engenheiro de Dados - sênior | F10: Analista de TI - Analista de Dados - sênior | G10: Analista de TI - Arquiteto de Dados - sênior | H10: Analista de TI - Planejamento e Processos Digitais - sênior | I10: Analista de Design e Cultura Digital - sênior
B11: REMUNERAÇÕES
D12: 11027 | E12: 13998.55 | F12: 9747.54 | G12: 11079.73 | H12: 8369.94 | I12: 7036.27
B13: QUANTIDADE DE POSTOS
D14: 8 | E14: 5 | F14: 9 | G14: 6 | H14: 4 | I14: 2
B15: JORNADA
C16: HORAS/MÊS | D16: =8*5*5 -> 200 | E16: =8*5*5 -> 200 | F16: 200 | G16: 200 | H16: 200 | I16: 200
C17: HORAS/DIA | D17: 8 | E17: 8 | F17: 8 | G17: 8 | H17: 8 | I17: 8
C18: DIAS/MÊS | D18: 22 | E18: 22 | F18: 22 | G18: 22 | H18: 22 | I18: 22
B19: CCT UTILIZADA
C20: SINDICATOS E REFERÊNCIA | D20: SINDPD/DF X SINDESEI/DF 2021/2022 Nº DF000608/2021 | E20: SINDPD/DF X SINDESEI/DF 2021/2022 Nº DF000608/2021 | F20: SINDPD/DF X SINDESEI/DF 2021/2022 Nº DF000608/2021 | G20: SINDPD/DF X SINDESEI/DF 2021/2022 Nº DF000608/2021 | H20: SINDPD/DF X SINDESEI/DF 2021/2022 Nº DF000608/2021 | I20: SINDPD/DF X SINDESEI/DF 2021/2022 Nº DF000608/2021
C21: DATA-BASE | D21: 2021-05-01 | E21: 2021-05-01 | F21: 2021-05-01 | G21: 2021-05-01 | H21: 2021-05-01 | I21: 2021-05-01
B23: ADICIONAIS LEGAIS E GRATIFICAÇÕES
B25: PERICULOSIDADE (PERCENTUAL)
D26: 0 | E26: 0 | F26: 0 | G26: 0 | H26: 0 | I26: 0
B27: BASE DE CÁLCULO DO ADICIONAL DE PERICULOSIDADE (SALÁRIO BÁSICO)
D28: =D12 -> 11027 | E28: 2386.75 | F28: =F12 -> 9747.54 | G28: =G12 -> 11079.73 | H28: =H12 -> 8369.94 | I28: 2386.75
B29: VALOR MENSAL DO ADICIONAL DE PERICULOSIDADE
D30: =ROUND(D26*D12,2) -> 0 | E30: 0 | F30: =ROUND(F26*F12,2) -> 0 | G30: =ROUND(G26*G12,2) -> 0 | H30: =ROUND(H26*H12,2) -> 0 | I30: 0
B31: INSALUBRIDADE (PERCENTUAL)
D32: 0 | E32: 0 | F32: 0 | G32: 0 | H32: 0 | I32: 0
B33: BASE DE CÁLCULO DO ADICIONAL DE INSALUBRIDADE (SALÁRIO MÍNIMO LEGAL)
D34: 1100 | E34: 1100 | F34: 1100 | G34: 1100 | H34: 1100 | I34: 1100
B35: VALOR MENSAL DO ADICIONAL DE INSALUBRIDADE
D36: =ROUND(D32*D12,2) -> 0 | E36: 0 | F36: =ROUND(F32*F12,2) -> 0 | G36: =ROUND(G32*G12,2) -> 0 | H36: =ROUND(H32*H12,2) -> 0 | I36: 0
B37: GRATIFICAÇÃO - VALOR MENSAL (R$)
D38: 0 | E38: 0 | F38: 0 | G38: 0 | H38: 0 | I38: 0
B40: ADICIONAL NOTURNO
B42: INCIDÊNCIA (PERCENTUAL)
D43: 0.2 | E43: 0.2 | F43: 0.2 | G43: 0.2 | H43: 0.2 | I43: 0.2
B44: HORAS REAIS POR DIA
D45: 0 | E45: 0 | F45: 0 | G45: 0 | H45: 0 | I45: 0
B46: HORAS FICTAS POR DIA
D47: =D45*8/7 -> 0 | E47: 0 | F47: 0 | G47: 0 | H47: 0 | I47: 0
B48: BASE DE CÁLCULO DO ADICIONAL NOTURNO (INCLUINDO ADICIONAIS E GRATIFICAÇÕES)
D49: =D12+D30+D36+D38 -> 11027 | E49: 13998.55 | F49: 9747.54 | G49: 11079.73 | H49: 8369.94 | I49: 7036.27
B50: VALOR MENSAL DO ADICIONAL NOTURNO (HORA NORMAL + HORA REDUZIDA) - POR POSTO
D51: =ROUND(D47*D18*D43*D49/D16,2) -> 0 | E51: 0 | F51: 0 | G51: 0 | H51: 0 | I51: 0
B53: ADICIONAL DE HORA EXTRA
B55: INCIDÊNCIA (PERCENTUAL 1)
D56: 0.5 | E56: 0.5 | F56: 0.5 | G56: 0.5 | H56: 0.5 | I56: 0.5
B57: HORAS EXTRAS POR MÊS (PERCENTUAL 1)
D58: 0 | E58: 0 | F58: 0 | G58: 0 | H58: 0 | I58: 0
B59: VALOR MENSAL DO ADICIONAL DE HORAS EXTRAS (PERCENTUAL 1) - POR POSTO
D60: =ROUND(D58*D56*D12/D16,2) -> 0 | E60: 0 | F60: =ROUND(F58*F56*F12/F16,2) -> 0 | G60: =ROUND(G58*G56*G12/G16,2) -> 0 | H60: =ROUND(H58*H56*H12/H16,2) -> 0 | I60: 0
B61: INCIDÊNCIA (PERCENTUAL 2)
D62: 1 | E62: 1 | F62: 1 | G62: 1 | H62: 1 | I62: 1
B63: HORAS EXTRAS POR MÊS (PERCENTUAL 2)
D64: 0 | E64: 0 | F64: 0 | G64: 0 | H64: 0 | I64: 0
B65: VALOR MENSAL DO ADICIONAL DE HORAS EXTRAS (PERCENTUAL 2) - POR POSTO
D66: =ROUND(D64*D62*D12/D16,2) -> 0 | E66: 0 | F66: =ROUND(F64*F62*F12/F16,2) -> 0 | G66: =ROUND(G64*G62*G12/G16,2) -> 0 | H66: =ROUND(H64*H62*H12/H16,2) -> 0 | I66: 0
B67: TOTAL MENSAL DOS ADICIONAIS DE HORAS EXTRAS - POR POSTO
D68: =D66+D60 -> 0 | E68: 0 | F68: =F66+F60 -> 0 | G68: =G66+G60 -> 0 | H68: =H66+H60 -> 0 | I68: 0
B70: BENEFÍCIOS COMUNS - AUXÍLIO TRANSPORTE
B72: DISTRIBUIÇÃO ESTIMADA DE PROCEDÊNCIA
C73: Cidade-satélite | D73: 0.6 | E73: 0.6 | F73: 0.6 | G73: 0.6 | H73: 0.6 | I73: 0.6
C74: Região do entorno | D74: 0.4 | E74: 0.4 | F74: 0.4 | G74: 0.4 | H74: 0.4 | I74: 0.4
C75: Esplanada - apenas para os que vêm do entorno | D75: =D74 -> 0.4 | E75: 0.4 | F75: 0.4 | G75: 0.4 | H75: 0.4 | I75: 0.4
B76: VALORES DOS VALES
C77: Cidade-satélite | D77: 5.5 | E77: =D77 -> 5.5 | F77: 5.5 | G77: 5.5 | H77: 5.5 | I77: 5.5
C78: Região do entorno | D78: 7.05 | E78: 7.05 | F78: 7.05 | G78: 7.05 | H78: 7.05 | I78: 7.05
C79: Esplanada | D79: 2.75 | E79: 2.75 | F79: 2.75 | G79: 2.75 | H79: 2.75 | I79: 2.75
B80: VALOR MENSAL BRUTO DE PAGAMENTO - POR POSTO
D81: =ROUND((D73*D77+D74*D78+D75*D79)*2*D18,2) -> 317.68 | E81: 317.68 | F81: 317.68 | G81: 317.68 | H81: 317.68 | I81: 317.68
B82: PERCENTUAL DE DESCONTO
D83: 0.06 | E83: 0.06 | F83: 0.06 | G83: 0.06 | H83: 0.06 | I83: 0.06
B84: VALOR MENSAL DO DESCONTO - POR POSTO
D85: =ROUND(D83*D12,2) -> 661.62 | E85: 839.91 | F85: 584.85 | G85: 664.78 | H85: 502.2 | I85: 422.18
B86: VALOR MENSAL LÍQUIDO DO VALE TRANSPORTE - POR POSTO
D87: =IF(D81>D85,D81-D85,0) -> 0 | E87: 0 | F87: 0 | G87: 0 | H87: 0 | I87: 0
D88: =D87*D14 -> 0 | E88: 2962.54 | F88: =F87*F14 -> 0 | G88: =G87*G14 -> 0 | H88: =H87*H14 -> 0 | I88: 2962.54
B89: BENEFÍCIOS COMUNS - AUXÍLIO ALIMENTAÇÃO
C91: VALOR CCT | D91: 28.69 | E91: 28.69 | F91: 28.69 | G91: 28.69 | H91: 28.69 | I91: 28.69
C92: VALOR CD | D92: 35 | E92: =D92 -> 35 | F92: =E92 -> 35 | G92: =F92 -> 35 | H92: =G92 -> 35 | I92: =H92 -> 35
B93: VALOR MENSAL DO AUXÍLIO ALIMENTAÇÃO - POR POSTO
D94: =ROUND(LARGE(D91:D92,1)*D18,2) -> 770 | E94: 770 | F94: 770 | G94: 770 | H94: 770 | I94: 770
D95: =D94*D14 -> 6160 | E95: 10339.56 | F95: =F94*F14 -> 6930 | G95: =G94*G14 -> 4620 | H95: =H94*H14 -> 3080 | I95: 10339.56
B96: BENEFÍCIOS ESPECIAIS - ASSISTÊNCIA MÉDICA E FAMILIAR
C98: OBRIGAÇÃO DE PAGTO | D98: SIM | E98: SIM | F98: SIM | G98: SIM | H98: SIM | I98: SIM
C99: VALOR CCT
C100: VALOR MERCADO | D100: =192.6*0.5 -> 96.3 | E100: =192.6*0.5 -> 96.3 | F100: 96.3 | G100: 96.3 | H100: 96.3 | I100: 96.3
B101: VALOR MENSAL DO AUXÍLIO ESPECIAL - ASSISTÊNCIA MÉDICA E FAMILIAR - POR POSTO
D102: =IF(D98="SIM",ROUND(SMALL(D99:D100,1),2),0) -> 96.3 | E102: 96.3 | F102: 96.3 | G102: 96.3 | H102: 96.3 | I102: 96.3
B104: BENEFÍCIOS ESPECIAIS - SEGURO DE VIDA E AUXÍLIO-FUNERAL, AUX ODONT, AUX CRECHE
B106: SEGURO DE VIDA E AUXÍLIO FUNERAL
C107: OBRIGAÇÃO DE PAGTO | D107: SIM | E107: SIM | F107: SIM | G107: SIM | H107: SIM | I107: SIM
C108: VALOR CCT
C109: VALOR MERCADO | D109: 12.39 | E109: 12.39 | F109: 12.39 | G109: 12.39 | H109: 12.39 | I109: 12.39
B110: VALOR MENSAL DO AUXÍLIO ESPECIAL - SEGURO DE VIDA E AUXÍLIO FUNERAL - POR POSTO
D111: =IF(D107="SIM",ROUND(SMALL(D108:D109,1),2),0) -> 12.39 | E111: 12.39 | F111: 12.39 | G111: 12.39 | H111: 12.39 | I111: 12.39
B112: AUXÍLIO ODONTOLÓGICO
C113: OBRIGAÇÃO DE PAGTO | D113: NÃO | E113: NÃO | F113: NÃO | G113: NÃO | H113: NÃO | I113: NÃO
C114: VALOR CCT | D114: 0 | E114: 0 | F114: 0 | G114: 0 | H114: 0 | I114: 0
C115: VALOR MERCADO | D115: 0 | E115: 0 | F115: 0 | G115: 0 | H115: 0 | I115: 0
B116: VALOR MENSAL DO AUXÍLIO ESPECIAL - SEGURO DE VIDA E AUX FUNERAL - POR POSTO
D117: =IF(D113="SIM",ROUND(SMALL(D114:D115,1),2)*D18,0) -> 0 | E117: 0 | F117: 0 | G117: 0 | H117: 0 | I117: 0
B118: TOTAL MENSAL DOS AUXÍLIOS ESPECIAIS - POR POSTO
D119: =D117+D111 -> 12.39 | E119: 12.39 | F119: 12.39 | G119: 12.39 | H119: 12.39 | I119: 12.39

Sheet Encargos Sociais
B3: ENCARGOS SOCIAIS SOBRE A MÃO DE OBRA
E4: Percentuais
B6: Referência:
C7: SINAPI OUT/2018
B9: Categorias:
C10: TODAS
B12: GRUPO A: Encargos Sociais Básicos - Previdenciários (GPS), Fundo de Garantia por Tempo de Serviço (FGTS) e Outras Contribuições | E12: =ROUND(SUM(E13:E21),4) -> 0.348
C13: A | D13: INSS (art. 22, inciso I, Lei nº 8.212/91) | E13: 0.2
C14: B | D14: Salário Educação (art. 3º, inciso I, Decreto nº 87.043/82) | E14: 0.025
C15: C | D15: SAT/RAT (art. 22, II, Lei 8.212/91 e Anexo V, Decreto 6.042/07) - Enquadramento 6290-1/01 | E15: 0.01
C16: D | D16: SESC ou SESI (art. 30, Lei nº 8.036/90 e art. 1º, Lei 8.154/90) | E16: 0.015
C17: E | D17: SENAI ou SENAC (Decreto nº 2.318/86) | E17: 0.01
C18: F | D18: SEBRAE (§ 3º, art. 8º, Lei 8.029/90, alterada pela Lei nº 8.154/90) | E18: 0.006 | G18: * Nota 1 - Os percentuais dos encargos previdenciários, do FGTS e demais contribuições são estabelecidos por legislação vigente.
C19: G | D19: INCRA (art. 1º, I, Decreto Lei 1.146/70 e Lei 7.787, de 30/06/89) | E19: 0.002 | G19: * Nota 2 - O SAT, a depender do grau de risco do serviço, irá variar entre 1%, para risco leve, de 2%, para risco médio, e de 3% para risco grave.
C20: H | D20: FGTS (Lei Complementar nº 110/01 e art. 30, Lei nº 8.036/90) | E20: 0.08 | G20: * Nota 3 - Os percentuais do Submódulo 2.2 incidem sobre o Módulo 1, o Submódulo 2.1, o Módulo 3, o Módulo 4 e o Módulo 6.
C21: I | D21: SECONCI (Convenções Coletivas de Trabalho da construção) | E21: 0
B23: GRUPO B: Encargos Sociais Relacionados ao Custo de Reposição do Profissional Ausente - Ausências Legais | E23: =ROUND(SUM(E24:E32),4) -> 0.2246
C24: A | D24: Férias (Arts. 129 e 130, inc. I, da CLT) | E24: =1/11 -> 0.09090909091 | G24: * Nota 1 - As alíneas “A” a “F” referem-se somente ao custo que será pago ao repositor pelos dias trabalhados quando da necessidade de substituir a mão de obra alocada na prestação do serviço.
C25: B | D25: Ausências Legais (Arts. 131 e 473 da CLT) | E25: =2/252 -> 0.007936507937 | G25: * Nota 2 - Adotou-se a estimativa do SINAPI de 2 dias por ano. Em 252 dias úteis por ano.
C26: C | D26: Licença-Paternidade (Art. 7º, XIX, e art. 10, §1º, do ADCT, CF/1988 e Art. 1º, II, da Lei 11.770/2008) | E26: =(5/(30*12))*0.0596 -> 0.0008277777778 | G26: * Nota 3 - Utilizada a proporção de 50% para homens, 5 dias de afastamento, e a probabilidade de um trabalhador requerer a Licença Paternidade em 5,96%, conforme SINAPI (Anuário Estatístico da Previdência Social - 2017)
C27: D | D27: Ausência por Acidente de Trabalho (Art. 131, III, da CLT) | E27: =0.0205*15/360 -> 0.0008541666667 | G27: * Nota 4 - Utilzada a estatística de 2,05% dos contribuintes beneficiados com a emissão do auxílio, conforme Anuário Estatístico da Previdência Social. Afastamento de 15 dias a cargo da empresa.
C28: E | D28: Afastamento Maternidade (Art. 71 da Lei nº 8.213/1991) | E28: =0.0508*(120/360)*(30+30*4/3)/360 -> 0.003292592593 | G28: * Nota 5 - Utilizada a estimativa de 120 dias de afastamento, e a probabilidade de uma trabalhadora requerer a Licença Maternidade em 5,08%, conforme SINAPI (citando dados do IBGE 2017) - A própria previdência paga o benefício pelos 120 dias, contudo o empregador arca com o 13º e com as férias
C29: F | D29: Auxílio Enfermidade - Doença (Art. 59 da Lei nº 8.213/1991) | E29: =((0.0376*15)+2)/360 -> 0.007122222222 | G29: * Nota 6 - Utilizada a estatística de 3,76% dos contribuintes beneficiados com o auxílio, conforme Anuário Estatístico da Previdência Social de 2016 (acrescidos de 2 dias ao ano, para os quais o trabalhador nem requer o benefício da Previdência - conforme SINAPI)
C30: G | D30: Adicional de Férias (componente do Submódulo 2.1) | E30: =1/3*1/11 -> 0.0303030303 | G30: * Nota 7 - O adicional de férias contido no Submódulo 2.1 corresponde a 1/3 da remuneração que, por sua vez, é dividida por 11 contome Nota 1.
C31: H | D31: 13º Salário (destacado na planilha de custos) | E31: =1/12 -> 0.08333333333 | G31: * Nota 8 - Provisiona-se, mensalmente, o proporcional a 1/12 dos valores referentes a gratificação natalina e adicional de férias.
C32: I | D32: Intervalo para repouso ou alimentação (componente do Submódulo 4.2) | E32: 0
B34: GRUPO C: Encargos Sociais Relacionados à Previsão para Rescisão Trabalhista | E34: =ROUND(SUM(E35:E40),4) -> 0.0309
C35: A | D35: Aviso Prévio Indenizado (Art. 7º, inciso XXI, da CF/1988 e arts. 477, 487, §1º, e 491 da CLT) | E35: =(30+2*3)*0.1/360/3 -> 0.003333333333 | G35: * Nota 1 - Adotou-se a estimativa conforme histórico dos contratos da Câmara, onde 10% do pessoal é demitido pelo empregador no decurso do contrato (para estes, considerou-se o aviso prévio indenizado). Desprezou-se as demissões por justa causa e os pedidos de demissão. Para o período, considerou-se 3 anos de duração nos contratos (estimativa da Câmara). 30 dias no primeiro ano mais 3dias nos anos seguintes.
C36: B | D36: Incidência do FGTS sobre o Aviso Prévio Indenizado (Súmula 305 TST) | E36: =E20*E35 -> 0.0002666666667 | G36: * Nota 2 - No cálculo do percentual, considerou-se 36 dias, correspondendo à metade da duração média dos contratos (2 anos)
C37: C | D37: Multa do FGTS e Contribuição Social sobre o Aviso Prévio Indenizado (Art. 18, §1º, da Lei 8.036/1990 e art. 1º da LC nº 110/2001) | E37: =(1+1/12+1/12+1/36)*0.4*E20*0.1/3 -> 0.001274074074 | G37: * Nota 3 - Incide sobre a Remuneração + 13º salário (1/12) + Férias (1/12) + Adicional de Férias (1/36) x 40% multa para o empregador x 8% FGTS x 10% do pessoal, uma vez a cada 3 anos
C38: D | D38: Aviso Prévio Trabalhado (Art. 488, parágrafo único, CLT) | E38: =((7+2*3)*0.9/360)/3 -> 0.01083333333 | G38: * Nota 4 - Os 90% restantes do cálculo, a um prazo estimado de contrato de 3 anos. Assim, calcula-se 7 dias para o 1º ano de contrato e mais 3 dias para os 2 anos seguintes. Uma vez a cada 3 anos.
C39: E | D39: Incidência de GPS, FGTS e outras contribuições sobre o Aviso Prévio Trabalhado | E39: =E38*E12 -> 0.00377
C40: F | D40: Multa do FGTS e Contribuição Social sobre o Aviso Prévio Trabalhado | E40: =(1+1/12+1/12+1/36)*0.4*E20*0.9/3 -> 0.01146666667
B42: GRUPO D: Reincidências | E42: =ROUND(SUM(E43:E43),4) -> 0.0782
C43: A | D43: Reincidência do Grupo A sobre o Grupo B | E43: =E12*E23 -> 0.0781608
D45: SOMATÓRIO - ENCARGOS SOCIAIS SOBRE A MÃO DE OBRA | E45: =E42+E34+E23+E12 -> 0.6817

Sheet BDI
B3: COMPOSIÇÃO DA TAXA DE CUSTOS INDIRETOS, TRIBUTOS E LUCRO - BDI
B4: APLICAÇÃO: MÃO DE OBRA, 13º, MATERIAIS, EPC E EQUIPAMENTO DE REGISTRO DE FREQUÊNCIA | E4: Percentuais
B6: Custos Indiretos da Contratada | E6: =SUM(E7:E8) -> 0.061
C7: A | D7: Administração Central (despesas de gestão da empresa, escritório e treinamento de seu pessoal, e eventuais como máscaras obrigatórias) | E7: 0.026 | G7: * Nota 1 - O Somatório da Administração Central com o Lucro deve ser inferior a 12%
C8: B | D8: Seguros, Garantias e Riscos | E8: 0.035 | G8: * Nota 2 - Seguros e Garantias 0,32%, Risco 0,50% (ref. valores 1 quartil constr rodovias, conforme Acordao 2.622-2013)
B10: Lucro | E10: =SUM(E11:E11) -> 0.04
C11: A | D11: Lucro Real sobre os Custos Administrados | E11: 0.04
B13: Despesas Financeiras | E13: =E14 -> 0.005251960574
C14: A | D14: Cálculo Baseado no Prazo para a Restituição dos Desembolsos Realizados pelo Contratado e na Taxa de Retorno Arbitrada | E14: =(1+E16)^(E15/252)-1 -> 0.005251960574 | G14: * Nota 1 - DF = [(1+TR)^(DU/252)]/100
C15: A.1 | D15: Dias Úteis Considerados | E15: 11 | G15: * Nota 2 - Diferença de dias entre o desembolso, pelo contratado, e o pagamento, pela Câmara
C16: A.2 | D16: Taxa de Retorno | E16: 0.1275 | G16: * Nota 3 - A taxa sugerida é a meta da SELIC
B18: Impostos - Tributos Federais | E18: =SUM(E19:E21) -> 0.074
C19: A | D19: Contribuição para o Financiamento da Seguridade Social - COFINS | E19: =0.8*7.6% -> 0.0608 | G19: * Nota 1 - Redução de 20% considerando as deduções permitidas em Lei, conforme SENGE, citado pelo TCU - Acórdão 2622/2013
C20: B | D20: Programa de Integração Social - PIS | E20: =0.8*1.65% -> 0.0132 | G20: * Nota 2 - Redução de 20% considerando as deduções permitidas em Lei, conforme SENGE, citado pelo TCU - Acórdão 2622/2013
C21: C | D21: Contribuição Previdenciária sobre a Receita Bruta - CPRB | E21: 0 | G21: * Nota 3 - Lei 12.546/2011 - Verificar atualizações e setores beneficiados
B23: Impostos - Tributos Distritais | E23: =SUM(E24:E24) -> 0.05
C24: A | D24: Imposto sobre Serviço de Qualquer Natureza - ISS | E24: 0.05
D26: SOMATÓRIO - ENCARGOS SOCIAIS SOBRE A MÃO DE OBRA | E26: =ROUND((((1+E6)*(1+E10)*(1+E13)/(1-E18-E23))-1),4) -> 0.2663 | G26: * Nota 1 - [(1+AC+SGR)*(1+L)*(1+DF)/(1-CONFINS-PIS-CPRB-ISS)]-1

Sheet Sobreaviso (hidden)
B3: HORAS DE SOBREAVISO SOB DEMANDA
C6: CATEGORIAS | E6: DIAS | F6: HORAS / DIA | G6: HORAS / MÊS | H6: % SOBREAVISO
C8: 3 | D8: =HLOOKUP($C8,'Dados Gerais'!D$5:H$12,6) -> Analista de TI - Analista de Dados - sênior | E8: SEG A SEX | G8: =F8*5*52/12 -> 0 | H8: =1/3 -> 0.3333333333
D9: Considerando 6 profissionais, 6h/dia, 5 dias na semana, 52 semanas no mês
C10: 3 | D10: =HLOOKUP($C10,'Dados Gerais'!D$5:H$12,6) -> Analista de TI - Analista de Dados - sênior | E10: FINS DE SEMANA E FERIADOS | G10: =F10*2*52/12+F10 -> 0 | H10: =H8 -> 0.3333333333
D11: Considerando 6 profissionais, 24h/dia, 2 dias na semana (1 dia por mês de feriado), 52 semanas no mês
C14: VALOR DO SOBREAVISO | E14: DIAS | F14: SALÁRIO MÊS | G14: VL.H.NORMAL | H14: ADIC.H.FICTAS
C16: 3 | D16: =HLOOKUP($C16,'Dados Gerais'!D$5:H$12,6) -> Analista de TI - Analista de Dados - sênior | E16: SEG A SEX | F16: =HLOOKUP($C16,'Dados Gerais'!D$5:H$12,8) -> 9747.54 | G16: =F16/'Dados Gerais'!D16 -> 48.7377 | H16: =G16*(H8) -> 16.2459
C17: 3 | D17: =HLOOKUP($C17,'Dados Gerais'!D$5:H$12,6) -> Analista de TI - Analista de Dados - sênior | E17: FINS DE SEMANA E FERIADOS | F17: =HLOOKUP($C17,'Dados Gerais'!D$5:H$12,8) -> 9747.54 | G17: =F17/'Dados Gerais'!D16 -> 48.7377 | H17: =G17*(H10) -> 16.2459
C20: RESUMO DO SOBREAVISO SOB DEMANDA | F20: DIAS
C21: TOTAIS MENSAIS | G21: PREÇO MENSAL
C23: 3 | D23: =HLOOKUP($C23,'Dados Gerais'!D$5:H$12,6) -> Analista de TI - Analista de Dados - sênior | F23: SEG A SEX | G23: =H16*G8 -> 0
C24: 3 | D24: =HLOOKUP($C24,'Dados Gerais'!D$5:H$12,6) -> Analista de TI - Analista de Dados - sênior | F24: FINS DE SEMANA E FERIADOS | G24: =H17*G10 -> 0
F26: SOMATÓRIO TOTAL MENSAL | G26: =SUM(G23:G24) -> 0
F27: SOMATÓRIO TOTAL ANUAL | G27: =G26*12 -> 0
C30: ENCARGOS SOCIAIS E BDI SOBRE O SOBREAVISO SOB DEMANDA
C31: TOTAIS MENSAIS | F31: PERCENTUAIS | G31: PREÇO MENSAL
D33: ENCARGOS SOCIAIS | F33: ='Encargos Sociais'!E45 -> 0.6817 | G33: =F33*G26 -> 0
D34: BDI | F34: =BDI!E26 -> 0.2663 | G34: =F34*(G26+G33) -> 0
F36: SOMATÓRIO TOTAL MENSAL | G36: =SUM(G33:G35) -> 0
F37: SOMATÓRIO TOTAL ANUAL | G37: =G36*12 -> 0
C40: VALOR TOTAL SOBREAVISO SOB DEMANDA (COM ENCARGOS SOCIAIS E BDI INCLUSOS)
F44: SOMATÓRIO TOTAL MENSAL | G44: =G26+G36 -> 0
F45: SOMATÓRIO TOTAL ANUAL | G45: =G44*12 -> 0

Sheet Uniformes (hidden)
C1: CÂMARA DOS DEPUTADOS
C2: DEPARTAMENTO TÉCNICO
C3: Coordenação de Planejamento e Gestão
C5: Data: | D5: ='Dados Gerais'!#REF! -> 
C6: Processo: | D6: ='Dados Gerais'!#REF! -> 
C7: Objeto: | D7: ='Dados Gerais'!#REF! -> 
B11: UNIFORMES - AQUISIÇÃO | K11: 1 | M11: =K11+1 -> 2 | O11: =M11+1 -> 3 | Q11: =O11+1 -> 4 | S11: =Q11+1 -> 5 | U11: =S11+1 -> 6 | W11: =U11+1 -> 7 | Y11: =W11+1 -> 8 | AA11: =Y11+1 -> 9 | AC11: =AA11+1 -> 10 | AE11: =AC11+1 -> 11 | AG11: =AE11+1 -> 12 | AI11: =AG11+1 -> 13 | AK11: =AI11+1 -> 14 | AM11: =AK11+1 -> 15 | AO11: =AM11+1 -> 16 | AQ11: =AO11+1 -> 17 | AS11: =AQ11+1 -> 18 | AU11: =AS11+1 -> 19 | AW11: =AU11+1 -> 20 | AY11: =AW11+1 -> 21 | BA11: =AY11+1 -> 22 | BC11: =BA11+1 -> 23 | BE11: =BC11+1 -> 24 | BG11: =BE11+1 -> 25 | BI11: =BG11+1 -> 26 | BK11: =BI11+1 -> 27 | BM11: =BK11+1 -> 28 | BO11: =BM11+1 -> 29 | BQ11: =BO11+1 -> 30 | BS11: =BQ11+1 -> 31 | BU11: =BS11+1 -> 32 | BW11: =BU11+1 -> 33 | BY11: =BW11+1 -> 34 | CA11: =BY11+1 -> 35 | CC11: =CA11+1 -> 36 | CE11: =CC11+1 -> 37 | CG11: =CE11+1 -> 38 | CI11: =CG11+1 -> 39 | CK11: =CI11+1 -> 40 | CM11: =CK11+1 -> 41 | CO11: =CM11+1 -> 42 | CQ11: =CO11+1 -> 43 | CS11: =CQ11+1 -> 44 | CU11: =CS11+1 -> 45 | CW11: =CU11+1 -> 46 | CY11: =CW11+1 -> 47 | DA11: =CY11+1 -> 48 | DC11: =DA11+1 -> 49 | DE11: =DC11+1 -> 50 | DG11: =DE11+1 -> 51 | DI11: =DG11+1 -> 52 | DK11: =DI11+1 -> 53 | DM11: =DK11+1 -> 54 | DO11: =DM11+1 -> 55 | DQ11: =DO11+1 -> 56 | DS11: =DQ11+1 -> 57 | DU11: =DS11+1 -> 58 | DW11: =DU11+1 -> 59 | DY11: =DW11+1 -> 60
K13: =ROUND(SUM(L12:L51),2) -> 0 | M13: =ROUND(SUM(N12:N51),2) -> 0 | O13: =ROUND(SUM(P12:P51),2) -> 0 | Q13: =ROUND(SUM(R12:R51),2) -> 0 | S13: =ROUND(SUM(T12:T51),2) -> 0 | U13: =ROUND(SUM(V12:V51),2) -> 0 | W13: =ROUND(SUM(X12:X51),2) -> 0 | Y13: =ROUND(SUM(Z12:Z51),2) -> 0 | AA13: =ROUND(SUM(AB12:AB51),2) -> 0 | AC13: =ROUND(SUM(AD12:AD51),2) -> 0 | AE13: =ROUND(SUM(AF12:AF51),2) -> 0 | AG13: =ROUND(SUM(AH12:AH51),2) -> 0 | AI13: =ROUND(SUM(AJ12:AJ51),2) -> 0 | AK13: =ROUND(SUM(AL12:AL51),2) -> 0 | AM13: =ROUND(SUM(AN12:AN51),2) -> 0 | AO13: =ROUND(SUM(AP12:AP51),2) -> 0 | AQ13: =ROUND(SUM(AR12:AR51),2) -> 0 | AS13: =ROUND(SUM(AT12:AT51),2) -> 0 | AU13: =ROUND(SUM(AV12:AV51),2) -> 0 | AW13: =ROUND(SUM(AX12:AX51),2) -> 0 | AY13: =ROUND(SUM(AZ12:AZ51),2) -> 0 | BA13: =ROUND(SUM(BB12:BB51),2) -> 0 | BC13: =ROUND(SUM(BD12:BD51),2) -> 0 | BE13: =ROUND(SUM(BF12:BF51),2) -> 0 | BG13: =ROUND(SUM(BH12:BH51),2) -> 0 | BI13: =ROUND(SUM(BJ12:BJ51),2) -> 0 | BK13: =ROUND(SUM(BL12:BL51),2) -> 0 | BM13: =ROUND(SUM(BN12:BN51),2) -> 0 | BO13: =ROUND(SUM(BP12:BP51),2) -> 0 | BQ13: =ROUND(SUM(BR12:BR51),2) -> 0 | BS13: =ROUND(SUM(BT12:BT51),2) -> 0 | BU13: =ROUND(SUM(BV12:BV51),2) -> 0 | BW13: =ROUND(SUM(BX12:BX51),2) -> 0 | BY13: =ROUND(SUM(BZ12:BZ51),2) -> 0 | CA13: =ROUND(SUM(CB12:CB51),2) -> 0 | CC13: =ROUND(SUM(CD12:CD51),2) -> 0 | CE13: =ROUND(SUM(CF12:CF51),2) -> 0 | CG13: =ROUND(SUM(CH12:CH51),2) -> 0 | CI13: =ROUND(SUM(CJ12:CJ51),2) -> 0 | CK13: =ROUND(SUM(CL12:CL51),2) -> 0 | CM13: =ROUND(SUM(CN12:CN51),2) -> 0 | CO13: =ROUND(SUM(CP12:CP51),2) -> 0 | CQ13: =ROUND(SUM(CR12:CR51),2) -> 0 | CS13: =ROUND(SUM(CT12:CT51),2) -> 0 | CU13: =ROUND(SUM(CV12:CV51),2) -> 0 | CW13: =ROUND(SUM(CX12:CX51),2) -> 0 | CY13: =ROUND(SUM(CZ12:CZ51),2) -> 0 | DA13: =ROUND(SUM(DB12:DB51),2) -> 0 | DC13: =ROUND(SUM(DD12:DD51),2) -> 0 | DE13: =ROUND(SUM(DF12:DF51),2) -> 0 | DG13: =ROUND(SUM(DH12:DH51),2) -> 0 | DI13: =ROUND(SUM(DJ12:DJ51),2) -> 0 | DK13: =ROUND(SUM(DL12:DL51),2) -> 0 | DM13: =ROUND(SUM(DN12:DN51),2) -> 0 | DO13: =ROUND(SUM(DP12:DP51),2) -> 0 | DQ13: =ROUND(SUM(DR12:DR51),2) -> 0 | DS13: =ROUND(SUM(DT12:DT51),2) -> 0 | DU13: =ROUND(SUM(DV12:DV51),2) -> 0 | DW13: =ROUND(SUM(DX12:DX51),2) -> 0 | DY13: =ROUND(SUM(DZ12:DZ51),2) -> 0
C14: CATEGORIAS | H14: QUANTIDADE
K15: =IF($C15=K$11,1,0) -> 0
D16: =HLOOKUP($C16,'Dados Gerais'!$D$5:$BH$10,6) ->  | H16: =HLOOKUP($C16,'Dados Gerais'!$D$5:$BH$14,10) ->  | K16: 0 | M16: =IF($C16=M$11,1,0) -> 0 | O16: =IF($C16=O$11,1,0) -> 0 | Q16: =IF($C16=Q$11,1,0) -> 0 | S16: =IF($C16=S$11,1,0) -> 0 | U16: =IF($C16=U$11,1,0) -> 0 | W16: =IF($C16=W$11,1,0) -> 0 | Y16: =IF($C16=Y$11,1,0) -> 0 | AA16: =IF($C16=AA$11,1,0) -> 0 | AC16: =IF($C16=AC$11,1,0) -> 0 | AE16: =IF($C16=AE$11,1,0) -> 0 | AG16: =IF($C16=AG$11,1,0) -> 0 | AI16: =IF($C16=AI$11,1,0) -> 0 | AK16: =IF($C16=AK$11,1,0) -> 0 | AM16: =IF($C16=AM$11,1,0) -> 0 | AO16: =IF($C16=AO$11,1,0) -> 0 | AQ16: =IF($C16=AQ$11,1,0) -> 0 | AS16: =IF($C16=AS$11,1,0) -> 0 | AU16: =IF($C16=AU$11,1,0) -> 0 | AW16: =IF($C16=AW$11,1,0) -> 0 | AY16: =IF($C16=AY$11,1,0) -> 0 | BA16: =IF($C16=BA$11,1,0) -> 0 | BC16: =IF($C16=BC$11,1,0) -> 0 | BE16: =IF($C16=BE$11,1,0) -> 0 | BG16: =IF($C16=BG$11,1,0) -> 0 | BI16: =IF($C16=BI$11,1,0) -> 0 | BK16: =IF($C16=BK$11,1,0) -> 0 | BM16: =IF($C16=BM$11,1,0) -> 0 | BO16: =IF($C16=BO$11,1,0) -> 0 | BQ16: =IF($C16=BQ$11,1,0) -> 0 | BS16: =IF($C16=BS$11,1,0) -> 0 | BU16: =IF($C16=BU$11,1,0) -> 0 | BW16: =IF($C16=BW$11,1,0) -> 0 | BY16: =IF($C16=BY$11,1,0) -> 0 | CA16: =IF($C16=CA$11,1,0) -> 0 | CC16: =IF($C16=CC$11,1,0) -> 0 | CE16: =IF($C16=CE$11,1,0) -> 0 | CG16: =IF($C16=CG$11,1,0) -> 0 | CI16: =IF($C16=CI$11,1,0) -> 0 | CK16: =IF($C16=CK$11,1,0) -> 0 | CM16: =IF($C16=CM$11,1,0) -> 0 | CO16: =IF($C16=CO$11,1,0) -> 0 | CQ16: =IF($C16=CQ$11,1,0) -> 0 | CS16: =IF($C16=CS$11,1,0) -> 0 | CU16: =IF($C16=CU$11,1,0) -> 0 | CW16: =IF($C16=CW$11,1,0) -> 0 | CY16: =IF($C16=CY$11,1,0) -> 0 | DA16: =IF($C16=DA$11,1,0) -> 0 | DC16: =IF($C16=DC$11,1,0) -> 0 | DE16: =IF($C16=DE$11,1,0) -> 0 | DG16: =IF($C16=DG$11,1,0) -> 0 | DI16: =IF($C16=DI$11,1,0) -> 0 | DK16: =IF($C16=DK$11,1,0) -> 0 | DM16: =IF($C16=DM$11,1,0) -> 0 | DO16: =IF($C16=DO$11,1,0) -> 0 | DQ16: =IF($C16=DQ$11,1,0) -> 0 | DS16: =IF($C16=DS$11,1,0) -> 0 | DU16: =IF($C16=DU$11,1,0) -> 0 | DW16: =IF($C16=DW$11,1,0) -> 0 | DY16: =IF($C16=DY$11,1,0) -> 0
D17: =HLOOKUP($C17,'Dados Gerais'!$D$5:$BH$10,6) ->  | H17: =HLOOKUP($C17,'Dados Gerais'!$D$5:$BH$14,10) ->  | K17: 0 | M17: =IF($C17=M$11,1,0) -> 0 | O17: =IF($C17=O$11,1,0) -> 0 | Q17: =IF($C17=Q$11,1,0) -> 0 | S17: =IF($C17=S$11,1,0) -> 0 | U17: =IF($C17=U$11,1,0) -> 0 | W17: =IF($C17=W$11,1,0) -> 0 | Y17: =IF($C17=Y$11,1,0) -> 0 | AA17: =IF($C17=AA$11,1,0) -> 0 | AC17: =IF($C17=AC$11,1,0) -> 0 | AE17: =IF($C17=AE$11,1,0) -> 0 | AG17: =IF($C17=AG$11,1,0) -> 0 | AI17: =IF($C17=AI$11,1,0) -> 0 | AK17: =IF($C17=AK$11,1,0) -> 0 | AM17: =IF($C17=AM$11,1,0) -> 0 | AO17: =IF($C17=AO$11,1,0) -> 0 | AQ17: =IF($C17=AQ$11,1,0) -> 0 | AS17: =IF($C17=AS$11,1,0) -> 0 | AU17: =IF($C17=AU$11,1,0) -> 0 | AW17: =IF($C17=AW$11,1,0) -> 0 | AY17: =IF($C17=AY$11,1,0) -> 0 | BA17: =IF($C17=BA$11,1,0) -> 0 | BC17: =IF($C17=BC$11,1,0) -> 0 | BE17: =IF($C17=BE$11,1,0) -> 0 | BG17: =IF($C17=BG$11,1,0) -> 0 | BI17: =IF($C17=BI$11,1,0) -> 0 | BK17: =IF($C17=BK$11,1,0) -> 0 | BM17: =IF($C17=BM$11,1,0) -> 0 | BO17: =IF($C17=BO$11,1,0) -> 0 | BQ17: =IF($C17=BQ$11,1,0) -> 0 | BS17: =IF($C17=BS$11,1,0) -> 0 | BU17: =IF($C17=BU$11,1,0) -> 0 | BW17: =IF($C17=BW$11,1,0) -> 0 | BY17: =IF($C17=BY$11,1,0) -> 0 | CA17: =IF($C17=CA$11,1,0) -> 0 | CC17: =IF($C17=CC$11,1,0) -> 0 | CE17: =IF($C17=CE$11,1,0) -> 0 | CG17: =IF($C17=CG$11,1,0) -> 0 | CI17: =IF($C17=CI$11,1,0) -> 0 | CK17: =IF($C17=CK$11,1,0) -> 0 | CM17: =IF($C17=CM$11,1,0) -> 0 | CO17: =IF($C17=CO$11,1,0) -> 0 | CQ17: =IF($C17=CQ$11,1,0) -> 0 | CS17: =IF($C17=CS$11,1,0) -> 0 | CU17: =IF($C17=CU$11,1,0) -> 0 | CW17: =IF($C17=CW$11,1,0) -> 0 | CY17: =IF($C17=CY$11,1,0) -> 0 | DA17: =IF($C17=DA$11,1,0) -> 0 | DC17: =IF($C17=DC$11,1,0) -> 0 | DE17: =IF($C17=DE$11,1,0) -> 0 | DG17: =IF($C17=DG$11,1,0) -> 0 | DI17: =IF($C17=DI$11,1,0) -> 0 | DK17: =IF($C17=DK$11,1,0) -> 0 | DM17: =IF($C17=DM$11,1,0) -> 0 | DO17: =IF($C17=DO$11,1,0) -> 0 | DQ17: =IF($C17=DQ$11,1,0) -> 0 | DS17: =IF($C17=DS$11,1,0) -> 0 | DU17: =IF($C17=DU$11,1,0) -> 0 | DW17: =IF($C17=DW$11,1,0) -> 0 | DY17: =IF($C17=DY$11,1,0) -> 0
D18: =HLOOKUP($C18,'Dados Gerais'!$D$5:$BH$10,6) ->  | H18: =HLOOKUP($C18,'Dados Gerais'!$D$5:$BH$14,10) ->  | K18: 0 | M18: =IF($C18=M$11,1,0) -> 0 | O18: =IF($C18=O$11,1,0) -> 0 | Q18: =IF($C18=Q$11,1,0) -> 0 | S18: =IF($C18=S$11,1,0) -> 0 | U18: =IF($C18=U$11,1,0) -> 0 | W18: =IF($C18=W$11,1,0) -> 0 | Y18: =IF($C18=Y$11,1,0) -> 0 | AA18: =IF($C18=AA$11,1,0) -> 0 | AC18: =IF($C18=AC$11,1,0) -> 0 | AE18: =IF($C18=AE$11,1,0) -> 0 | AG18: =IF($C18=AG$11,1,0) -> 0 | AI18: =IF($C18=AI$11,1,0) -> 0 | AK18: =IF($C18=AK$11,1,0) -> 0 | AM18: =IF($C18=AM$11,1,0) -> 0 | AO18: =IF($C18=AO$11,1,0) -> 0 | AQ18: =IF($C18=AQ$11,1,0) -> 0 | AS18: =IF($C18=AS$11,1,0) -> 0 | AU18: =IF($C18=AU$11,1,0) -> 0 | AW18: =IF($C18=AW$11,1,0) -> 0 | AY18: =IF($C18=AY$11,1,0) -> 0 | BA18: =IF($C18=BA$11,1,0) -> 0 | BC18: =IF($C18=BC$11,1,0) -> 0 | BE18: =IF($C18=BE$11,1,0) -> 0 | BG18: =IF($C18=BG$11,1,0) -> 0 | BI18: =IF($C18=BI$11,1,0) -> 0 | BK18: =IF($C18=BK$11,1,0) -> 0 | BM18: =IF($C18=BM$11,1,0) -> 0 | BO18: =IF($C18=BO$11,1,0) -> 0 | BQ18: =IF($C18=BQ$11,1,0) -> 0 | BS18: =IF($C18=BS$11,1,0) -> 0 | BU18: =IF($C18=BU$11,1,0) -> 0 | BW18: =IF($C18=BW$11,1,0) -> 0 | BY18: =IF($C18=BY$11,1,0) -> 0 | CA18: =IF($C18=CA$11,1,0) -> 0 | CC18: =IF($C18=CC$11,1,0) -> 0 | CE18: =IF($C18=CE$11,1,0) -> 0 | CG18: =IF($C18=CG$11,1,0) -> 0 | CI18: =IF($C18=CI$11,1,0) -> 0 | CK18: =IF($C18=CK$11,1,0) -> 0 | CM18: =IF($C18=CM$11,1,0) -> 0 | CO18: =IF($C18=CO$11,1,0) -> 0 | CQ18: =IF($C18=CQ$11,1,0) -> 0 | CS18: =IF($C18=CS$11,1,0) -> 0 | CU18: =IF($C18=CU$11,1,0) -> 0 | CW18: =IF($C18=CW$11,1,0) -> 0 | CY18: =IF($C18=CY$11,1,0) -> 0 | DA18: =IF($C18=DA$11,1,0) -> 0 | DC18: =IF($C18=DC$11,1,0) -> 0 | DE18: =IF($C18=DE$11,1,0) -> 0 | DG18: =IF($C18=DG$11,1,0) -> 0 | DI18: =IF($C18=DI$11,1,0) -> 0 | DK18: =IF($C18=DK$11,1,0) -> 0 | DM18: =IF($C18=DM$11,1,0) -> 0 | DO18: =IF($C18=DO$11,1,0) -> 0 | DQ18: =IF($C18=DQ$11,1,0) -> 0 | DS18: =IF($C18=DS$11,1,0) -> 0 | DU18: =IF($C18=DU$11,1,0) -> 0 | DW18: =IF($C18=DW$11,1,0) -> 0 | DY18: =IF($C18=DY$11,1,0) -> 0
D19: =HLOOKUP($C19,'Dados Gerais'!$D$5:$BH$10,6) ->  | H19: =HLOOKUP($C19,'Dados Gerais'!$D$5:$BH$14,10) ->  | K19: 0 | M19: =IF($C19=M$11,1,0) -> 0 | O19: =IF($C19=O$11,1,0) -> 0 | Q19: =IF($C19=Q$11,1,0) -> 0 | S19: =IF($C19=S$11,1,0) -> 0 | U19: =IF($C19=U$11,1,0) -> 0 | W19: =IF($C19=W$11,1,0) -> 0 | Y19: =IF($C19=Y$11,1,0) -> 0 | AA19: =IF($C19=AA$11,1,0) -> 0 | AC19: =IF($C19=AC$11,1,0) -> 0 | AE19: =IF($C19=AE$11,1,0) -> 0 | AG19: =IF($C19=AG$11,1,0) -> 0 | AI19: =IF($C19=AI$11,1,0) -> 0 | AK19: =IF($C19=AK$11,1,0) -> 0 | AM19: =IF($C19=AM$11,1,0) -> 0 | AO19: =IF($C19=AO$11,1,0) -> 0 | AQ19: =IF($C19=AQ$11,1,0) -> 0 | AS19: =IF($C19=AS$11,1,0) -> 0 | AU19: =IF($C19=AU$11,1,0) -> 0 | AW19: =IF($C19=AW$11,1,0) -> 0 | AY19: =IF($C19=AY$11,1,0) -> 0 | BA19: =IF($C19=BA$11,1,0) -> 0 | BC19: =IF($C19=BC$11,1,0) -> 0 | BE19: =IF($C19=BE$11,1,0) -> 0 | BG19: =IF($C19=BG$11,1,0) -> 0 | BI19: =IF($C19=BI$11,1,0) -> 0 | BK19: =IF($C19=BK$11,1,0) -> 0 | BM19: =IF($C19=BM$11,1,0) -> 0 | BO19: =IF($C19=BO$11,1,0) -> 0 | BQ19: =IF($C19=BQ$11,1,0) -> 0 | BS19: =IF($C19=BS$11,1,0) -> 0 | BU19: =IF($C19=BU$11,1,0) -> 0 | BW19: =IF($C19=BW$11,1,0) -> 0 | BY19: =IF($C19=BY$11,1,0) -> 0 | CA19: =IF($C19=CA$11,1,0) -> 0 | CC19: =IF($C19=CC$11,1,0) -> 0 | CE19: =IF($C19=CE$11,1,0) -> 0 | CG19: =IF($C19=CG$11,1,0) -> 0 | CI19: =IF($C19=CI$11,1,0) -> 0 | CK19: =IF($C19=CK$11,1,0) -> 0 | CM19: =IF($C19=CM$11,1,0) -> 0 | CO19: =IF($C19=CO$11,1,0) -> 0 | CQ19: =IF($C19=CQ$11,1,0) -> 0 | CS19: =IF($C19=CS$11,1,0) -> 0 | CU19: =IF($C19=CU$11,1,0) -> 0 | CW19: =IF($C19=CW$11,1,0) -> 0 | CY19: =IF($C19=CY$11,1,0) -> 0 | DA19: =IF($C19=DA$11,1,0) -> 0 | DC19: =IF($C19=DC$11,1,0) -> 0 | DE19: =IF($C19=DE$11,1,0) -> 0 | DG19: =IF($C19=DG$11,1,0) -> 0 | DI19: =IF($C19=DI$11,1,0) -> 0 | DK19: =IF($C19=DK$11,1,0) -> 0 | DM19: =IF($C19=DM$11,1,0) -> 0 | DO19: =IF($C19=DO$11,1,0) -> 0 | DQ19: =IF($C19=DQ$11,1,0) -> 0 | DS19: =IF($C19=DS$11,1,0) -> 0 | DU19: =IF($C19=DU$11,1,0) -> 0 | DW19: =IF($C19=DW$11,1,0) -> 0 | DY19: =IF($C19=DY$11,1,0) -> 0
D20: =HLOOKUP($C20,'Dados Gerais'!$D$5:$BH$10,6) ->  | H20: =HLOOKUP($C20,'Dados Gerais'!$D$5:$BH$14,10) ->  | K20: 0 | M20: =IF($C20=M$11,1,0) -> 0 | O20: =IF($C20=O$11,1,0) -> 0 | Q20: =IF($C20=Q$11,1,0) -> 0 | S20: =IF($C20=S$11,1,0) -> 0 | U20: =IF($C20=U$11,1,0) -> 0 | W20: =IF($C20=W$11,1,0) -> 0 | Y20: =IF($C20=Y$11,1,0) -> 0 | AA20: =IF($C20=AA$11,1,0) -> 0 | AC20: =IF($C20=AC$11,1,0) -> 0 | AE20: =IF($C20=AE$11,1,0) -> 0 | AG20: =IF($C20=AG$11,1,0) -> 0 | AI20: =IF($C20=AI$11,1,0) -> 0 | AK20: =IF($C20=AK$11,1,0) -> 0 | AM20: =IF($C20=AM$11,1,0) -> 0 | AO20: =IF($C20=AO$11,1,0) -> 0 | AQ20: =IF($C20=AQ$11,1,0) -> 0 | AS20: =IF($C20=AS$11,1,0) -> 0 | AU20: =IF($C20=AU$11,1,0) -> 0 | AW20: =IF($C20=AW$11,1,0) -> 0 | AY20: =IF($C20=AY$11,1,0) -> 0 | BA20: =IF($C20=BA$11,1,0) -> 0 | BC20: =IF($C20=BC$11,1,0) -> 0 | BE20: =IF($C20=BE$11,1,0) -> 0 | BG20: =IF($C20=BG$11,1,0) -> 0 | BI20: =IF($C20=BI$11,1,0) -> 0 | BK20: =IF($C20=BK$11,1,0) -> 0 | BM20: =IF($C20=BM$11,1,0) -> 0 | BO20: =IF($C20=BO$11,1,0) -> 0 | BQ20: =IF($C20=BQ$11,1,0) -> 0 | BS20: =IF($C20=BS$11,1,0) -> 0 | BU20: =IF($C20=BU$11,1,0) -> 0 | BW20: =IF($C20=BW$11,1,0) -> 0 | BY20: =IF($C20=BY$11,1,0) -> 0 | CA20: =IF($C20=CA$11,1,0) -> 0 | CC20: =IF($C20=CC$11,1,0) -> 0 | CE20: =IF($C20=CE$11,1,0) -> 0 | CG20: =IF($C20=CG$11,1,0) -> 0 | CI20: =IF($C20=CI$11,1,0) -> 0 | CK20: =IF($C20=CK$11,1,0) -> 0 | CM20: =IF($C20=CM$11,1,0) -> 0 | CO20: =IF($C20=CO$11,1,0) -> 0 | CQ20: =IF($C20=CQ$11,1,0) -> 0 | CS20: =IF($C20=CS$11,1,0) -> 0 | CU20: =IF($C20=CU$11,1,0) -> 0 | CW20: =IF($C20=CW$11,1,0) -> 0 | CY20: =IF($C20=CY$11,1,0) -> 0 | DA20: =IF($C20=DA$11,1,0) -> 0 | DC20: =IF($C20=DC$11,1,0) -> 0 | DE20: =IF($C20=DE$11,1,0) -> 0 | DG20: =IF($C20=DG$11,1,0) -> 0 | DI20: =IF($C20=DI$11,1,0) -> 0 | DK20: =IF($C20=DK$11,1,0) -> 0 | DM20: =IF($C20=DM$11,1,0) -> 0 | DO20: =IF($C20=DO$11,1,0) -> 0 | DQ20: =IF($C20=DQ$11,1,0) -> 0 | DS20: =IF($C20=DS$11,1,0) -> 0 | DU20: =IF($C20=DU$11,1,0) -> 0 | DW20: =IF($C20=DW$11,1,0) -> 0 | DY20: =IF($C20=DY$11,1,0) -> 0
K21: 0
C23: ITEM | D23: DESCRIÇÃO | E23: QUANT ANUAL POR POSTO | F23: Nº DE POSTOS | G23: QUANT ANUAL TOTAL | H23: VALOR
L24: =IF(SUM(K$15:K$21)>0,$E24*$H24,0) -> 0 | N24: =IF(SUM(M$15:M$21)>0,$E24*$H24,0) -> 0 | P24: =IF(SUM(O$15:O$21)>0,$E24*$H24,0) -> 0 | R24: =IF(SUM(Q$15:Q$21)>0,$E24*$H24,0) -> 0 | T24: =IF(SUM(S$15:S$21)>0,$E24*$H24,0) -> 0 | V24: =IF(SUM(U$15:U$21)>0,$E24*$H24,0) -> 0 | X24: =IF(SUM(W$15:W$21)>0,$E24*$H24,0) -> 0 | Z24: =IF(SUM(Y$15:Y$21)>0,$E24*$H24,0) -> 0 | AB24: =IF(SUM(AA$15:AA$21)>0,$E24*$H24,0) -> 0 | AD24: =IF(SUM(AC$15:AC$21)>0,$E24*$H24,0) -> 0 | AF24: =IF(SUM(AE$15:AE$21)>0,$E24*$H24,0) -> 0 | AH24: =IF(SUM(AG$15:AG$21)>0,$E24*$H24,0) -> 0 | AJ24: =IF(SUM(AI$15:AI$21)>0,$E24*$H24,0) -> 0 | AL24: =IF(SUM(AK$15:AK$21)>0,$E24*$H24,0) -> 0 | AN24: =IF(SUM(AM$15:AM$21)>0,$E24*$H24,0) -> 0 | AP24: =IF(SUM(AO$15:AO$21)>0,$E24*$H24,0) -> 0 | AR24: =IF(SUM(AQ$15:AQ$21)>0,$E24*$H24,0) -> 0 | AT24: =IF(SUM(AS$15:AS$21)>0,$E24*$H24,0) -> 0 | AV24: =IF(SUM(AU$15:AU$21)>0,$E24*$H24,0) -> 0 | AX24: =IF(SUM(AW$15:AW$21)>0,$E24*$H24,0) -> 0 | AZ24: =IF(SUM(AY$15:AY$21)>0,$E24*$H24,0) -> 0 | BB24: =IF(SUM(BA$15:BA$21)>0,$E24*$H24,0) -> 0 | BD24: =IF(SUM(BC$15:BC$21)>0,$E24*$H24,0) -> 0 | BF24: =IF(SUM(BE$15:BE$21)>0,$E24*$H24,0) -> 0 | BH24: =IF(SUM(BG$15:BG$21)>0,$E24*$H24,0) -> 0 | BJ24: =IF(SUM(BI$15:BI$21)>0,$E24*$H24,0) -> 0 | BL24: =IF(SUM(BK$15:BK$21)>0,$E24*$H24,0) -> 0 | BN24: =IF(SUM(BM$15:BM$21)>0,$E24*$H24,0) -> 0 | BP24: =IF(SUM(BO$15:BO$21)>0,$E24*$H24,0) -> 0 | BR24: =IF(SUM(BQ$15:BQ$21)>0,$E24*$H24,0) -> 0 | BT24: =IF(SUM(BS$15:BS$21)>0,$E24*$H24,0) -> 0 | BV24: =IF(SUM(BU$15:BU$21)>0,$E24*$H24,0) -> 0 | BX24: =IF(SUM(BW$15:BW$21)>0,$E24*$H24,0) -> 0 | BZ24: =IF(SUM(BY$15:BY$21)>0,$E24*$H24,0) -> 0 | CB24: =IF(SUM(CA$15:CA$21)>0,$E24*$H24,0) -> 0 | CD24: =IF(SUM(CC$15:CC$21)>0,$E24*$H24,0) -> 0 | CF24: =IF(SUM(CE$15:CE$21)>0,$E24*$H24,0) -> 0 | CH24: =IF(SUM(CG$15:CG$21)>0,$E24*$H24,0) -> 0 | CJ24: =IF(SUM(CI$15:CI$21)>0,$E24*$H24,0) -> 0 | CL24: =IF(SUM(CK$15:CK$21)>0,$E24*$H24,0) -> 0 | CN24: =IF(SUM(CM$15:CM$21)>0,$E24*$H24,0) -> 0 | CP24: =IF(SUM(CO$15:CO$21)>0,$E24*$H24,0) -> 0 | CR24: =IF(SUM(CQ$15:CQ$21)>0,$E24*$H24,0) -> 0 | CT24: =IF(SUM(CS$15:CS$21)>0,$E24*$H24,0) -> 0 | CV24: =IF(SUM(CU$15:CU$21)>0,$E24*$H24,0) -> 0 | CX24: =IF(SUM(CW$15:CW$21)>0,$E24*$H24,0) -> 0 | CZ24: =IF(SUM(CY$15:CY$21)>0,$E24*$H24,0) -> 0 | DB24: =IF(SUM(DA$15:DA$21)>0,$E24*$H24,0) -> 0 | DD24: =IF(SUM(DC$15:DC$21)>0,$E24*$H24,0) -> 0 | DF24: =IF(SUM(DE$15:DE$21)>0,$E24*$H24,0) -> 0 | DH24: =IF(SUM(DG$15:DG$21)>0,$E24*$H24,0) -> 0 | DJ24: =IF(SUM(DI$15:DI$21)>0,$E24*$H24,0) -> 0 | DL24: =IF(SUM(DK$15:DK$21)>0,$E24*$H24,0) -> 0 | DN24: =IF(SUM(DM$15:DM$21)>0,$E24*$H24,0) -> 0 | DP24: =IF(SUM(DO$15:DO$21)>0,$E24*$H24,0) -> 0 | DR24: =IF(SUM(DQ$15:DQ$21)>0,$E24*$H24,0) -> 0 | DT24: =IF(SUM(DS$15:DS$21)>0,$E24*$H24,0) -> 0 | DV24: =IF(SUM(DU$15:DU$21)>0,$E24*$H24,0) -> 0 | DX24: =IF(SUM(DW$15:DW$21)>0,$E24*$H24,0) -> 0 | DZ24: =IF(SUM(DY$15:DY$21)>0,$E24*$H24,0) -> 0
C25: 1 | D25: Calça em microfibra na cor preta (masculina ou feminina) | E25: =G25/F25 ->  | F25: =SUM(H16:H20) ->  | G25: 174 | H25: 44.06 | L25: 0 | N25: 0 | P25: 0 | R25: 0 | T25: 0 | V25: 0 | X25: 0 | Z25: 0 | AB25: 0 | AD25: 0 | AF25: 0 | AH25: 0 | AJ25: 0 | AL25: 0 | AN25: 0 | AP25: 0 | AR25: 0 | AT25: 0 | AV25: 0 | AX25: 0 | AZ25: 0 | BB25: 0 | BD25: 0 | BF25: 0 | BH25: 0 | BJ25: 0 | BL25: 0 | BN25: 0 | BP25: 0 | BR25: 0 | BT25: 0 | BV25: 0 | BX25: 0 | BZ25: 0 | CB25: 0 | CD25: 0 | CF25: 0 | CH25: 0 | CJ25: 0 | CL25: 0 | CN25: 0 | CP25: 0 | CR25: 0 | CT25: 0 | CV25: 0 | CX25: 0 | CZ25: 0 | DB25: 0 | DD25: 0 | DF25: 0 | DH25: 0 | DJ25: 0 | DL25: 0 | DN25: 0 | DP25: 0 | DR25: 0 | DT25: 0 | DV25: 0 | DX25: 0 | DZ25: 0
C26: 2 | D26: Camisa social com manga comprida em poliéster cor cinza | F26: =F25 ->  | G26: 174 | H26: 50.5 | L26: 0 | N26: 0 | P26: 0 | R26: 0 | T26: 0 | V26: 0 | X26: 0 | Z26: 0 | AB26: 0 | AD26: 0 | AF26: 0 | AH26: 0 | AJ26: 0 | AL26: 0 | AN26: 0 | AP26: 0 | AR26: 0 | AT26: 0 | AV26: 0 | AX26: 0 | AZ26: 0 | BB26: 0 | BD26: 0 | BF26: 0 | BH26: 0 | BJ26: 0 | BL26: 0 | BN26: 0 | BP26: 0 | BR26: 0 | BT26: 0 | BV26: 0 | BX26: 0 | BZ26: 0 | CB26: 0 | CD26: 0 | CF26: 0 | CH26: 0 | CJ26: 0 | CL26: 0 | CN26: 0 | CP26: 0 | CR26: 0 | CT26: 0 | CV26: 0 | CX26: 0 | CZ26: 0 | DB26: 0 | DD26: 0 | DF26: 0 | DH26: 0 | DJ26: 0 | DL26: 0 | DN26: 0 | DP26: 0 | DR26: 0 | DT26: 0 | DV26: 0 | DX26: 0 | DZ26: 0
C27: 3 | D27: Gravata preta | F27: =F26 ->  | G27: 58 | H27: 14.44 | L27: 0 | N27: 0 | P27: 0 | R27: 0 | T27: 0 | V27: 0 | X27: 0 | Z27: 0 | AB27: 0 | AD27: 0 | AF27: 0 | AH27: 0 | AJ27: 0 | AL27: 0 | AN27: 0 | AP27: 0 | AR27: 0 | AT27: 0 | AV27: 0 | AX27: 0 | AZ27: 0 | BB27: 0 | BD27: 0 | BF27: 0 | BH27: 0 | BJ27: 0 | BL27: 0 | BN27: 0 | BP27: 0 | BR27: 0 | BT27: 0 | BV27: 0 | BX27: 0 | BZ27: 0 | CB27: 0 | CD27: 0 | CF27: 0 | CH27: 0 | CJ27: 0 | CL27: 0 | CN27: 0 | CP27: 0 | CR27: 0 | CT27: 0 | CV27: 0 | CX27: 0 | CZ27: 0 | DB27: 0 | DD27: 0 | DF27: 0 | DH27: 0 | DJ27: 0 | DL27: 0 | DN27: 0 | DP27: 0 | DR27: 0 | DT27: 0 | DV27: 0 | DX27: 0 | DZ27: 0
C28: 4 | D28: Guarda pó manga curta em poliéster na cor branca | F28: =F27 ->  | G28: 116 | H28: 73.62 | L28: 0 | N28: 0 | P28: 0 | R28: 0 | T28: 0 | V28: 0 | X28: 0 | Z28: 0 | AB28: 0 | AD28: 0 | AF28: 0 | AH28: 0 | AJ28: 0 | AL28: 0 | AN28: 0 | AP28: 0 | AR28: 0 | AT28: 0 | AV28: 0 | AX28: 0 | AZ28: 0 | BB28: 0 | BD28: 0 | BF28: 0 | BH28: 0 | BJ28: 0 | BL28: 0 | BN28: 0 | BP28: 0 | BR28: 0 | BT28: 0 | BV28: 0 | BX28: 0 | BZ28: 0 | CB28: 0 | CD28: 0 | CF28: 0 | CH28: 0 | CJ28: 0 | CL28: 0 | CN28: 0 | CP28: 0 | CR28: 0 | CT28: 0 | CV28: 0 | CX28: 0 | CZ28: 0 | DB28: 0 | DD28: 0 | DF28: 0 | DH28: 0 | DJ28: 0 | DL28: 0 | DN28: 0 | DP28: 0 | DR28: 0 | DT28: 0 | DV28: 0 | DX28: 0 | DZ28: 0
C29: 5 | D29: Meias na cor preta | F29: =F28 ->  | G29: 174 | H29: 6.56 | L29: 0 | N29: 0 | P29: 0 | R29: 0 | T29: 0 | V29: 0 | X29: 0 | Z29: 0 | AB29: 0 | AD29: 0 | AF29: 0 | AH29: 0 | AJ29: 0 | AL29: 0 | AN29: 0 | AP29: 0 | AR29: 0 | AT29: 0 | AV29: 0 | AX29: 0 | AZ29: 0 | BB29: 0 | BD29: 0 | BF29: 0 | BH29: 0 | BJ29: 0 | BL29: 0 | BN29: 0 | BP29: 0 | BR29: 0 | BT29: 0 | BV29: 0 | BX29: 0 | BZ29: 0 | CB29: 0 | CD29: 0 | CF29: 0 | CH29: 0 | CJ29: 0 | CL29: 0 | CN29: 0 | CP29: 0 | CR29: 0 | CT29: 0 | CV29: 0 | CX29: 0 | CZ29: 0 | DB29: 0 | DD29: 0 | DF29: 0 | DH29: 0 | DJ29: 0 | DL29: 0 | DN29: 0 | DP29: 0 | DR29: 0 | DT29: 0 | DV29: 0 | DX29: 0 | DZ29: 0
C30: 6 | D30: Cinto | F30: =F29 ->  | G30: 58 | H30: 56 | L30: 0 | N30: 0 | P30: 0 | R30: 0 | T30: 0 | V30: 0 | X30: 0 | Z30: 0 | AB30: 0 | AD30: 0 | AF30: 0 | AH30: 0 | AJ30: 0 | AL30: 0 | AN30: 0 | AP30: 0 | AR30: 0 | AT30: 0 | AV30: 0 | AX30: 0 | AZ30: 0 | BB30: 0 | BD30: 0 | BF30: 0 | BH30: 0 | BJ30: 0 | BL30: 0 | BN30: 0 | BP30: 0 | BR30: 0 | BT30: 0 | BV30: 0 | BX30: 0 | BZ30: 0 | CB30: 0 | CD30: 0 | CF30: 0 | CH30: 0 | CJ30: 0 | CL30: 0 | CN30: 0 | CP30: 0 | CR30: 0 | CT30: 0 | CV30: 0 | CX30: 0 | CZ30: 0 | DB30: 0 | DD30: 0 | DF30: 0 | DH30: 0 | DJ30: 0 | DL30: 0 | DN30: 0 | DP30: 0 | DR30: 0 | DT30: 0 | DV30: 0 | DX30: 0 | DZ30: 0
L31: 0 | N31: 0 | P31: 0 | R31: 0 | T31: 0 | V31: 0 | X31: 0 | Z31: 0 | AB31: 0 | AD31: 0 | AF31: 0 | AH31: 0 | AJ31: 0 | AL31: 0 | AN31: 0 | AP31: 0 | AR31: 0 | AT31: 0 | AV31: 0 | AX31: 0 | AZ31: 0 | BB31: 0 | BD31: 0 | BF31: 0 | BH31: 0 | BJ31: 0 | BL31: 0 | BN31: 0 | BP31: 0 | BR31: 0 | BT31: 0 | BV31: 0 | BX31: 0 | BZ31: 0 | CB31: 0 | CD31: 0 | CF31: 0 | CH31: 0 | CJ31: 0 | CL31: 0 | CN31: 0 | CP31: 0 | CR31: 0 | CT31: 0 | CV31: 0 | CX31: 0 | CZ31: 0 | DB31: 0 | DD31: 0 | DF31: 0 | DH31: 0 | DJ31: 0 | DL31: 0 | DN31: 0 | DP31: 0 | DR31: 0 | DT31: 0 | DV31: 0 | DX31: 0 | DZ31: 0
K33: =SUMPRODUCT($E$25:$E$30,$H$25:$H$30) -> 
K34: =K33*($H$16+#REF!) -> 
K35: =K34/12 -> 
K36: =K35/91 -> 

Sheet Mat Perm (hidden)
C1: CÂMARA DOS DEPUTADOS
C2: DEPARTAMENTO TÉCNICO
C3: Coordenação de Planejamento e Gestão
C5: Data: | D5: ='Dados Gerais'!#REF! -> 
C6: Processo: | D6: ='Dados Gerais'!#REF! -> 
C7: Objeto: | D7: ='Dados Gerais'!#REF! -> 
B11: MATERIAIS PERMANENTES RELACIONADOS AO POSTO - PAGAMENTO DA DEPRECIAÇÃO / MANUTENÇÃO | Q11: 1 | S11: =Q11+1 -> 2 | U11: =S11+1 -> 3 | W11: =U11+1 -> 4 | Y11: =W11+1 -> 5 | AA11: =Y11+1 -> 6 | AC11: =AA11+1 -> 7 | AE11: =AC11+1 -> 8 | AG11: =AE11+1 -> 9 | AI11: =AG11+1 -> 10 | AK11: =AI11+1 -> 11 | AM11: =AK11+1 -> 12 | AO11: =AM11+1 -> 13 | AQ11: =AO11+1 -> 14 | AS11: =AQ11+1 -> 15 | AU11: =AS11+1 -> 16 | AW11: =AU11+1 -> 17 | AY11: =AW11+1 -> 18 | BA11: =AY11+1 -> 19 | BC11: =BA11+1 -> 20 | BE11: =BC11+1 -> 21 | BG11: =BE11+1 -> 22 | BI11: =BG11+1 -> 23 | BK11: =BI11+1 -> 24 | BM11: =BK11+1 -> 25 | BO11: =BM11+1 -> 26 | BQ11: =BO11+1 -> 27 | BS11: =BQ11+1 -> 28 | BU11: =BS11+1 -> 29 | BW11: =BU11+1 -> 30 | BY11: =BW11+1 -> 31 | CA11: =BY11+1 -> 32 | CC11: =CA11+1 -> 33 | CE11: =CC11+1 -> 34 | CG11: =CE11+1 -> 35 | CI11: =CG11+1 -> 36 | CK11: =CI11+1 -> 37 | CM11: =CK11+1 -> 38 | CO11: =CM11+1 -> 39 | CQ11: =CO11+1 -> 40 | CS11: =CQ11+1 -> 41 | CU11: =CS11+1 -> 42 | CW11: =CU11+1 -> 43 | CY11: =CW11+1 -> 44 | DA11: =CY11+1 -> 45 | DC11: =DA11+1 -> 46 | DE11: =DC11+1 -> 47 | DG11: =DE11+1 -> 48 | DI11: =DG11+1 -> 49 | DK11: =DI11+1 -> 50 | DM11: =DK11+1 -> 51 | DO11: =DM11+1 -> 52 | DQ11: =DO11+1 -> 53 | DS11: =DQ11+1 -> 54 | DU11: =DS11+1 -> 55 | DW11: =DU11+1 -> 56 | DY11: =DW11+1 -> 57 | EA11: =DY11+1 -> 58 | EC11: =EA11+1 -> 59 | EE11: =EC11+1 -> 60
Q13: =SUM(R12:R94) -> 0 | S13: =SUM(T12:T94) -> 0 | U13: =SUM(V12:V94) -> 0 | W13: =SUM(X12:X94) -> 0 | Y13: =SUM(Z12:Z94) -> 0 | AA13: =SUM(AB12:AB94) -> 0 | AC13: =SUM(AD12:AD94) -> 0 | AE13: =SUM(AF12:AF94) -> 0 | AG13: =SUM(AH12:AH94) -> 0 | AI13: =SUM(AJ12:AJ94) -> 0 | AK13: =SUM(AL12:AL94) -> 0 | AM13: =SUM(AN12:AN94) -> 0 | AO13: =SUM(AP12:AP94) -> 0 | AQ13: =SUM(AR12:AR94) -> 0 | AS13: =SUM(AT12:AT94) -> 0 | AU13: =SUM(AV12:AV94) -> 0 | AW13: =SUM(AX12:AX94) -> 0 | AY13: =SUM(AZ12:AZ94) -> 0 | BA13: =SUM(BB12:BB94) -> 0 | BC13: =SUM(BD12:BD94) -> 0 | BE13: =SUM(BF12:BF94) -> 0 | BG13: =SUM(BH12:BH94) -> 0 | BI13: =SUM(BJ12:BJ94) -> 0 | BK13: =SUM(BL12:BL94) -> 0 | BM13: =SUM(BN12:BN94) -> 0 | BO13: =SUM(BP12:BP94) -> 0 | BQ13: =SUM(BR12:BR94) -> 0 | BS13: =SUM(BT12:BT94) -> 0 | BU13: =SUM(BV12:BV94) -> 0 | BW13: =SUM(BX12:BX94) -> 0 | BY13: =SUM(BZ12:BZ94) -> 0 | CA13: =SUM(CB12:CB94) -> 0 | CC13: =SUM(CD12:CD94) -> 0 | CE13: =SUM(CF12:CF94) -> 0 | CG13: =SUM(CH12:CH94) -> 0 | CI13: =SUM(CJ12:CJ94) -> 0 | CK13: =SUM(CL12:CL94) -> 0 | CM13: =SUM(CN12:CN94) -> 0 | CO13: =SUM(CP12:CP94) -> 0 | CQ13: =SUM(CR12:CR94) -> 0 | CS13: =SUM(CT12:CT94) -> 0 | CU13: =SUM(CV12:CV94) -> 0 | CW13: =SUM(CX12:CX94) -> 0 | CY13: =SUM(CZ12:CZ94) -> 0 | DA13: =SUM(DB12:DB94) -> 0 | DC13: =SUM(DD12:DD94) -> 0 | DE13: =SUM(DF12:DF94) -> 0 | DG13: =SUM(DH12:DH94) -> 0 | DI13: =SUM(DJ12:DJ94) -> 0 | DK13: =SUM(DL12:DL94) -> 0 | DM13: =SUM(DN12:DN94) -> 0 | DO13: =SUM(DP12:DP94) -> 0 | DQ13: =SUM(DR12:DR94) -> 0 | DS13: =SUM(DT12:DT94) -> 0 | DU13: =SUM(DV12:DV94) -> 0 | DW13: =SUM(DX12:DX94) -> 0 | DY13: =SUM(DZ12:DZ94) -> 0 | EA13: =SUM(EB12:EB94) -> 0 | EC13: =SUM(ED12:ED94) -> 0 | EE13: =SUM(EF12:EF94) -> 0
C14: CATEGORIAS | E14: QUANTIDADE
Q15: =IF($C15=Q$11,1,0) -> 0 | S15: =IF($C15=S$11,1,0) -> 0 | U15: =IF($C15=U$11,1,0) -> 0 | W15: =IF($C15=W$11,1,0) -> 0 | Y15: =IF($C15=Y$11,1,0) -> 0 | AA15: =IF($C15=AA$11,1,0) -> 0 | AC15: =IF($C15=AC$11,1,0) -> 0 | AE15: =IF($C15=AE$11,1,0) -> 0 | AG15: =IF($C15=AG$11,1,0) -> 0 | AI15: =IF($C15=AI$11,1,0) -> 0 | AK15: =IF($C15=AK$11,1,0) -> 0 | AM15: =IF($C15=AM$11,1,0) -> 0 | AO15: =IF($C15=AO$11,1,0) -> 0 | AQ15: =IF($C15=AQ$11,1,0) -> 0 | AS15: =IF($C15=AS$11,1,0) -> 0 | AU15: =IF($C15=AU$11,1,0) -> 0 | AW15: =IF($C15=AW$11,1,0) -> 0 | AY15: =IF($C15=AY$11,1,0) -> 0 | BA15: =IF($C15=BA$11,1,0) -> 0 | BC15: =IF($C15=BC$11,1,0) -> 0 | BE15: =IF($C15=BE$11,1,0) -> 0 | BG15: =IF($C15=BG$11,1,0) -> 0 | BI15: =IF($C15=BI$11,1,0) -> 0 | BK15: =IF($C15=BK$11,1,0) -> 0 | BM15: =IF($C15=BM$11,1,0) -> 0 | BO15: =IF($C15=BO$11,1,0) -> 0 | BQ15: =IF($C15=BQ$11,1,0) -> 0 | BS15: =IF($C15=BS$11,1,0) -> 0 | BU15: =IF($C15=BU$11,1,0) -> 0 | BW15: =IF($C15=BW$11,1,0) -> 0 | BY15: =IF($C15=BY$11,1,0) -> 0 | CA15: =IF($C15=CA$11,1,0) -> 0 | CC15: =IF($C15=CC$11,1,0) -> 0 | CE15: =IF($C15=CE$11,1,0) -> 0 | CG15: =IF($C15=CG$11,1,0) -> 0 | CI15: =IF($C15=CI$11,1,0) -> 0 | CK15: =IF($C15=CK$11,1,0) -> 0 | CM15: =IF($C15=CM$11,1,0) -> 0 | CO15: =IF($C15=CO$11,1,0) -> 0 | CQ15: =IF($C15=CQ$11,1,0) -> 0 | CS15: =IF($C15=CS$11,1,0) -> 0 | CU15: =IF($C15=CU$11,1,0) -> 0 | CW15: =IF($C15=CW$11,1,0) -> 0 | CY15: =IF($C15=CY$11,1,0) -> 0 | DA15: =IF($C15=DA$11,1,0) -> 0 | DC15: =IF($C15=DC$11,1,0) -> 0 | DE15: =IF($C15=DE$11,1,0) -> 0 | DG15: =IF($C15=DG$11,1,0) -> 0 | DI15: =IF($C15=DI$11,1,0) -> 0 | DK15: =IF($C15=DK$11,1,0) -> 0 | DM15: =IF($C15=DM$11,1,0) -> 0 | DO15: =IF($C15=DO$11,1,0) -> 0 | DQ15: =IF($C15=DQ$11,1,0) -> 0 | DS15: =IF($C15=DS$11,1,0) -> 0 | DU15: =IF($C15=DU$11,1,0) -> 0 | DW15: =IF($C15=DW$11,1,0) -> 0 | DY15: =IF($C15=DY$11,1,0) -> 0 | EA15: =IF($C15=EA$11,1,0) -> 0 | EC15: =IF($C15=EC$11,1,0) -> 0 | EE15: =IF($C15=EE$11,1,0) -> 0
C16: 1 | D16: =HLOOKUP($C16,'Dados Gerais'!$D$5:$BH$10,6) -> Analista de TI - Agile Master - sênior | E16: =HLOOKUP($C16,'Dados Gerais'!$D$5:$BH$14,10) -> 8 | Q16: 1 | S16: 0 | U16: 0 | W16: 0 | Y16: 0 | AA16: 0 | AC16: 0 | AE16: 0 | AG16: 0 | AI16: 0 | AK16: 0 | AM16: 0 | AO16: 0 | AQ16: 0 | AS16: 0 | AU16: 0 | AW16: 0 | AY16: 0 | BA16: 0 | BC16: 0 | BE16: 0 | BG16: 0 | BI16: 0 | BK16: 0 | BM16: 0 | BO16: 0 | BQ16: 0 | BS16: 0 | BU16: 0 | BW16: 0 | BY16: 0 | CA16: 0 | CC16: 0 | CE16: 0 | CG16: 0 | CI16: 0 | CK16: 0 | CM16: 0 | CO16: 0 | CQ16: 0 | CS16: 0 | CU16: 0 | CW16: 0 | CY16: 0 | DA16: 0 | DC16: 0 | DE16: 0 | DG16: 0 | DI16: 0 | DK16: 0 | DM16: 0 | DO16: 0 | DQ16: 0 | DS16: 0 | DU16: 0 | DW16: 0 | DY16: 0 | EA16: 0 | EC16: 0 | EE16: 0
C17: 3 | D17: =HLOOKUP($C17,'Dados Gerais'!$D$5:$BH$10,6) -> Analista de TI - Analista de Dados - sênior | E17: =HLOOKUP($C17,'Dados Gerais'!$D$5:$BH$14,10) -> 9 | Q17: 0 | S17: 0 | U17: 1 | W17: 0 | Y17: 0 | AA17: 0 | AC17: 0 | AE17: 0 | AG17: 0 | AI17: 0 | AK17: 0 | AM17: 0 | AO17: 0 | AQ17: 0 | AS17: 0 | AU17: 0 | AW17: 0 | AY17: 0 | BA17: 0 | BC17: 0 | BE17: 0 | BG17: 0 | BI17: 0 | BK17: 0 | BM17: 0 | BO17: 0 | BQ17: 0 | BS17: 0 | BU17: 0 | BW17: 0 | BY17: 0 | CA17: 0 | CC17: 0 | CE17: 0 | CG17: 0 | CI17: 0 | CK17: 0 | CM17: 0 | CO17: 0 | CQ17: 0 | CS17: 0 | CU17: 0 | CW17: 0 | CY17: 0 | DA17: 0 | DC17: 0 | DE17: 0 | DG17: 0 | DI17: 0 | DK17: 0 | DM17: 0 | DO17: 0 | DQ17: 0 | DS17: 0 | DU17: 0 | DW17: 0 | DY17: 0 | EA17: 0 | EC17: 0 | EE17: 0
C18: 4 | D18: =HLOOKUP($C18,'Dados Gerais'!$D$5:$BH$10,6) -> Analista de TI - Arquiteto de Dados - sênior | E18: =HLOOKUP($C18,'Dados Gerais'!$D$5:$BH$14,10) -> 6 | Q18: 0 | S18: 0 | U18: 0 | W18: 1 | Y18: 0 | AA18: 0 | AC18: 0 | AE18: 0 | AG18: 0 | AI18: 0 | AK18: 0 | AM18: 0 | AO18: 0 | AQ18: 0 | AS18: 0 | AU18: 0 | AW18: 0 | AY18: 0 | BA18: 0 | BC18: 0 | BE18: 0 | BG18: 0 | BI18: 0 | BK18: 0 | BM18: 0 | BO18: 0 | BQ18: 0 | BS18: 0 | BU18: 0 | BW18: 0 | BY18: 0 | CA18: 0 | CC18: 0 | CE18: 0 | CG18: 0 | CI18: 0 | CK18: 0 | CM18: 0 | CO18: 0 | CQ18: 0 | CS18: 0 | CU18: 0 | CW18: 0 | CY18: 0 | DA18: 0 | DC18: 0 | DE18: 0 | DG18: 0 | DI18: 0 | DK18: 0 | DM18: 0 | DO18: 0 | DQ18: 0 | DS18: 0 | DU18: 0 | DW18: 0 | DY18: 0 | EA18: 0 | EC18: 0 | EE18: 0
C19: 5 | D19: =HLOOKUP($C19,'Dados Gerais'!$D$5:$BH$10,6) -> Analista de TI - Planejamento e Processos Digitais - sênior | E19: =HLOOKUP($C19,'Dados Gerais'!$D$5:$BH$14,10) -> 4 | Q19: 0 | S19: 0 | U19: 0 | W19: 0 | Y19: 1 | AA19: 0 | AC19: 0 | AE19: 0 | AG19: 0 | AI19: 0 | AK19: 0 | AM19: 0 | AO19: 0 | AQ19: 0 | AS19: 0 | AU19: 0 | AW19: 0 | AY19: 0 | BA19: 0 | BC19: 0 | BE19: 0 | BG19: 0 | BI19: 0 | BK19: 0 | BM19: 0 | BO19: 0 | BQ19: 0 | BS19: 0 | BU19: 0 | BW19: 0 | BY19: 0 | CA19: 0 | CC19: 0 | CE19: 0 | CG19: 0 | CI19: 0 | CK19: 0 | CM19: 0 | CO19: 0 | CQ19: 0 | CS19: 0 | CU19: 0 | CW19: 0 | CY19: 0 | DA19: 0 | DC19: 0 | DE19: 0 | DG19: 0 | DI19: 0 | DK19: 0 | DM19: 0 | DO19: 0 | DQ19: 0 | DS19: 0 | DU19: 0 | DW19: 0 | DY19: 0 | EA19: 0 | EC19: 0 | EE19: 0
C20: 6 | D20: =HLOOKUP($C20,'Dados Gerais'!$D$5:$BH$10,6) -> Analista de Design e Cultura Digital - sênior | E20: =HLOOKUP($C20,'Dados Gerais'!$D$5:$BH$14,10) -> 2 | Q20: 0 | S20: 0 | U20: 0 | W20: 0 | Y20: 0 | AA20: 1 | AC20: 0 | AE20: 0 | AG20: 0 | AI20: 0 | AK20: 0 | AM20: 0 | AO20: 0 | AQ20: 0 | AS20: 0 | AU20: 0 | AW20: 0 | AY20: 0 | BA20: 0 | BC20: 0 | BE20: 0 | BG20: 0 | BI20: 0 | BK20: 0 | BM20: 0 | BO20: 0 | BQ20: 0 | BS20: 0 | BU20: 0 | BW20: 0 | BY20: 0 | CA20: 0 | CC20: 0 | CE20: 0 | CG20: 0 | CI20: 0 | CK20: 0 | CM20: 0 | CO20: 0 | CQ20: 0 | CS20: 0 | CU20: 0 | CW20: 0 | CY20: 0 | DA20: 0 | DC20: 0 | DE20: 0 | DG20: 0 | DI20: 0 | DK20: 0 | DM20: 0 | DO20: 0 | DQ20: 0 | DS20: 0 | DU20: 0 | DW20: 0 | DY20: 0 | EA20: 0 | EC20: 0 | EE20: 0
C21: 7 | D21: =HLOOKUP($C21,'Dados Gerais'!$D$5:$BH$10,6) -> Analista de Design e Cultura Digital - sênior | E21: =HLOOKUP($C21,'Dados Gerais'!$D$5:$BH$14,10) -> 2 | Q21: 0 | S21: 0 | U21: 0 | W21: 0 | Y21: 0 | AA21: 0 | AC21: 1 | AE21: 0 | AG21: 0 | AI21: 0 | AK21: 0 | AM21: 0 | AO21: 0 | AQ21: 0 | AS21: 0 | AU21: 0 | AW21: 0 | AY21: 0 | BA21: 0 | BC21: 0 | BE21: 0 | BG21: 0 | BI21: 0 | BK21: 0 | BM21: 0 | BO21: 0 | BQ21: 0 | BS21: 0 | BU21: 0 | BW21: 0 | BY21: 0 | CA21: 0 | CC21: 0 | CE21: 0 | CG21: 0 | CI21: 0 | CK21: 0 | CM21: 0 | CO21: 0 | CQ21: 0 | CS21: 0 | CU21: 0 | CW21: 0 | CY21: 0 | DA21: 0 | DC21: 0 | DE21: 0 | DG21: 0 | DI21: 0 | DK21: 0 | DM21: 0 | DO21: 0 | DQ21: 0 | DS21: 0 | DU21: 0 | DW21: 0 | DY21: 0 | EA21: 0 | EC21: 0 | EE21: 0
Q22: 0 | S22: 0 | U22: 0 | W22: 0 | Y22: 0 | AA22: 0 | AC22: 0 | AE22: 0 | AG22: 0 | AI22: 0 | AK22: 0 | AM22: 0 | AO22: 0 | AQ22: 0 | AS22: 0 | AU22: 0 | AW22: 0 | AY22: 0 | BA22: 0 | BC22: 0 | BE22: 0 | BG22: 0 | BI22: 0 | BK22: 0 | BM22: 0 | BO22: 0 | BQ22: 0 | BS22: 0 | BU22: 0 | BW22: 0 | BY22: 0 | CA22: 0 | CC22: 0 | CE22: 0 | CG22: 0 | CI22: 0 | CK22: 0 | CM22: 0 | CO22: 0 | CQ22: 0 | CS22: 0 | CU22: 0 | CW22: 0 | CY22: 0 | DA22: 0 | DC22: 0 | DE22: 0 | DG22: 0 | DI22: 0 | DK22: 0 | DM22: 0 | DO22: 0 | DQ22: 0 | DS22: 0 | DU22: 0 | DW22: 0 | DY22: 0 | EA22: 0 | EC22: 0 | EE22: 0
C24: PAGAMENTO DA DEPRECIAÇÃO
C25: ITEM | D25: DESCRIÇÃO | E25: QUANT ANUAL | F25: CONTA SIAFI | G25: VALOR DE AQ. | H25: % RESIDUAL | I25: VIDA ÚTIL | J25: DEP. MENSAL | K25: CUSTO TOTAL | L25: BDI (%) | M25: PREÇO TOTAL | N25: FONTE | O25: REFERÊNCIA
G27: 0 | H27: 0.1 | I27: 10 | J27: =G27*(1-H27)/(I27*12) -> 0 | K27: =J27*E27 -> 0 | L27: =BDI!$E$26 -> 0.2663 | M27: =ROUND(K27*(1+L27),2) -> 0 | N27: COTAÇÃO
G28: 0 | H28: 0.1 | I28: 10 | J28: =G28*(1-H28)/(I28*12) -> 0 | K28: =J28*E28 -> 0 | L28: =BDI!$E$26 -> 0.2663 | M28: =ROUND(K28*(1+L28),2) -> 0 | N28: COTAÇÃO
G29: 0 | H29: 0.1 | I29: 10 | J29: 0 | K29: 0 | L29: =BDI!$E$26 -> 0.2663 | M29: 0 | N29: COTAÇÃO
G30: 0 | H30: 0.1 | I30: 10 | J30: 0 | K30: 0 | L30: =BDI!$E$26 -> 0.2663 | M30: 0 | N30: COTAÇÃO
G31: 0 | H31: 0.1 | I31: 10 | J31: 0 | K31: 0 | L31: =BDI!$E$26 -> 0.2663 | M31: 0 | N31: COTAÇÃO
G32: 0 | H32: 0.1 | I32: 10 | J32: 0 | K32: 0 | L32: =BDI!$E$26 -> 0.2663 | M32: 0 | N32: COTAÇÃO
G33: 0 | H33: 0.1 | I33: 10 | J33: 0 | K33: 0 | L33: =BDI!$E$26 -> 0.2663 | M33: 0 | N33: COTAÇÃO
G34: 0 | H34: 0.1 | I34: 10 | J34: 0 | K34: 0 | L34: =BDI!$E$26 -> 0.2663 | M34: 0 | N34: COTAÇÃO
G35: 0 | H35: 0.1 | I35: 10 | J35: 0 | K35: 0 | L35: =BDI!$E$26 -> 0.2663 | M35: 0 | N35: COTAÇÃO
G36: 0 | H36: 0.1 | I36: 10 | J36: 0 | K36: 0 | L36: =BDI!$E$26 -> 0.2663 | M36: 0 | N36: COTAÇÃO
G37: 0 | H37: 0.1 | I37: 10 | J37: 0 | K37: 0 | L37: =BDI!$E$26 -> 0.2663 | M37: 0 | N37: COTAÇÃO
G38: 0 | H38: 0.1 | I38: 10 | J38: 0 | K38: 0 | L38: =BDI!$E$26 -> 0.2663 | M38: 0 | N38: COTAÇÃO
G39: 0 | H39: 0.1 | I39: 10 | J39: 0 | K39: 0 | L39: =BDI!$E$26 -> 0.2663 | M39: 0 | N39: COTAÇÃO
G40: 0 | H40: 0.1 | I40: 10 | J40: 0 | K40: 0 | L40: =BDI!$E$26 -> 0.2663 | M40: 0 | N40: COTAÇÃO
G41: 0 | H41: 0.1 | I41: 10 | J41: 0 | K41: 0 | L41: =BDI!$E$26 -> 0.2663 | M41: 0 | N41: COTAÇÃO
G42: 0 | H42: 0.1 | I42: 10 | J42: 0 | K42: 0 | L42: =BDI!$E$26 -> 0.2663 | M42: 0 | N42: COTAÇÃO
G43: 0 | H43: 0.1 | I43: 10 | J43: 0 | K43: 0 | L43: =BDI!$E$26 -> 0.2663 | M43: 0 | N43: COTAÇÃO
G44: 0 | H44: 0.1 | I44: 10 | J44: 0 | K44: 0 | L44: =BDI!$E$26 -> 0.2663 | M44: 0 | N44: COTAÇÃO
G45: 0 | H45: 0.1 | I45: 10 | J45: 0 | K45: 0 | L45: =BDI!$E$26 -> 0.2663 | M45: 0 | N45: COTAÇÃO
G46: 0 | H46: 0.1 | I46: 10 | J46: 0 | K46: 0 | L46: =BDI!$E$26 -> 0.2663 | M46: 0 | N46: COTAÇÃO
G47: 0 | H47: 0.1 | I47: 10 | J47: 0 | K47: 0 | L47: =BDI!$E$26 -> 0.2663 | M47: 0 | N47: COTAÇÃO
G48: 0 | H48: 0.1 | I48: 10 | J48: 0 | K48: 0 | L48: =BDI!$E$26 -> 0.2663 | M48: 0 | N48: COTAÇÃO
G49: 0 | H49: 0.1 | I49: 10 | J49: 0 | K49: 0 | L49: =BDI!$E$26 -> 0.2663 | M49: 0 | N49: COTAÇÃO
G50: 0 | H50: 0.1 | I50: 10 | J50: 0 | K50: 0 | L50: =BDI!$E$26 -> 0.2663 | M50: 0 | N50: COTAÇÃO
G51: 0 | H51: 0.1 | I51: 10 | J51: 0 | K51: 0 | L51: =BDI!$E$26 -> 0.2663 | M51: 0 | N51: COTAÇÃO
G52: 0 | H52: 0.1 | I52: 10 | J52: 0 | K52: 0 | L52: =BDI!$E$26 -> 0.2663 | M52: 0 | N52: COTAÇÃO
G53: 0 | H53: 0.1 | I53: 10 | J53: 0 | K53: 0 | L53: =BDI!$E$26 -> 0.2663 | M53: 0 | N53: COTAÇÃO
G54: 0 | H54: 0.1 | I54: 10 | J54: 0 | K54: 0 | L54: =BDI!$E$26 -> 0.2663 | M54: 0 | N54: COTAÇÃO
G55: 0 | H55: 0.1 | I55: 10 | J55: 0 | K55: 0 | L55: =BDI!$E$26 -> 0.2663 | M55: 0 | N55: COTAÇÃO
C58: PAGAMENTO DA MANUTENÇÃO
C59: ITEM | D59: DESCRIÇÃO | H59: K (calculado) | I59: MENSAL DEPR. | J59: % MAN X DEP | K59: MENSAL MAN. | L59: BDI (%) | M59: PREÇO TOTAL
H61: =H68 -> 0.5937624 | I61: =SUM(M27:M55) -> 0 | J61: =H61 -> 0.5937624 | K61: =I61*H61 -> 0 | L61: =L27 -> 0.2663 | M61: =ROUND(K61*(1+L61),2) -> 0
E63: K1 | F63: K2 | G63: K3 | H63: K4
E64: 0.85 | F64: 1 | G64: 0.8 | H64: 1.4
E65: K5 | F65: K6 | G65: K7 | H65: K8
E66: 1 | F66: 0.6 | G66: 0.5 | H66: 1.1
E67: K9 | F67: K10 | G67: K11 | H67: RESULTADO
D68: * a descrição de cada coeficiente segue abaixo | E68: 1.5 | F68: 0.9 | G68: 1.4 | H68: =E64*F64*G64*H64*E66*F66*G66*H66*E68*F68*G68 -> 0.5937624
C71: MATERIAL DE CONSUMO ASSOCIADO
C72: ITEM | D72: DESCRIÇÃO | H72: QUANTID/ANO | I72: UNIDADE | J72: VALOR DE AQ. | K72: MENSAL MAT | L72: BDI (%) | M72: PREÇO TOTAL
K74: =J74*H74/12 -> 0 | L74: =L61 -> 0.2663 | M74: =ROUND(K74*(1+L74),2) -> 0
C77: MATERIAL DE CONSUMO ASSOCIADO
C78: ITEM | D78: DESCRIÇÃO | M78: PREÇO TOTAL
C80: 1 | D80: Componente DEPRECIAÇÃO - POR POSTO | M80: =I61 -> 0
C81: 2 | D81: Componente MANUTENÇÃO - POR POSTO | M81: =M61 -> 0
C82: 3 | D82: Componente MATERIAL DE CONSUMO ASSOCIADO - POR POSTO | M82: =M74 -> 0
L84: SOMATÓRIO TOTAL MENSAL - POR POSTO | M84: =SUM(M79:M83) -> 0 | R84: =IF(SUM(Q$15:Q$22)>0,$M84,0) -> 0 | T84: =IF(SUM(S$15:S$22)>0,$M84,0) -> 0 | V84: =IF(SUM(U$15:U$22)>0,$M84,0) -> 0 | X84: =IF(SUM(W$15:W$22)>0,$M84,0) -> 0 | Z84: =IF(SUM(Y$15:Y$22)>0,$M84,0) -> 0 | AB84: =IF(SUM(AA$15:AA$22)>0,$M84,0) -> 0 | AD84: =IF(SUM(AC$15:AC$22)>0,$M84,0) -> 0 | AF84: =IF(SUM(AE$15:AE$22)>0,$M84,0) -> 0 | AH84: =IF(SUM(AG$15:AG$22)>0,$M84,0) -> 0 | AJ84: =IF(SUM(AI$15:AI$22)>0,$M84,0) -> 0 | AL84: =IF(SUM(AK$15:AK$22)>0,$M84,0) -> 0 | AN84: =IF(SUM(AM$15:AM$22)>0,$M84,0) -> 0 | AP84: =IF(SUM(AO$15:AO$22)>0,$M84,0) -> 0 | AR84: =IF(SUM(AQ$15:AQ$22)>0,$M84,0) -> 0 | AT84: =IF(SUM(AS$15:AS$22)>0,$M84,0) -> 0 | AV84: =IF(SUM(AU$15:AU$22)>0,$M84,0) -> 0 | AX84: =IF(SUM(AW$15:AW$22)>0,$M84,0) -> 0 | AZ84: =IF(SUM(AY$15:AY$22)>0,$M84,0) -> 0 | BB84: =IF(SUM(BA$15:BA$22)>0,$M84,0) -> 0 | BD84: =IF(SUM(BC$15:BC$22)>0,$M84,0) -> 0 | BF84: =IF(SUM(BE$15:BE$22)>0,$M84,0) -> 0 | BH84: =IF(SUM(BG$15:BG$22)>0,$M84,0) -> 0 | BJ84: =IF(SUM(BI$15:BI$22)>0,$M84,0) -> 0 | BL84: =IF(SUM(BK$15:BK$22)>0,$M84,0) -> 0 | BN84: =IF(SUM(BM$15:BM$22)>0,$M84,0) -> 0 | BP84: =IF(SUM(BO$15:BO$22)>0,$M84,0) -> 0 | BR84: =IF(SUM(BQ$15:BQ$22)>0,$M84,0) -> 0 | BT84: =IF(SUM(BS$15:BS$22)>0,$M84,0) -> 0 | BV84: =IF(SUM(BU$15:BU$22)>0,$M84,0) -> 0 | BX84: =IF(SUM(BW$15:BW$22)>0,$M84,0) -> 0 | BZ84: =IF(SUM(BY$15:BY$22)>0,$M84,0) -> 0 | CB84: =IF(SUM(CA$15:CA$22)>0,$M84,0) -> 0 | CD84: =IF(SUM(CC$15:CC$22)>0,$M84,0) -> 0 | CF84: =IF(SUM(CE$15:CE$22)>0,$M84,0) -> 0 | CH84: =IF(SUM(CG$15:CG$22)>0,$M84,0) -> 0 | CJ84: =IF(SUM(CI$15:CI$22)>0,$M84,0) -> 0 | CL84: =IF(SUM(CK$15:CK$22)>0,$M84,0) -> 0 | CN84: =IF(SUM(CM$15:CM$22)>0,$M84,0) -> 0 | CP84: =IF(SUM(CO$15:CO$22)>0,$M84,0) -> 0 | CR84: =IF(SUM(CQ$15:CQ$22)>0,$M84,0) -> 0 | CT84: =IF(SUM(CS$15:CS$22)>0,$M84,0) -> 0 | CV84: =IF(SUM(CU$15:CU$22)>0,$M84,0) -> 0 | CX84: =IF(SUM(CW$15:CW$22)>0,$M84,0) -> 0 | CZ84: =IF(SUM(CY$15:CY$22)>0,$M84,0) -> 0 | DB84: =IF(SUM(DA$15:DA$22)>0,$M84,0) -> 0 | DD84: =IF(SUM(DC$15:DC$22)>0,$M84,0) -> 0 | DF84: =IF(SUM(DE$15:DE$22)>0,$M84,0) -> 0 | DH84: =IF(SUM(DG$15:DG$22)>0,$M84,0) -> 0 | DJ84: =IF(SUM(DI$15:DI$22)>0,$M84,0) -> 0 | DL84: =IF(SUM(DK$15:DK$22)>0,$M84,0) -> 0 | DN84: =IF(SUM(DM$15:DM$22)>0,$M84,0) -> 0 | DP84: =IF(SUM(DO$15:DO$22)>0,$M84,0) -> 0 | DR84: =IF(SUM(DQ$15:DQ$22)>0,$M84,0) -> 0 | DT84: =IF(SUM(DS$15:DS$22)>0,$M84,0) -> 0 | DV84: =IF(SUM(DU$15:DU$22)>0,$M84,0) -> 0 | DX84: =IF(SUM(DW$15:DW$22)>0,$M84,0) -> 0 | DZ84: =IF(SUM(DY$15:DY$22)>0,$M84,0) -> 0 | EB84: =IF(SUM(EA$15:EA$22)>0,$M84,0) -> 0 | ED84: =IF(SUM(EC$15:EC$22)>0,$M84,0) -> 0 | EF84: =IF(SUM(EE$15:EE$22)>0,$M84,0) -> 0
L85: SOMATÓRIO TOTAL ANUAL - POR POSTO | M85: =M84*12 -> 0
C88: MATERIAL DE CONSUMO ASSOCIADO
C89: MEMÓRIA DE CÁLCULO DO COEFICIENTE DE CORRELAÇÃO MANUTENÇÃO X DEPRECIAÇÃO (K)
C91: JUSTIFICATIVAS | E91: TIPO | F91: K1 | H91: Condições de Trab | I91: K4 | K91: Tempo Vida (anos) | L91: K6 | N91: Temperatura | O91: K8
E92: Guindaste | F92: 0.5 | H92: Em espera | I92: 0.4 | K92: 1 | L92: 0.6 | N92: Muito quente (> 40º C) | O92: 1.3
C93: K1 | D93: Considerado o valor médio de 0,85 | E93: Caminhão-comum | F93: 0.8 | H93: Leves | I93: 0.8 | K93: 2 | L93: 0.7 | N93: Quente (30º a 40º C) | O93: 1.1
C94: K2 | D94: Considerado o operador médio | E94: Fora-de-estrada | F94: 1 | H94: Médias | I94: 1 | K94: 3 | L94: 0.8 | N94: Médio (10º a 30º C) | O94: 1
C95: K3 | D95: Consideradas ferramentas de primeira qualidade | E95: Carregadeira | F95: 1 | H95: Pesadas | I95: 1.4 | K95: 4 | L95: 0.9 | N95: Frio (< 10º C) | O95: 1.2
C96: K4 | D96: Há todo o tipo de trabalho, foi considerado o valor médio | E96: Escavadeira | F96: 1.4 | H96: Severas | I96: 2 | K96: 5 | L96: 1
C97: K5 | D97: Considerando manutenção normal | E97: Motoescrêiper | F97: 1.1 | K97: 6 | L97: 1 | N97: Ritmo de Trabalho | O97: K9
C98: K6 | D98: Equipamentos novos | E98: Trator de esteira | F98: 1.2 | H98: Manutenção | I98: K5 | K98: 7 | L98: 1 | N98: Folgado | O98: 0.9
C99: K7 | D99: 220h por mês, 252 dias por ano | H99: Excelente | I99: 0.6 | K99: 8 | L99: 1.2 | N99: Médio | O99: 1
C100: K8 | D100: Clima quente, acima de 30º C | E100: Qualid do Operador | F100: K2 | H100: Boa | I100: 0.8 | K100: 9 | L100: 1.3 | N100: Com pressa | O100: 1.5
C101: K9 | D101: Ritmo de trabalho usualmente com pressa | E101: Excelente | F101: 0.8 | H101: Média | I101: 1 | K101: 10 | L101: 1.4
C102: K10 | D102: Considerado o operador médio | E102: Boa | F102: 0.9 | H102: Ruim | I102: 1.5 | K102: 11 | L102: 2 | N102: Conh do Serviço | O102: K10
C103: K11 | D103: Foi considerada a opção de aluguel a terceiros, ainda que a simulação seja dos custos do contratado, contudo a execução dos serviços é em local de terceiros | E103: Média | F103: 1 | H103: Inexistente | I103: 3 | K103: 15 | L103: 2 | N103: Grande | O103: 0.8
E104: Ruim | F104: 1.2 | N104: Médio | O104: 0.9
E105: Péssima | F105: 2 | H105: Horas de Uso | I105: K7 | J105: 6000 | K105: 1 | N105: Pouco | O105: 1
H106: 1000 | I106: 0.5 | J106: 8000 | K106: 1.3
E107: Qualidade do Equip | F107: K3 | H107: 2000 | I107: 0.5 | J107: 10000 | K107: 1.6 | N107: Tipo do Serviço | O107: K11
E108: De primeira | F108: 0.8 | H108: 3000 | I108: 0.6 | J108: 12000 | K108: 1.9 | N108: Mina ou Pedreira | O108: 0.8
E109: Média | F109: 1 | H109: 4000 | I109: 0.7 | J109: 15000 | K109: 2.3 | N109: Construção Geral | O109: 1
E110: Ruim | F110: 1.5 | H110: 5000 | I110: 0.9 | J110: 20000 | K110: 3 | N110: Aluguel a Terceiros | O110: 1.4
E112: Fonte:
E113: MATTOS, Aldo Dórea. Como preparar orçamentos de obras. São Paulo: Pini, 2006. 281 p., il

Sheet EPI (hidden)
C1: CÂMARA DOS DEPUTADOS
C2: DEPARTAMENTO TÉCNICO
C3: Coordenação de Planejamento e Gestão
C5: Data: | D5: ='Dados Gerais'!#REF! -> 
C6: Processo: | D6: ='Dados Gerais'!#REF! -> 
C7: Objeto: | D7: ='Dados Gerais'!#REF! -> 
B11: EQUIPAMENTOS DE PROTEÇÃO INDIVIDUAL - AQUISIÇÃO | I11: 1 | K11: =I11+1 -> 2 | M11: =K11+1 -> 3 | O11: =M11+1 -> 4 | Q11: =O11+1 -> 5 | S11: =Q11+1 -> 6 | U11: =S11+1 -> 7 | W11: =U11+1 -> 8 | Y11: =W11+1 -> 9 | AA11: =Y11+1 -> 10 | AC11: =AA11+1 -> 11 | AE11: =AC11+1 -> 12 | AG11: =AE11+1 -> 13 | AI11: =AG11+1 -> 14 | AK11: =AI11+1 -> 15 | AM11: =AK11+1 -> 16 | AO11: =AM11+1 -> 17 | AQ11: =AO11+1 -> 18 | AS11: =AQ11+1 -> 19 | AU11: =AS11+1 -> 20 | AW11: =AU11+1 -> 21 | AY11: =AW11+1 -> 22 | BA11: =AY11+1 -> 23 | BC11: =BA11+1 -> 24 | BE11: =BC11+1 -> 25 | BG11: =BE11+1 -> 26 | BI11: =BG11+1 -> 27 | BK11: =BI11+1 -> 28 | BM11: =BK11+1 -> 29 | BO11: =BM11+1 -> 30 | BQ11: =BO11+1 -> 31 | BS11: =BQ11+1 -> 32 | BU11: =BS11+1 -> 33 | BW11: =BU11+1 -> 34 | BY11: =BW11+1 -> 35 | CA11: =BY11+1 -> 36 | CC11: =CA11+1 -> 37 | CE11: =CC11+1 -> 38 | CG11: =CE11+1 -> 39 | CI11: =CG11+1 -> 40 | CK11: =CI11+1 -> 41 | CM11: =CK11+1 -> 42 | CO11: =CM11+1 -> 43 | CQ11: =CO11+1 -> 44 | CS11: =CQ11+1 -> 45 | CU11: =CS11+1 -> 46 | CW11: =CU11+1 -> 47 | CY11: =CW11+1 -> 48 | DA11: =CY11+1 -> 49 | DC11: =DA11+1 -> 50 | DE11: =DC11+1 -> 51 | DG11: =DE11+1 -> 52 | DI11: =DG11+1 -> 53 | DK11: =DI11+1 -> 54 | DM11: =DK11+1 -> 55 | DO11: =DM11+1 -> 56 | DQ11: =DO11+1 -> 57 | DS11: =DQ11+1 -> 58 | DU11: =DS11+1 -> 59 | DW11: =DU11+1 -> 60
I13: =ROUND(SUM(J12:J66),2) -> 0 | K13: =ROUND(SUM(L12:L66),2) -> 0 | M13: =ROUND(SUM(N12:N66),2) -> 0 | O13: =ROUND(SUM(P12:P66),2) -> 0 | Q13: =ROUND(SUM(R12:R66),2) -> 0 | S13: =ROUND(SUM(T12:T66),2) -> 0 | U13: =ROUND(SUM(V12:V66),2) -> 0 | W13: =ROUND(SUM(X12:X66),2) -> 0 | Y13: =ROUND(SUM(Z12:Z66),2) -> 0 | AA13: =ROUND(SUM(AB12:AB66),2) -> 0 | AC13: =ROUND(SUM(AD12:AD66),2) -> 0 | AE13: =ROUND(SUM(AF12:AF66),2) -> 0 | AG13: =ROUND(SUM(AH12:AH66),2) -> 0 | AI13: =ROUND(SUM(AJ12:AJ66),2) -> 0 | AK13: =ROUND(SUM(AL12:AL66),2) -> 0 | AM13: =ROUND(SUM(AN12:AN66),2) -> 0 | AO13: =ROUND(SUM(AP12:AP66),2) -> 0 | AQ13: =ROUND(SUM(AR12:AR66),2) -> 0 | AS13: =ROUND(SUM(AT12:AT66),2) -> 0 | AU13: =ROUND(SUM(AV12:AV66),2) -> 0 | AW13: =ROUND(SUM(AX12:AX66),2) -> 0 | AY13: =ROUND(SUM(AZ12:AZ66),2) -> 0 | BA13: =ROUND(SUM(BB12:BB66),2) -> 0 | BC13: =ROUND(SUM(BD12:BD66),2) -> 0 | BE13: =ROUND(SUM(BF12:BF66),2) -> 0 | BG13: =ROUND(SUM(BH12:BH66),2) -> 0 | BI13: =ROUND(SUM(BJ12:BJ66),2) -> 0 | BK13: =ROUND(SUM(BL12:BL66),2) -> 0 | BM13: =ROUND(SUM(BN12:BN66),2) -> 0 | BO13: =ROUND(SUM(BP12:BP66),2) -> 0 | BQ13: =ROUND(SUM(BR12:BR66),2) -> 0 | BS13: =ROUND(SUM(BT12:BT66),2) -> 0 | BU13: =ROUND(SUM(BV12:BV66),2) -> 0 | BW13: =ROUND(SUM(BX12:BX66),2) -> 0 | BY13: =ROUND(SUM(BZ12:BZ66),2) -> 0 | CA13: =ROUND(SUM(CB12:CB66),2) -> 0 | CC13: =ROUND(SUM(CD12:CD66),2) -> 0 | CE13: =ROUND(SUM(CF12:CF66),2) -> 0 | CG13: =ROUND(SUM(CH12:CH66),2) -> 0 | CI13: =ROUND(SUM(CJ12:CJ66),2) -> 0 | CK13: =ROUND(SUM(CL12:CL66),2) -> 0 | CM13: =ROUND(SUM(CN12:CN66),2) -> 0 | CO13: =ROUND(SUM(CP12:CP66),2) -> 0 | CQ13: =ROUND(SUM(CR12:CR66),2) -> 0 | CS13: =ROUND(SUM(CT12:CT66),2) -> 0 | CU13: =ROUND(SUM(CV12:CV66),2) -> 0 | CW13: =ROUND(SUM(CX12:CX66),2) -> 0 | CY13: =ROUND(SUM(CZ12:CZ66),2) -> 0 | DA13: =ROUND(SUM(DB12:DB66),2) -> 0 | DC13: =ROUND(SUM(DD12:DD66),2) -> 0 | DE13: =ROUND(SUM(DF12:DF66),2) -> 0 | DG13: =ROUND(SUM(DH12:DH66),2) -> 0 | DI13: =ROUND(SUM(DJ12:DJ66),2) -> 0 | DK13: =ROUND(SUM(DL12:DL66),2) -> 0 | DM13: =ROUND(SUM(DN12:DN66),2) -> 0 | DO13: =ROUND(SUM(DP12:DP66),2) -> 0 | DQ13: =ROUND(SUM(DR12:DR66),2) -> 0 | DS13: =ROUND(SUM(DT12:DT66),2) -> 0 | DU13: =ROUND(SUM(DV12:DV66),2) -> 0 | DW13: =ROUND(SUM(DX12:DX66),2) -> 0
C14: CATEGORIAS | F14: QUANTIDADE
I15: =IF($C15=I$11,1,0) -> 0
C16: 0 | D16: =HLOOKUP($C16,'Dados Gerais'!$D$5:$BH$10,6) ->  | F16: =HLOOKUP($C16,'Dados Gerais'!$D$5:$BH$14,10) ->  | I16: 0 | K16: =IF($C16=K$11,1,0) -> 0 | M16: =IF($C16=M$11,1,0) -> 0 | O16: =IF($C16=O$11,1,0) -> 0 | Q16: =IF($C16=Q$11,1,0) -> 0 | S16: =IF($C16=S$11,1,0) -> 0 | U16: =IF($C16=U$11,1,0) -> 0 | W16: =IF($C16=W$11,1,0) -> 0 | Y16: =IF($C16=Y$11,1,0) -> 0 | AA16: =IF($C16=AA$11,1,0) -> 0 | AC16: =IF($C16=AC$11,1,0) -> 0 | AE16: =IF($C16=AE$11,1,0) -> 0 | AG16: =IF($C16=AG$11,1,0) -> 0 | AI16: =IF($C16=AI$11,1,0) -> 0 | AK16: =IF($C16=AK$11,1,0) -> 0 | AM16: =IF($C16=AM$11,1,0) -> 0 | AO16: =IF($C16=AO$11,1,0) -> 0 | AQ16: =IF($C16=AQ$11,1,0) -> 0 | AS16: =IF($C16=AS$11,1,0) -> 0 | AU16: =IF($C16=AU$11,1,0) -> 0 | AW16: =IF($C16=AW$11,1,0) -> 0 | AY16: =IF($C16=AY$11,1,0) -> 0 | BA16: =IF($C16=BA$11,1,0) -> 0 | BC16: =IF($C16=BC$11,1,0) -> 0 | BE16: =IF($C16=BE$11,1,0) -> 0 | BG16: =IF($C16=BG$11,1,0) -> 0 | BI16: =IF($C16=BI$11,1,0) -> 0 | BK16: =IF($C16=BK$11,1,0) -> 0 | BM16: =IF($C16=BM$11,1,0) -> 0 | BO16: =IF($C16=BO$11,1,0) -> 0 | BQ16: =IF($C16=BQ$11,1,0) -> 0 | BS16: =IF($C16=BS$11,1,0) -> 0 | BU16: =IF($C16=BU$11,1,0) -> 0 | BW16: =IF($C16=BW$11,1,0) -> 0 | BY16: =IF($C16=BY$11,1,0) -> 0 | CA16: =IF($C16=CA$11,1,0) -> 0 | CC16: =IF($C16=CC$11,1,0) -> 0 | CE16: =IF($C16=CE$11,1,0) -> 0 | CG16: =IF($C16=CG$11,1,0) -> 0 | CI16: =IF($C16=CI$11,1,0) -> 0 | CK16: =IF($C16=CK$11,1,0) -> 0 | CM16: =IF($C16=CM$11,1,0) -> 0 | CO16: =IF($C16=CO$11,1,0) -> 0 | CQ16: =IF($C16=CQ$11,1,0) -> 0 | CS16: =IF($C16=CS$11,1,0) -> 0 | CU16: =IF($C16=CU$11,1,0) -> 0 | CW16: =IF($C16=CW$11,1,0) -> 0 | CY16: =IF($C16=CY$11,1,0) -> 0 | DA16: =IF($C16=DA$11,1,0) -> 0 | DC16: =IF($C16=DC$11,1,0) -> 0 | DE16: =IF($C16=DE$11,1,0) -> 0 | DG16: =IF($C16=DG$11,1,0) -> 0 | DI16: =IF($C16=DI$11,1,0) -> 0 | DK16: =IF($C16=DK$11,1,0) -> 0 | DM16: =IF($C16=DM$11,1,0) -> 0 | DO16: =IF($C16=DO$11,1,0) -> 0 | DQ16: =IF($C16=DQ$11,1,0) -> 0 | DS16: =IF($C16=DS$11,1,0) -> 0 | DU16: =IF($C16=DU$11,1,0) -> 0 | DW16: =IF($C16=DW$11,1,0) -> 0
C17: 0 | D17: =HLOOKUP($C17,'Dados Gerais'!$D$5:$BH$10,6) ->  | F17: =HLOOKUP($C17,'Dados Gerais'!$D$5:$BH$14,10) ->  | I17: 0 | K17: =IF($C17=K$11,1,0) -> 0 | M17: 0 | O17: =IF($C17=O$11,1,0) -> 0 | Q17: 0
C18: 0 | D18: =HLOOKUP($C18,'Dados Gerais'!$D$5:$BH$10,6) ->  | F18: =HLOOKUP($C18,'Dados Gerais'!$D$5:$BH$14,10) ->  | I18: 0 | K18: =IF($C18=K$11,1,0) -> 0 | M18: 0 | O18: 0 | Q18: 0
C19: 0 | D19: =HLOOKUP($C19,'Dados Gerais'!$D$5:$BH$10,6) ->  | F19: =HLOOKUP($C19,'Dados Gerais'!$D$5:$BH$14,10) ->  | I19: 0 | K19: =IF($C19=K$11,1,0) -> 0 | M19: 0 | O19: 0 | Q19: 0
C20: 0 | D20: =HLOOKUP($C20,'Dados Gerais'!$D$5:$BH$10,6) ->  | F20: =HLOOKUP($C20,'Dados Gerais'!$D$5:$BH$14,10) ->  | I20: 0 | K20: =IF($C20=K$11,1,0) -> 0 | M20: 0 | O20: 0 | Q20: 0
I21: 0 | M21: 0 | O21: 0 | Q21: 0
O22: 0
C23: ITEM | D23: DESCRIÇÃO | E23: QUANT ANUAL | F23: VALOR
J24: =IF(SUM(I$15:I$21)>0,$E24*$F24,0) -> 0 | L24: =IF(SUM(K$15:K$21)>0,$E24*$F24,0) -> 0 | N24: =IF(SUM(M$15:M$21)>0,$E24*$F24,0) -> 0 | P24: =IF(SUM(O$15:O$21)>0,$E24*$F24,0) -> 0 | R24: =IF(SUM(Q$15:Q$21)>0,$E24*$F24,0) -> 0 | T24: =IF(SUM(S$15:S$21)>0,$E24*$F24,0) -> 0 | V24: =IF(SUM(U$15:U$21)>0,$E24*$F24,0) -> 0 | X24: =IF(SUM(W$15:W$21)>0,$E24*$F24,0) -> 0 | Z24: =IF(SUM(Y$15:Y$21)>0,$E24*$F24,0) -> 0 | AB24: =IF(SUM(AA$15:AA$21)>0,$E24*$F24,0) -> 0 | AD24: =IF(SUM(AC$15:AC$21)>0,$E24*$F24,0) -> 0 | AF24: =IF(SUM(AE$15:AE$21)>0,$E24*$F24,0) -> 0 | AH24: =IF(SUM(AG$15:AG$21)>0,$E24*$F24,0) -> 0 | AJ24: =IF(SUM(AI$15:AI$21)>0,$E24*$F24,0) -> 0 | AL24: =IF(SUM(AK$15:AK$21)>0,$E24*$F24,0) -> 0 | AN24: =IF(SUM(AM$15:AM$21)>0,$E24*$F24,0) -> 0 | AP24: =IF(SUM(AO$15:AO$21)>0,$E24*$F24,0) -> 0 | AR24: =IF(SUM(AQ$15:AQ$21)>0,$E24*$F24,0) -> 0 | AT24: =IF(SUM(AS$15:AS$21)>0,$E24*$F24,0) -> 0 | AV24: =IF(SUM(AU$15:AU$21)>0,$E24*$F24,0) -> 0 | AX24: =IF(SUM(AW$15:AW$21)>0,$E24*$F24,0) -> 0 | AZ24: =IF(SUM(AY$15:AY$21)>0,$E24*$F24,0) -> 0 | BB24: =IF(SUM(BA$15:BA$21)>0,$E24*$F24,0) -> 0 | BD24: =IF(SUM(BC$15:BC$21)>0,$E24*$F24,0) -> 0 | BF24: =IF(SUM(BE$15:BE$21)>0,$E24*$F24,0) -> 0 | BH24: =IF(SUM(BG$15:BG$21)>0,$E24*$F24,0) -> 0 | BJ24: =IF(SUM(BI$15:BI$21)>0,$E24*$F24,0) -> 0 | BL24: =IF(SUM(BK$15:BK$21)>0,$E24*$F24,0) -> 0 | BN24: =IF(SUM(BM$15:BM$21)>0,$E24*$F24,0) -> 0 | BP24: =IF(SUM(BO$15:BO$21)>0,$E24*$F24,0) -> 0 | BR24: =IF(SUM(BQ$15:BQ$21)>0,$E24*$F24,0) -> 0 | BT24: =IF(SUM(BS$15:BS$21)>0,$E24*$F24,0) -> 0 | BV24: =IF(SUM(BU$15:BU$21)>0,$E24*$F24,0) -> 0 | BX24: =IF(SUM(BW$15:BW$21)>0,$E24*$F24,0) -> 0 | BZ24: =IF(SUM(BY$15:BY$21)>0,$E24*$F24,0) -> 0 | CB24: =IF(SUM(CA$15:CA$21)>0,$E24*$F24,0) -> 0 | CD24: =IF(SUM(CC$15:CC$21)>0,$E24*$F24,0) -> 0 | CF24: =IF(SUM(CE$15:CE$21)>0,$E24*$F24,0) -> 0 | CH24: =IF(SUM(CG$15:CG$21)>0,$E24*$F24,0) -> 0 | CJ24: =IF(SUM(CI$15:CI$21)>0,$E24*$F24,0) -> 0 | CL24: =IF(SUM(CK$15:CK$21)>0,$E24*$F24,0) -> 0 | CN24: =IF(SUM(CM$15:CM$21)>0,$E24*$F24,0) -> 0 | CP24: =IF(SUM(CO$15:CO$21)>0,$E24*$F24,0) -> 0 | CR24: =IF(SUM(CQ$15:CQ$21)>0,$E24*$F24,0) -> 0 | CT24: =IF(SUM(CS$15:CS$21)>0,$E24*$F24,0) -> 0 | CV24: =IF(SUM(CU$15:CU$21)>0,$E24*$F24,0) -> 0 | CX24: =IF(SUM(CW$15:CW$21)>0,$E24*$F24,0) -> 0 | CZ24: =IF(SUM(CY$15:CY$21)>0,$E24*$F24,0) -> 0 | DB24: =IF(SUM(DA$15:DA$21)>0,$E24*$F24,0) -> 0 | DD24: =IF(SUM(DC$15:DC$21)>0,$E24*$F24,0) -> 0 | DF24: =IF(SUM(DE$15:DE$21)>0,$E24*$F24,0) -> 0 | DH24: =IF(SUM(DG$15:DG$21)>0,$E24*$F24,0) -> 0 | DJ24: =IF(SUM(DI$15:DI$21)>0,$E24*$F24,0) -> 0 | DL24: =IF(SUM(DK$15:DK$21)>0,$E24*$F24,0) -> 0 | DN24: =IF(SUM(DM$15:DM$21)>0,$E24*$F24,0) -> 0 | DP24: =IF(SUM(DO$15:DO$21)>0,$E24*$F24,0) -> 0 | DR24: =IF(SUM(DQ$15:DQ$21)>0,$E24*$F24,0) -> 0 | DT24: =IF(SUM(DS$15:DS$21)>0,$E24*$F24,0) -> 0 | DV24: =IF(SUM(DU$15:DU$21)>0,$E24*$F24,0) -> 0 | DX24: =IF(SUM(DW$15:DW$21)>0,$E24*$F24,0) -> 0
C25: 1 | D25: Protetor auricular tipo plug em silicone, lavável, com proteção de 16 dB(A) de atenuação, marca de Ref. 3M | E25: 2 | F25: 1.25 | J25: 0 | L25: 0 | N25: 0 | P25: 0 | R25: 0 | T25: 0 | V25: 0 | X25: 0 | Z25: 0 | AB25: 0 | AD25: 0 | AF25: 0 | AH25: 0 | AJ25: 0 | AL25: 0 | AN25: 0 | AP25: 0 | AR25: 0 | AT25: 0 | AV25: 0 | AX25: 0 | AZ25: 0 | BB25: 0 | BD25: 0 | BF25: 0 | BH25: 0 | BJ25: 0 | BL25: 0 | BN25: 0 | BP25: 0 | BR25: 0 | BT25: 0 | BV25: 0 | BX25: 0 | BZ25: 0 | CB25: 0 | CD25: 0 | CF25: 0 | CH25: 0 | CJ25: 0 | CL25: 0 | CN25: 0 | CP25: 0 | CR25: 0 | CT25: 0 | CV25: 0 | CX25: 0 | CZ25: 0 | DB25: 0 | DD25: 0 | DF25: 0 | DH25: 0 | DJ25: 0 | DL25: 0 | DN25: 0 | DP25: 0 | DR25: 0 | DT25: 0 | DV25: 0 | DX25: 0
C26: 2 | D26: Respirador purificador de ar tipo, peça semifacial filtrante para partículas (PFF2), com formato dobrável, solda ultra-sônica em todo o seu perímetro. Fita elástica branca fixada nas laterais externas do respirador, perfazendo uma alça na para fixação na parte superior da cabeça e a outra na parte inferior, para fixação na altura da nuca do usuário. A parte superior externa da peça possui tira de material metálico moldável, utilizada para ajuste no septo nasal. Na face lateral do respirador existe um dispositivo de material plástico, dotado internamente de uma válvula de exalação. DEVERÁ APRESENTAR O SELO DE APROVAÇÃO DO INMETRO. Ref. 3M | E26: 10 | F26: 4.1 | J26: 0 | L26: 0 | N26: 0 | P26: 0 | R26: 0 | T26: 0 | V26: 0 | X26: 0 | Z26: 0 | AB26: 0 | AD26: 0 | AF26: 0 | AH26: 0 | AJ26: 0 | AL26: 0 | AN26: 0 | AP26: 0 | AR26: 0 | AT26: 0 | AV26: 0 | AX26: 0 | AZ26: 0 | BB26: 0 | BD26: 0 | BF26: 0 | BH26: 0 | BJ26: 0 | BL26: 0 | BN26: 0 | BP26: 0 | BR26: 0 | BT26: 0 | BV26: 0 | BX26: 0 | BZ26: 0 | CB26: 0 | CD26: 0 | CF26: 0 | CH26: 0 | CJ26: 0 | CL26: 0 | CN26: 0 | CP26: 0 | CR26: 0 | CT26: 0 | CV26: 0 | CX26: 0 | CZ26: 0 | DB26: 0 | DD26: 0 | DF26: 0 | DH26: 0 | DJ26: 0 | DL26: 0 | DN26: 0 | DP26: 0 | DR26: 0 | DT26: 0 | DV26: 0 | DX26: 0
C27: 3 | D27: Calçado ocupacional tipo sapato, fechamento em cadarço, confeccionado em couro curtido ao cromo, palmilha de montagem em material sintético, solado em poliuretano monodensidade injetado ao cabedal, sem biqueira de aço. Ref. Marluvas mod. 20S29 SOC P CA: 33698 | E27: 2 | F27: 74.45 | J27: 0 | L27: 0 | N27: 0 | P27: 0 | R27: 0 | T27: 0 | V27: 0 | X27: 0 | Z27: 0 | AB27: 0 | AD27: 0 | AF27: 0 | AH27: 0 | AJ27: 0 | AL27: 0 | AN27: 0 | AP27: 0 | AR27: 0 | AT27: 0 | AV27: 0 | AX27: 0 | AZ27: 0 | BB27: 0 | BD27: 0 | BF27: 0 | BH27: 0 | BJ27: 0 | BL27: 0 | BN27: 0 | BP27: 0 | BR27: 0 | BT27: 0 | BV27: 0 | BX27: 0 | BZ27: 0 | CB27: 0 | CD27: 0 | CF27: 0 | CH27: 0 | CJ27: 0 | CL27: 0 | CN27: 0 | CP27: 0 | CR27: 0 | CT27: 0 | CV27: 0 | CX27: 0 | CZ27: 0 | DB27: 0 | DD27: 0 | DF27: 0 | DH27: 0 | DJ27: 0 | DL27: 0 | DN27: 0 | DP27: 0 | DR27: 0 | DT27: 0 | DV27: 0 | DX27: 0
C28: 4 | D28: Boné tipo Touca Árabe confeccionado em helanca com viés na aba, elástico interno traseiro para ajuste de tamanho, fechamento da saia em velcro. MARCA(S) DE REFERÊNCIA:Nexus | E28: 1 | F28: 11.35 | J28: 0 | L28: 0 | N28: 0 | P28: 0 | R28: 0 | T28: 0 | V28: 0 | X28: 0 | Z28: 0 | AB28: 0 | AD28: 0 | AF28: 0 | AH28: 0 | AJ28: 0 | AL28: 0 | AN28: 0 | AP28: 0 | AR28: 0 | AT28: 0 | AV28: 0 | AX28: 0 | AZ28: 0 | BB28: 0 | BD28: 0 | BF28: 0 | BH28: 0 | BJ28: 0 | BL28: 0 | BN28: 0 | BP28: 0 | BR28: 0 | BT28: 0 | BV28: 0 | BX28: 0 | BZ28: 0 | CB28: 0 | CD28: 0 | CF28: 0 | CH28: 0 | CJ28: 0 | CL28: 0 | CN28: 0 | CP28: 0 | CR28: 0 | CT28: 0 | CV28: 0 | CX28: 0 | CZ28: 0 | DB28: 0 | DD28: 0 | DF28: 0 | DH28: 0 | DJ28: 0 | DL28: 0 | DN28: 0 | DP28: 0 | DR28: 0 | DT28: 0 | DV28: 0 | DX28: 0
C29: 5 | D29: Bisnagas (120g) de bloqueador solar com fator de proteção solar no mínimo de 30 (UV FPS 30) com propriedade repelente a insetos. Inodoro MARCA(S) DE REFERÊNCIA: LUVEX. | E29: 1 | F29: 14.87 | J29: 0 | L29: 0 | N29: 0 | P29: 0 | R29: 0 | T29: 0 | V29: 0 | X29: 0 | Z29: 0 | AB29: 0 | AD29: 0 | AF29: 0 | AH29: 0 | AJ29: 0 | AL29: 0 | AN29: 0 | AP29: 0 | AR29: 0 | AT29: 0 | AV29: 0 | AX29: 0 | AZ29: 0 | BB29: 0 | BD29: 0 | BF29: 0 | BH29: 0 | BJ29: 0 | BL29: 0 | BN29: 0 | BP29: 0 | BR29: 0 | BT29: 0 | BV29: 0 | BX29: 0 | BZ29: 0 | CB29: 0 | CD29: 0 | CF29: 0 | CH29: 0 | CJ29: 0 | CL29: 0 | CN29: 0 | CP29: 0 | CR29: 0 | CT29: 0 | CV29: 0 | CX29: 0 | CZ29: 0 | DB29: 0 | DD29: 0 | DF29: 0 | DH29: 0 | DJ29: 0 | DL29: 0 | DN29: 0 | DP29: 0 | DR29: 0 | DT29: 0 | DV29: 0 | DX29: 0
I30: =SUMPRODUCT($E$25:$E$29,$F$25:$F$29)*F16 ->  | J30: anual | L30: anual | N30: anual | P30: anual | R30: anual | T30: anual | V30: anual | X30: anual | Z30: anual | AB30: anual | AD30: anual | AF30: anual | AH30: anual | AJ30: anual | AL30: anual | AN30: anual | AP30: anual | AR30: anual | AT30: anual | AV30: anual | AX30: anual | AZ30: anual | BB30: anual | BD30: anual | BF30: anual | BH30: anual | BJ30: anual | BL30: anual | BN30: anual | BP30: anual | BR30: anual | BT30: anual | BV30: anual | BX30: anual | BZ30: anual | CB30: anual | CD30: anual | CF30: anual | CH30: anual | CJ30: anual | CL30: anual | CN30: anual | CP30: anual | CR30: anual | CT30: anual | CV30: anual | CX30: anual | CZ30: anual | DB30: anual | DD30: anual | DF30: anual | DH30: anual | DJ30: anual | DL30: anual | DN30: anual | DP30: anual | DR30: anual | DT30: anual | DV30: anual | DX30: anual
I31: =I30/12 ->  | J31: mensal | L31: mensal | N31: mensal | P31: mensal | R31: mensal | T31: mensal | V31: mensal | X31: mensal | Z31: mensal | AB31: mensal | AD31: mensal | AF31: mensal | AH31: mensal | AJ31: mensal | AL31: mensal | AN31: mensal | AP31: mensal | AR31: mensal | AT31: mensal | AV31: mensal | AX31: mensal | AZ31: mensal | BB31: mensal | BD31: mensal | BF31: mensal | BH31: mensal | BJ31: mensal | BL31: mensal | BN31: mensal | BP31: mensal | BR31: mensal | BT31: mensal | BV31: mensal | BX31: mensal | BZ31: mensal | CB31: mensal | CD31: mensal | CF31: mensal | CH31: mensal | CJ31: mensal | CL31: mensal | CN31: mensal | CP31: mensal | CR31: mensal | CT31: mensal | CV31: mensal | CX31: mensal | CZ31: mensal | DB31: mensal | DD31: mensal | DF31: mensal | DH31: mensal | DJ31: mensal | DL31: mensal | DN31: mensal | DP31: mensal | DR31: mensal | DT31: mensal | DV31: mensal | DX31: mensal
I32: =I31/11 ->  | J32: por posto | L32: por posto | N32: por posto | P32: por posto | R32: por posto | T32: por posto | V32: por posto | X32: por posto | Z32: por posto | AB32: por posto | AD32: por posto | AF32: por posto | AH32: por posto | AJ32: por posto | AL32: por posto | AN32: por posto | AP32: por posto | AR32: por posto | AT32: por posto | AV32: por posto | AX32: por posto | AZ32: por posto | BB32: por posto | BD32: por posto | BF32: por posto | BH32: por posto | BJ32: por posto | BL32: por posto | BN32: por posto | BP32: por posto | BR32: por posto | BT32: por posto | BV32: por posto | BX32: por posto | BZ32: por posto | CB32: por posto | CD32: por posto | CF32: por posto | CH32: por posto | CJ32: por posto | CL32: por posto | CN32: por posto | CP32: por posto | CR32: por posto | CT32: por posto | CV32: por posto | CX32: por posto | CZ32: por posto | DB32: por posto | DD32: por posto | DF32: por posto | DH32: por posto | DJ32: por posto | DL32: por posto | DN32: por posto | DP32: por posto | DR32: por posto | DT32: por posto | DV32: por posto | DX32: por posto

Sheet Mat Cons (hidden)
C1: CÂMARA DOS DEPUTADOS
C2: DEPARTAMENTO TÉCNICO
C3: Coordenação de Planejamento e Gestão
C5: Data: | D5: ='Dados Gerais'!#REF! -> 
C6: Processo: | D6: ='Dados Gerais'!#REF! -> 
C7: Objeto: | D7: ='Dados Gerais'!#REF! -> 
B11: MATERIAIS DE CONSUMO RELACIONADOS AO POSTO - AQUISIÇÃO | I11: 1 | K11: =I11+1 -> 2 | M11: =K11+1 -> 3 | O11: =M11+1 -> 4 | Q11: =O11+1 -> 5 | S11: =Q11+1 -> 6 | U11: =S11+1 -> 7 | W11: =U11+1 -> 8 | Y11: =W11+1 -> 9 | AA11: =Y11+1 -> 10 | AC11: =AA11+1 -> 11 | AE11: =AC11+1 -> 12 | AG11: =AE11+1 -> 13 | AI11: =AG11+1 -> 14 | AK11: =AI11+1 -> 15 | AM11: =AK11+1 -> 16 | AO11: =AM11+1 -> 17 | AQ11: =AO11+1 -> 18 | AS11: =AQ11+1 -> 19 | AU11: =AS11+1 -> 20 | AW11: =AU11+1 -> 21 | AY11: =AW11+1 -> 22 | BA11: =AY11+1 -> 23 | BC11: =BA11+1 -> 24 | BE11: =BC11+1 -> 25 | BG11: =BE11+1 -> 26 | BI11: =BG11+1 -> 27 | BK11: =BI11+1 -> 28 | BM11: =BK11+1 -> 29 | BO11: =BM11+1 -> 30 | BQ11: =BO11+1 -> 31 | BS11: =BQ11+1 -> 32 | BU11: =BS11+1 -> 33 | BW11: =BU11+1 -> 34 | BY11: =BW11+1 -> 35 | CA11: =BY11+1 -> 36 | CC11: =CA11+1 -> 37 | CE11: =CC11+1 -> 38 | CG11: =CE11+1 -> 39 | CI11: =CG11+1 -> 40 | CK11: =CI11+1 -> 41 | CM11: =CK11+1 -> 42 | CO11: =CM11+1 -> 43 | CQ11: =CO11+1 -> 44 | CS11: =CQ11+1 -> 45 | CU11: =CS11+1 -> 46 | CW11: =CU11+1 -> 47 | CY11: =CW11+1 -> 48 | DA11: =CY11+1 -> 49 | DC11: =DA11+1 -> 50 | DE11: =DC11+1 -> 51 | DG11: =DE11+1 -> 52 | DI11: =DG11+1 -> 53 | DK11: =DI11+1 -> 54 | DM11: =DK11+1 -> 55 | DO11: =DM11+1 -> 56 | DQ11: =DO11+1 -> 57 | DS11: =DQ11+1 -> 58 | DU11: =DS11+1 -> 59 | DW11: =DU11+1 -> 60
I13: =ROUND(SUM(J12:J65),2) -> 0 | K13: =ROUND(SUM(L12:L65),2) -> 0 | M13: =ROUND(SUM(N12:N65),2) -> 0 | O13: =ROUND(SUM(P12:P65),2) -> 0 | Q13: =ROUND(SUM(R12:R65),2) -> 0 | S13: =ROUND(SUM(T12:T65),2) -> 0 | U13: =ROUND(SUM(V12:V65),2) -> 0 | W13: =ROUND(SUM(X12:X65),2) -> 0 | Y13: =ROUND(SUM(Z12:Z65),2) -> 0 | AA13: =ROUND(SUM(AB12:AB65),2) -> 0 | AC13: =ROUND(SUM(AD12:AD65),2) -> 0 | AE13: =ROUND(SUM(AF12:AF65),2) -> 0 | AG13: =ROUND(SUM(AH12:AH65),2) -> 0 | AI13: =ROUND(SUM(AJ12:AJ65),2) -> 0 | AK13: =ROUND(SUM(AL12:AL65),2) -> 0 | AM13: =ROUND(SUM(AN12:AN65),2) -> 0 | AO13: =ROUND(SUM(AP12:AP65),2) -> 0 | AQ13: =ROUND(SUM(AR12:AR65),2) -> 0 | AS13: =ROUND(SUM(AT12:AT65),2) -> 0 | AU13: =ROUND(SUM(AV12:AV65),2) -> 0 | AW13: =ROUND(SUM(AX12:AX65),2) -> 0 | AY13: =ROUND(SUM(AZ12:AZ65),2) -> 0 | BA13: =ROUND(SUM(BB12:BB65),2) -> 0 | BC13: =ROUND(SUM(BD12:BD65),2) -> 0 | BE13: =ROUND(SUM(BF12:BF65),2) -> 0 | BG13: =ROUND(SUM(BH12:BH65),2) -> 0 | BI13: =ROUND(SUM(BJ12:BJ65),2) -> 0 | BK13: =ROUND(SUM(BL12:BL65),2) -> 0 | BM13: =ROUND(SUM(BN12:BN65),2) -> 0 | BO13: =ROUND(SUM(BP12:BP65),2) -> 0 | BQ13: =ROUND(SUM(BR12:BR65),2) -> 0 | BS13: =ROUND(SUM(BT12:BT65),2) -> 0 | BU13: =ROUND(SUM(BV12:BV65),2) -> 0 | BW13: =ROUND(SUM(BX12:BX65),2) -> 0 | BY13: =ROUND(SUM(BZ12:BZ65),2) -> 0 | CA13: =ROUND(SUM(CB12:CB65),2) -> 0 | CC13: =ROUND(SUM(CD12:CD65),2) -> 0 | CE13: =ROUND(SUM(CF12:CF65),2) -> 0 | CG13: =ROUND(SUM(CH12:CH65),2) -> 0 | CI13: =ROUND(SUM(CJ12:CJ65),2) -> 0 | CK13: =ROUND(SUM(CL12:CL65),2) -> 0 | CM13: =ROUND(SUM(CN12:CN65),2) -> 0 | CO13: =ROUND(SUM(CP12:CP65),2) -> 0 | CQ13: =ROUND(SUM(CR12:CR65),2) -> 0 | CS13: =ROUND(SUM(CT12:CT65),2) -> 0 | CU13: =ROUND(SUM(CV12:CV65),2) -> 0 | CW13: =ROUND(SUM(CX12:CX65),2) -> 0 | CY13: =ROUND(SUM(CZ12:CZ65),2) -> 0 | DA13: =ROUND(SUM(DB12:DB65),2) -> 0 | DC13: =ROUND(SUM(DD12:DD65),2) -> 0 | DE13: =ROUND(SUM(DF12:DF65),2) -> 0 | DG13: =ROUND(SUM(DH12:DH65),2) -> 0 | DI13: =ROUND(SUM(DJ12:DJ65),2) -> 0 | DK13: =ROUND(SUM(DL12:DL65),2) -> 0 | DM13: =ROUND(SUM(DN12:DN65),2) -> 0 | DO13: =ROUND(SUM(DP12:DP65),2) -> 0 | DQ13: =ROUND(SUM(DR12:DR65),2) -> 0 | DS13: =ROUND(SUM(DT12:DT65),2) -> 0 | DU13: =ROUND(SUM(DV12:DV65),2) -> 0 | DW13: =ROUND(SUM(DX12:DX65),2) -> 0
C14: CATEGORIAS | F14: QUANTIDADE
I15: =IF($C15=I$11,1,0) -> 0
I16: 0 | K16: =IF($C16=K$11,1,0) -> 0 | M16: =IF($C16=M$11,1,0) -> 0 | O16: =IF($C16=O$11,1,0) -> 0 | Q16: =IF($C16=Q$11,1,0) -> 0 | S16: =IF($C16=S$11,1,0) -> 0 | U16: =IF($C16=U$11,1,0) -> 0 | W16: =IF($C16=W$11,1,0) -> 0 | Y16: =IF($C16=Y$11,1,0) -> 0 | AA16: =IF($C16=AA$11,1,0) -> 0 | AC16: =IF($C16=AC$11,1,0) -> 0 | AE16: =IF($C16=AE$11,1,0) -> 0 | AG16: =IF($C16=AG$11,1,0) -> 0 | AI16: =IF($C16=AI$11,1,0) -> 0 | AK16: =IF($C16=AK$11,1,0) -> 0 | AM16: =IF($C16=AM$11,1,0) -> 0 | AO16: =IF($C16=AO$11,1,0) -> 0 | AQ16: =IF($C16=AQ$11,1,0) -> 0 | AS16: =IF($C16=AS$11,1,0) -> 0 | AU16: =IF($C16=AU$11,1,0) -> 0 | AW16: =IF($C16=AW$11,1,0) -> 0 | AY16: =IF($C16=AY$11,1,0) -> 0 | BA16: =IF($C16=BA$11,1,0) -> 0 | BC16: =IF($C16=BC$11,1,0) -> 0 | BE16: =IF($C16=BE$11,1,0) -> 0 | BG16: =IF($C16=BG$11,1,0) -> 0 | BI16: =IF($C16=BI$11,1,0) -> 0 | BK16: =IF($C16=BK$11,1,0) -> 0 | BM16: =IF($C16=BM$11,1,0) -> 0 | BO16: =IF($C16=BO$11,1,0) -> 0 | BQ16: =IF($C16=BQ$11,1,0) -> 0 | BS16: =IF($C16=BS$11,1,0) -> 0 | BU16: =IF($C16=BU$11,1,0) -> 0 | BW16: =IF($C16=BW$11,1,0) -> 0 | BY16: =IF($C16=BY$11,1,0) -> 0 | CA16: =IF($C16=CA$11,1,0) -> 0 | CC16: =IF($C16=CC$11,1,0) -> 0 | CE16: =IF($C16=CE$11,1,0) -> 0 | CG16: =IF($C16=CG$11,1,0) -> 0 | CI16: =IF($C16=CI$11,1,0) -> 0 | CK16: =IF($C16=CK$11,1,0) -> 0 | CM16: =IF($C16=CM$11,1,0) -> 0 | CO16: =IF($C16=CO$11,1,0) -> 0 | CQ16: =IF($C16=CQ$11,1,0) -> 0 | CS16: =IF($C16=CS$11,1,0) -> 0 | CU16: =IF($C16=CU$11,1,0) -> 0 | CW16: =IF($C16=CW$11,1,0) -> 0 | CY16: =IF($C16=CY$11,1,0) -> 0 | DA16: =IF($C16=DA$11,1,0) -> 0 | DC16: =IF($C16=DC$11,1,0) -> 0 | DE16: =IF($C16=DE$11,1,0) -> 0 | DG16: =IF($C16=DG$11,1,0) -> 0 | DI16: =IF($C16=DI$11,1,0) -> 0 | DK16: =IF($C16=DK$11,1,0) -> 0 | DM16: =IF($C16=DM$11,1,0) -> 0 | DO16: =IF($C16=DO$11,1,0) -> 0 | DQ16: =IF($C16=DQ$11,1,0) -> 0 | DS16: =IF($C16=DS$11,1,0) -> 0 | DU16: =IF($C16=DU$11,1,0) -> 0 | DW16: =IF($C16=DW$11,1,0) -> 0
I17: 0 | K17: 0 | M17: 0 | O17: 0 | Q17: 0 | S17: 0 | U17: 0 | W17: 0 | Y17: 0 | AA17: 0 | AC17: 0 | AE17: 0 | AG17: 0 | AI17: 0 | AK17: 0 | AM17: 0 | AO17: 0 | AQ17: 0 | AS17: 0 | AU17: 0 | AW17: 0 | AY17: 0 | BA17: 0 | BC17: 0 | BE17: 0 | BG17: 0 | BI17: 0 | BK17: 0 | BM17: 0 | BO17: 0 | BQ17: 0 | BS17: 0 | BU17: 0 | BW17: 0 | BY17: 0 | CA17: 0 | CC17: 0 | CE17: 0 | CG17: 0 | CI17: 0 | CK17: 0 | CM17: 0 | CO17: 0 | CQ17: 0 | CS17: 0 | CU17: 0 | CW17: 0 | CY17: 0 | DA17: 0 | DC17: 0 | DE17: 0 | DG17: 0 | DI17: 0 | DK17: 0 | DM17: 0 | DO17: 0 | DQ17: 0 | DS17: 0 | DU17: 0 | DW17: 0
I18: 0 | K18: 0 | M18: 0 | O18: 0 | Q18: 0 | S18: 0 | U18: 0 | W18: 0 | Y18: 0 | AA18: 0 | AC18: 0 | AE18: 0 | AG18: 0 | AI18: 0 | AK18: 0 | AM18: 0 | AO18: 0 | AQ18: 0 | AS18: 0 | AU18: 0 | AW18: 0 | AY18: 0 | BA18: 0 | BC18: 0 | BE18: 0 | BG18: 0 | BI18: 0 | BK18: 0 | BM18: 0 | BO18: 0 | BQ18: 0 | BS18: 0 | BU18: 0 | BW18: 0 | BY18: 0 | CA18: 0 | CC18: 0 | CE18: 0 | CG18: 0 | CI18: 0 | CK18: 0 | CM18: 0 | CO18: 0 | CQ18: 0 | CS18: 0 | CU18: 0 | CW18: 0 | CY18: 0 | DA18: 0 | DC18: 0 | DE18: 0 | DG18: 0 | DI18: 0 | DK18: 0 | DM18: 0 | DO18: 0 | DQ18: 0 | DS18: 0 | DU18: 0 | DW18: 0
I19: 0 | K19: 0 | M19: 0 | O19: 0 | Q19: 0 | S19: 0 | U19: 0 | W19: 0 | Y19: 0 | AA19: 0 | AC19: 0 | AE19: 0 | AG19: 0 | AI19: 0 | AK19: 0 | AM19: 0 | AO19: 0 | AQ19: 0 | AS19: 0 | AU19: 0 | AW19: 0 | AY19: 0 | BA19: 0 | BC19: 0 | BE19: 0 | BG19: 0 | BI19: 0 | BK19: 0 | BM19: 0 | BO19: 0 | BQ19: 0 | BS19: 0 | BU19: 0 | BW19: 0 | BY19: 0 | CA19: 0 | CC19: 0 | CE19: 0 | CG19: 0 | CI19: 0 | CK19: 0 | CM19: 0 | CO19: 0 | CQ19: 0 | CS19: 0 | CU19: 0 | CW19: 0 | CY19: 0 | DA19: 0 | DC19: 0 | DE19: 0 | DG19: 0 | DI19: 0 | DK19: 0 | DM19: 0 | DO19: 0 | DQ19: 0 | DS19: 0 | DU19: 0 | DW19: 0
I20: 0 | K20: 0 | M20: 0 | O20: 0 | Q20: 0 | S20: 0 | U20: 0 | W20: 0 | Y20: 0 | AA20: 0 | AC20: 0 | AE20: 0 | AG20: 0 | AI20: 0 | AK20: 0 | AM20: 0 | AO20: 0 | AQ20: 0 | AS20: 0 | AU20: 0 | AW20: 0 | AY20: 0 | BA20: 0 | BC20: 0 | BE20: 0 | BG20: 0 | BI20: 0 | BK20: 0 | BM20: 0 | BO20: 0 | BQ20: 0 | BS20: 0 | BU20: 0 | BW20: 0 | BY20: 0 | CA20: 0 | CC20: 0 | CE20: 0 | CG20: 0 | CI20: 0 | CK20: 0 | CM20: 0 | CO20: 0 | CQ20: 0 | CS20: 0 | CU20: 0 | CW20: 0 | CY20: 0 | DA20: 0 | DC20: 0 | DE20: 0 | DG20: 0 | DI20: 0 | DK20: 0 | DM20: 0 | DO20: 0 | DQ20: 0 | DS20: 0 | DU20: 0 | DW20: 0
I21: 0 | K21: 0 | M21: 0 | O21: 0 | Q21: 0 | S21: 0 | U21: 0 | W21: 0 | Y21: 0 | AA21: 0 | AC21: 0 | AE21: 0 | AG21: 0 | AI21: 0 | AK21: 0 | AM21: 0 | AO21: 0 | AQ21: 0 | AS21: 0 | AU21: 0 | AW21: 0 | AY21: 0 | BA21: 0 | BC21: 0 | BE21: 0 | BG21: 0 | BI21: 0 | BK21: 0 | BM21: 0 | BO21: 0 | BQ21: 0 | BS21: 0 | BU21: 0 | BW21: 0 | BY21: 0 | CA21: 0 | CC21: 0 | CE21: 0 | CG21: 0 | CI21: 0 | CK21: 0 | CM21: 0 | CO21: 0 | CQ21: 0 | CS21: 0 | CU21: 0 | CW21: 0 | CY21: 0 | DA21: 0 | DC21: 0 | DE21: 0 | DG21: 0 | DI21: 0 | DK21: 0 | DM21: 0 | DO21: 0 | DQ21: 0 | DS21: 0 | DU21: 0 | DW21: 0
I22: 0
C24: ITEM | D24: DESCRIÇÃO | E24: QUANT ANUAL | F24: VALOR
J25: =IF(SUM(I$15:I$22)>0,$E25*$F25,0) -> 0 | L25: =IF(SUM(K$15:K$22)>0,$E25*$F25,0) -> 0 | N25: =IF(SUM(M$15:M$22)>0,$E25*$F25,0) -> 0 | P25: =IF(SUM(O$15:O$22)>0,$E25*$F25,0) -> 0 | R25: =IF(SUM(Q$15:Q$22)>0,$E25*$F25,0) -> 0 | T25: =IF(SUM(S$15:S$22)>0,$E25*$F25,0) -> 0 | V25: =IF(SUM(U$15:U$22)>0,$E25*$F25,0) -> 0 | X25: =IF(SUM(W$15:W$22)>0,$E25*$F25,0) -> 0 | Z25: =IF(SUM(Y$15:Y$22)>0,$E25*$F25,0) -> 0 | AB25: =IF(SUM(AA$15:AA$22)>0,$E25*$F25,0) -> 0 | AD25: =IF(SUM(AC$15:AC$22)>0,$E25*$F25,0) -> 0 | AF25: =IF(SUM(AE$15:AE$22)>0,$E25*$F25,0) -> 0 | AH25: =IF(SUM(AG$15:AG$22)>0,$E25*$F25,0) -> 0 | AJ25: =IF(SUM(AI$15:AI$22)>0,$E25*$F25,0) -> 0 | AL25: =IF(SUM(AK$15:AK$22)>0,$E25*$F25,0) -> 0 | AN25: =IF(SUM(AM$15:AM$22)>0,$E25*$F25,0) -> 0 | AP25: =IF(SUM(AO$15:AO$22)>0,$E25*$F25,0) -> 0 | AR25: =IF(SUM(AQ$15:AQ$22)>0,$E25*$F25,0) -> 0 | AT25: =IF(SUM(AS$15:AS$22)>0,$E25*$F25,0) -> 0 | AV25: =IF(SUM(AU$15:AU$22)>0,$E25*$F25,0) -> 0 | AX25: =IF(SUM(AW$15:AW$22)>0,$E25*$F25,0) -> 0 | AZ25: =IF(SUM(AY$15:AY$22)>0,$E25*$F25,0) -> 0 | BB25: =IF(SUM(BA$15:BA$22)>0,$E25*$F25,0) -> 0 | BD25: =IF(SUM(BC$15:BC$22)>0,$E25*$F25,0) -> 0 | BF25: =IF(SUM(BE$15:BE$22)>0,$E25*$F25,0) -> 0 | BH25: =IF(SUM(BG$15:BG$22)>0,$E25*$F25,0) -> 0 | BJ25: =IF(SUM(BI$15:BI$22)>0,$E25*$F25,0) -> 0 | BL25: =IF(SUM(BK$15:BK$22)>0,$E25*$F25,0) -> 0 | BN25: =IF(SUM(BM$15:BM$22)>0,$E25*$F25,0) -> 0 | BP25: =IF(SUM(BO$15:BO$22)>0,$E25*$F25,0) -> 0 | BR25: =IF(SUM(BQ$15:BQ$22)>0,$E25*$F25,0) -> 0 | BT25: =IF(SUM(BS$15:BS$22)>0,$E25*$F25,0) -> 0 | BV25: =IF(SUM(BU$15:BU$22)>0,$E25*$F25,0) -> 0 | BX25: =IF(SUM(BW$15:BW$22)>0,$E25*$F25,0) -> 0 | BZ25: =IF(SUM(BY$15:BY$22)>0,$E25*$F25,0) -> 0 | CB25: =IF(SUM(CA$15:CA$22)>0,$E25*$F25,0) -> 0 | CD25: =IF(SUM(CC$15:CC$22)>0,$E25*$F25,0) -> 0 | CF25: =IF(SUM(CE$15:CE$22)>0,$E25*$F25,0) -> 0 | CH25: =IF(SUM(CG$15:CG$22)>0,$E25*$F25,0) -> 0 | CJ25: =IF(SUM(CI$15:CI$22)>0,$E25*$F25,0) -> 0 | CL25: =IF(SUM(CK$15:CK$22)>0,$E25*$F25,0) -> 0 | CN25: =IF(SUM(CM$15:CM$22)>0,$E25*$F25,0) -> 0 | CP25: =IF(SUM(CO$15:CO$22)>0,$E25*$F25,0) -> 0 | CR25: =IF(SUM(CQ$15:CQ$22)>0,$E25*$F25,0) -> 0 | CT25: =IF(SUM(CS$15:CS$22)>0,$E25*$F25,0) -> 0 | CV25: =IF(SUM(CU$15:CU$22)>0,$E25*$F25,0) -> 0 | CX25: =IF(SUM(CW$15:CW$22)>0,$E25*$F25,0) -> 0 | CZ25: =IF(SUM(CY$15:CY$22)>0,$E25*$F25,0) -> 0 | DB25: =IF(SUM(DA$15:DA$22)>0,$E25*$F25,0) -> 0 | DD25: =IF(SUM(DC$15:DC$22)>0,$E25*$F25,0) -> 0 | DF25: =IF(SUM(DE$15:DE$22)>0,$E25*$F25,0) -> 0 | DH25: =IF(SUM(DG$15:DG$22)>0,$E25*$F25,0) -> 0 | DJ25: =IF(SUM(DI$15:DI$22)>0,$E25*$F25,0) -> 0 | DL25: =IF(SUM(DK$15:DK$22)>0,$E25*$F25,0) -> 0 | DN25: =IF(SUM(DM$15:DM$22)>0,$E25*$F25,0) -> 0 | DP25: =IF(SUM(DO$15:DO$22)>0,$E25*$F25,0) -> 0 | DR25: =IF(SUM(DQ$15:DQ$22)>0,$E25*$F25,0) -> 0 | DT25: =IF(SUM(DS$15:DS$22)>0,$E25*$F25,0) -> 0 | DV25: =IF(SUM(DU$15:DU$22)>0,$E25*$F25,0) -> 0 | DX25: =IF(SUM(DW$15:DW$22)>0,$E25*$F25,0) -> 0
J26: =IF(SUM(I$15:I$22)>0,$E26*$F26,0) -> 0 | L26: =IF(SUM(K$15:K$22)>0,$E26*$F26,0) -> 0 | N26: =IF(SUM(M$15:M$22)>0,$E26*$F26,0) -> 0 | P26: =IF(SUM(O$15:O$22)>0,$E26*$F26,0) -> 0 | R26: =IF(SUM(Q$15:Q$22)>0,$E26*$F26,0) -> 0 | T26: =IF(SUM(S$15:S$22)>0,$E26*$F26,0) -> 0 | V26: =IF(SUM(U$15:U$22)>0,$E26*$F26,0) -> 0 | X26: =IF(SUM(W$15:W$22)>0,$E26*$F26,0) -> 0 | Z26: =IF(SUM(Y$15:Y$22)>0,$E26*$F26,0) -> 0 | AB26: =IF(SUM(AA$15:AA$22)>0,$E26*$F26,0) -> 0 | AD26: =IF(SUM(AC$15:AC$22)>0,$E26*$F26,0) -> 0 | AF26: =IF(SUM(AE$15:AE$22)>0,$E26*$F26,0) -> 0 | AH26: =IF(SUM(AG$15:AG$22)>0,$E26*$F26,0) -> 0 | AJ26: =IF(SUM(AI$15:AI$22)>0,$E26*$F26,0) -> 0 | AL26: =IF(SUM(AK$15:AK$22)>0,$E26*$F26,0) -> 0 | AN26: =IF(SUM(AM$15:AM$22)>0,$E26*$F26,0) -> 0 | AP26: =IF(SUM(AO$15:AO$22)>0,$E26*$F26,0) -> 0 | AR26: =IF(SUM(AQ$15:AQ$22)>0,$E26*$F26,0) -> 0 | AT26: =IF(SUM(AS$15:AS$22)>0,$E26*$F26,0) -> 0 | AV26: =IF(SUM(AU$15:AU$22)>0,$E26*$F26,0) -> 0 | AX26: =IF(SUM(AW$15:AW$22)>0,$E26*$F26,0) -> 0 | AZ26: =IF(SUM(AY$15:AY$22)>0,$E26*$F26,0) -> 0 | BB26: =IF(SUM(BA$15:BA$22)>0,$E26*$F26,0) -> 0 | BD26: =IF(SUM(BC$15:BC$22)>0,$E26*$F26,0) -> 0 | BF26: =IF(SUM(BE$15:BE$22)>0,$E26*$F26,0) -> 0 | BH26: =IF(SUM(BG$15:BG$22)>0,$E26*$F26,0) -> 0 | BJ26: =IF(SUM(BI$15:BI$22)>0,$E26*$F26,0) -> 0 | BL26: =IF(SUM(BK$15:BK$22)>0,$E26*$F26,0) -> 0 | BN26: =IF(SUM(BM$15:BM$22)>0,$E26*$F26,0) -> 0 | BP26: =IF(SUM(BO$15:BO$22)>0,$E26*$F26,0) -> 0 | BR26: =IF(SUM(BQ$15:BQ$22)>0,$E26*$F26,0) -> 0 | BT26: =IF(SUM(BS$15:BS$22)>0,$E26*$F26,0) -> 0 | BV26: =IF(SUM(BU$15:BU$22)>0,$E26*$F26,0) -> 0 | BX26: =IF(SUM(BW$15:BW$22)>0,$E26*$F26,0) -> 0 | BZ26: =IF(SUM(BY$15:BY$22)>0,$E26*$F26,0) -> 0 | CB26: =IF(SUM(CA$15:CA$22)>0,$E26*$F26,0) -> 0 | CD26: =IF(SUM(CC$15:CC$22)>0,$E26*$F26,0) -> 0 | CF26: =IF(SUM(CE$15:CE$22)>0,$E26*$F26,0) -> 0 | CH26: =IF(SUM(CG$15:CG$22)>0,$E26*$F26,0) -> 0 | CJ26: =IF(SUM(CI$15:CI$22)>0,$E26*$F26,0) -> 0 | CL26: =IF(SUM(CK$15:CK$22)>0,$E26*$F26,0) -> 0 | CN26: =IF(SUM(CM$15:CM$22)>0,$E26*$F26,0) -> 0 | CP26: =IF(SUM(CO$15:CO$22)>0,$E26*$F26,0) -> 0 | CR26: =IF(SUM(CQ$15:CQ$22)>0,$E26*$F26,0) -> 0 | CT26: =IF(SUM(CS$15:CS$22)>0,$E26*$F26,0) -> 0 | CV26: =IF(SUM(CU$15:CU$22)>0,$E26*$F26,0) -> 0 | CX26: =IF(SUM(CW$15:CW$22)>0,$E26*$F26,0) -> 0 | CZ26: =IF(SUM(CY$15:CY$22)>0,$E26*$F26,0) -> 0 | DB26: =IF(SUM(DA$15:DA$22)>0,$E26*$F26,0) -> 0 | DD26: =IF(SUM(DC$15:DC$22)>0,$E26*$F26,0) -> 0 | DF26: =IF(SUM(DE$15:DE$22)>0,$E26*$F26,0) -> 0 | DH26: =IF(SUM(DG$15:DG$22)>0,$E26*$F26,0) -> 0 | DJ26: =IF(SUM(DI$15:DI$22)>0,$E26*$F26,0) -> 0 | DL26: =IF(SUM(DK$15:DK$22)>0,$E26*$F26,0) -> 0 | DN26: =IF(SUM(DM$15:DM$22)>0,$E26*$F26,0) -> 0 | DP26: =IF(SUM(DO$15:DO$22)>0,$E26*$F26,0) -> 0 | DR26: =IF(SUM(DQ$15:DQ$22)>0,$E26*$F26,0) -> 0 | DT26: =IF(SUM(DS$15:DS$22)>0,$E26*$F26,0) -> 0 | DV26: =IF(SUM(DU$15:DU$22)>0,$E26*$F26,0) -> 0 | DX26: =IF(SUM(DW$15:DW$22)>0,$E26*$F26,0) -> 0
J27: =IF(SUM(I$15:I$22)>0,$E27*$F27,0) -> 0 | L27: =IF(SUM(K$15:K$22)>0,$E27*$F27,0) -> 0 | N27: =IF(SUM(M$15:M$22)>0,$E27*$F27,0) -> 0 | P27: =IF(SUM(O$15:O$22)>0,$E27*$F27,0) -> 0 | R27: =IF(SUM(Q$15:Q$22)>0,$E27*$F27,0) -> 0 | T27: =IF(SUM(S$15:S$22)>0,$E27*$F27,0) -> 0 | V27: =IF(SUM(U$15:U$22)>0,$E27*$F27,0) -> 0 | X27: =IF(SUM(W$15:W$22)>0,$E27*$F27,0) -> 0 | Z27: =IF(SUM(Y$15:Y$22)>0,$E27*$F27,0) -> 0 | AB27: =IF(SUM(AA$15:AA$22)>0,$E27*$F27,0) -> 0 | AD27: =IF(SUM(AC$15:AC$22)>0,$E27*$F27,0) -> 0 | AF27: =IF(SUM(AE$15:AE$22)>0,$E27*$F27,0) -> 0 | AH27: =IF(SUM(AG$15:AG$22)>0,$E27*$F27,0) -> 0 | AJ27: =IF(SUM(AI$15:AI$22)>0,$E27*$F27,0) -> 0 | AL27: =IF(SUM(AK$15:AK$22)>0,$E27*$F27,0) -> 0 | AN27: =IF(SUM(AM$15:AM$22)>0,$E27*$F27,0) -> 0 | AP27: =IF(SUM(AO$15:AO$22)>0,$E27*$F27,0) -> 0 | AR27: =IF(SUM(AQ$15:AQ$22)>0,$E27*$F27,0) -> 0 | AT27: =IF(SUM(AS$15:AS$22)>0,$E27*$F27,0) -> 0 | AV27: =IF(SUM(AU$15:AU$22)>0,$E27*$F27,0) -> 0 | AX27: =IF(SUM(AW$15:AW$22)>0,$E27*$F27,0) -> 0 | AZ27: =IF(SUM(AY$15:AY$22)>0,$E27*$F27,0) -> 0 | BB27: =IF(SUM(BA$15:BA$22)>0,$E27*$F27,0) -> 0 | BD27: =IF(SUM(BC$15:BC$22)>0,$E27*$F27,0) -> 0 | BF27: =IF(SUM(BE$15:BE$22)>0,$E27*$F27,0) -> 0 | BH27: =IF(SUM(BG$15:BG$22)>0,$E27*$F27,0) -> 0 | BJ27: =IF(SUM(BI$15:BI$22)>0,$E27*$F27,0) -> 0 | BL27: =IF(SUM(BK$15:BK$22)>0,$E27*$F27,0) -> 0 | BN27: =IF(SUM(BM$15:BM$22)>0,$E27*$F27,0) -> 0 | BP27: =IF(SUM(BO$15:BO$22)>0,$E27*$F27,0) -> 0 | BR27: =IF(SUM(BQ$15:BQ$22)>0,$E27*$F27,0) -> 0 | BT27: =IF(SUM(BS$15:BS$22)>0,$E27*$F27,0) -> 0 | BV27: =IF(SUM(BU$15:BU$22)>0,$E27*$F27,0) -> 0 | BX27: =IF(SUM(BW$15:BW$22)>0,$E27*$F27,0) -> 0 | BZ27: =IF(SUM(BY$15:BY$22)>0,$E27*$F27,0) -> 0 | CB27: =IF(SUM(CA$15:CA$22)>0,$E27*$F27,0) -> 0 | CD27: =IF(SUM(CC$15:CC$22)>0,$E27*$F27,0) -> 0 | CF27: =IF(SUM(CE$15:CE$22)>0,$E27*$F27,0) -> 0 | CH27: =IF(SUM(CG$15:CG$22)>0,$E27*$F27,0) -> 0 | CJ27: =IF(SUM(CI$15:CI$22)>0,$E27*$F27,0) -> 0 | CL27: =IF(SUM(CK$15:CK$22)>0,$E27*$F27,0) -> 0 | CN27: =IF(SUM(CM$15:CM$22)>0,$E27*$F27,0) -> 0 | CP27: =IF(SUM(CO$15:CO$22)>0,$E27*$F27,0) -> 0 | CR27: =IF(SUM(CQ$15:CQ$22)>0,$E27*$F27,0) -> 0 | CT27: =IF(SUM(CS$15:CS$22)>0,$E27*$F27,0) -> 0 | CV27: =IF(SUM(CU$15:CU$22)>0,$E27*$F27,0) -> 0 | CX27: =IF(SUM(CW$15:CW$22)>0,$E27*$F27,0) -> 0 | CZ27: =IF(SUM(CY$15:CY$22)>0,$E27*$F27,0) -> 0 | DB27: =IF(SUM(DA$15:DA$22)>0,$E27*$F27,0) -> 0 | DD27: =IF(SUM(DC$15:DC$22)>0,$E27*$F27,0) -> 0 | DF27: =IF(SUM(DE$15:DE$22)>0,$E27*$F27,0) -> 0 | DH27: =IF(SUM(DG$15:DG$22)>0,$E27*$F27,0) -> 0 | DJ27: =IF(SUM(DI$15:DI$22)>0,$E27*$F27,0) -> 0 | DL27: =IF(SUM(DK$15:DK$22)>0,$E27*$F27,0) -> 0 | DN27: =IF(SUM(DM$15:DM$22)>0,$E27*$F27,0) -> 0 | DP27: =IF(SUM(DO$15:DO$22)>0,$E27*$F27,0) -> 0 | DR27: =IF(SUM(DQ$15:DQ$22)>0,$E27*$F27,0) -> 0 | DT27: =IF(SUM(DS$15:DS$22)>0,$E27*$F27,0) -> 0 | DV27: =IF(SUM(DU$15:DU$22)>0,$E27*$F27,0) -> 0 | DX27: =IF(SUM(DW$15:DW$22)>0,$E27*$F27,0) -> 0
J28: =IF(SUM(I$15:I$22)>0,$E28*$F28,0) -> 0 | L28: =IF(SUM(K$15:K$22)>0,$E28*$F28,0) -> 0 | N28: =IF(SUM(M$15:M$22)>0,$E28*$F28,0) -> 0 | P28: =IF(SUM(O$15:O$22)>0,$E28*$F28,0) -> 0 | R28: =IF(SUM(Q$15:Q$22)>0,$E28*$F28,0) -> 0 | T28: =IF(SUM(S$15:S$22)>0,$E28*$F28,0) -> 0 | V28: =IF(SUM(U$15:U$22)>0,$E28*$F28,0) -> 0 | X28: =IF(SUM(W$15:W$22)>0,$E28*$F28,0) -> 0 | Z28: =IF(SUM(Y$15:Y$22)>0,$E28*$F28,0) -> 0 | AB28: =IF(SUM(AA$15:AA$22)>0,$E28*$F28,0) -> 0 | AD28: =IF(SUM(AC$15:AC$22)>0,$E28*$F28,0) -> 0 | AF28: =IF(SUM(AE$15:AE$22)>0,$E28*$F28,0) -> 0 | AH28: =IF(SUM(AG$15:AG$22)>0,$E28*$F28,0) -> 0 | AJ28: =IF(SUM(AI$15:AI$22)>0,$E28*$F28,0) -> 0 | AL28: =IF(SUM(AK$15:AK$22)>0,$E28*$F28,0) -> 0 | AN28: =IF(SUM(AM$15:AM$22)>0,$E28*$F28,0) -> 0 | AP28: =IF(SUM(AO$15:AO$22)>0,$E28*$F28,0) -> 0 | AR28: =IF(SUM(AQ$15:AQ$22)>0,$E28*$F28,0) -> 0 | AT28: =IF(SUM(AS$15:AS$22)>0,$E28*$F28,0) -> 0 | AV28: =IF(SUM(AU$15:AU$22)>0,$E28*$F28,0) -> 0 | AX28: =IF(SUM(AW$15:AW$22)>0,$E28*$F28,0) -> 0 | AZ28: =IF(SUM(AY$15:AY$22)>0,$E28*$F28,0) -> 0 | BB28: =IF(SUM(BA$15:BA$22)>0,$E28*$F28,0) -> 0 | BD28: =IF(SUM(BC$15:BC$22)>0,$E28*$F28,0) -> 0 | BF28: =IF(SUM(BE$15:BE$22)>0,$E28*$F28,0) -> 0 | BH28: =IF(SUM(BG$15:BG$22)>0,$E28*$F28,0) -> 0 | BJ28: =IF(SUM(BI$15:BI$22)>0,$E28*$F28,0) -> 0 | BL28: =IF(SUM(BK$15:BK$22)>0,$E28*$F28,0) -> 0 | BN28: =IF(SUM(BM$15:BM$22)>0,$E28*$F28,0) -> 0 | BP28: =IF(SUM(BO$15:BO$22)>0,$E28*$F28,0) -> 0 | BR28: =IF(SUM(BQ$15:BQ$22)>0,$E28*$F28,0) -> 0 | BT28: =IF(SUM(BS$15:BS$22)>0,$E28*$F28,0) -> 0 | BV28: =IF(SUM(BU$15:BU$22)>0,$E28*$F28,0) -> 0 | BX28: =IF(SUM(BW$15:BW$22)>0,$E28*$F28,0) -> 0 | BZ28: =IF(SUM(BY$15:BY$22)>0,$E28*$F28,0) -> 0 | CB28: =IF(SUM(CA$15:CA$22)>0,$E28*$F28,0) -> 0 | CD28: =IF(SUM(CC$15:CC$22)>0,$E28*$F28,0) -> 0 | CF28: =IF(SUM(CE$15:CE$22)>0,$E28*$F28,0) -> 0 | CH28: =IF(SUM(CG$15:CG$22)>0,$E28*$F28,0) -> 0 | CJ28: =IF(SUM(CI$15:CI$22)>0,$E28*$F28,0) -> 0 | CL28: =IF(SUM(CK$15:CK$22)>0,$E28*$F28,0) -> 0 | CN28: =IF(SUM(CM$15:CM$22)>0,$E28*$F28,0) -> 0 | CP28: =IF(SUM(CO$15:CO$22)>0,$E28*$F28,0) -> 0 | CR28: =IF(SUM(CQ$15:CQ$22)>0,$E28*$F28,0) -> 0 | CT28: =IF(SUM(CS$15:CS$22)>0,$E28*$F28,0) -> 0 | CV28: =IF(SUM(CU$15:CU$22)>0,$E28*$F28,0) -> 0 | CX28: =IF(SUM(CW$15:CW$22)>0,$E28*$F28,0) -> 0 | CZ28: =IF(SUM(CY$15:CY$22)>0,$E28*$F28,0) -> 0 | DB28: =IF(SUM(DA$15:DA$22)>0,$E28*$F28,0) -> 0 | DD28: =IF(SUM(DC$15:DC$22)>0,$E28*$F28,0) -> 0 | DF28: =IF(SUM(DE$15:DE$22)>0,$E28*$F28,0) -> 0 | DH28: =IF(SUM(DG$15:DG$22)>0,$E28*$F28,0) -> 0 | DJ28: =IF(SUM(DI$15:DI$22)>0,$E28*$F28,0) -> 0 | DL28: =IF(SUM(DK$15:DK$22)>0,$E28*$F28,0) -> 0 | DN28: =IF(SUM(DM$15:DM$22)>0,$E28*$F28,0) -> 0 | DP28: =IF(SUM(DO$15:DO$22)>0,$E28*$F28,0) -> 0 | DR28: =IF(SUM(DQ$15:DQ$22)>0,$E28*$F28,0) -> 0 | DT28: =IF(SUM(DS$15:DS$22)>0,$E28*$F28,0) -> 0 | DV28: =IF(SUM(DU$15:DU$22)>0,$E28*$F28,0) -> 0 | DX28: =IF(SUM(DW$15:DW$22)>0,$E28*$F28,0) -> 0

Sheet Não Rel - EPI (hidden)
C1: CÂMARA DOS DEPUTADOS
C2: DEPARTAMENTO TÉCNICO
C3: Coordenação de Planejamento e Gestão
C5: Data: | D5: ='Dados Gerais'!#REF! -> 
C6: Processo: | D6: ='Dados Gerais'!#REF! -> 
C7: Objeto: | D7: ='Dados Gerais'!#REF! -> 
B11: EPIS NÃO RELACIONADOS DIRETAMENTE A UM POSTO DE TRABALHO - AQUISIÇÃO
D14: ITEM | E14: DESCRIÇÃO | F14: QUANT ANUAL | G14: UNIDADE | H14: CUSTO UNITÁRIO | I14: CUSTO ANUAL | J14: BDI (%) | K14: PREÇO TOTAL | L14: FONTE
H16: 0 | I16: =H16*F16 -> 0 | J16: =BDI!E26 -> 0.2663 | K16: =ROUND(I16*(1+J16),2) -> 0 | L16: COTAÇÃO
H17: 0 | I17: =H17*F17 -> 0 | J17: =J16 -> 0.2663 | K17: =ROUND(I17*(1+J17),2) -> 0 | L17: COTAÇÃO
H18: 0 | I18: =H18*F18 -> 0 | J18: =J17 -> 0.2663 | K18: =ROUND(I18*(1+J18),2) -> 0 | L18: COTAÇÃO
H19: 0 | I19: 0 | J19: 0.2663 | K19: 0 | L19: COTAÇÃO
H20: 0 | I20: 0 | J20: 0.2663 | K20: 0 | L20: COTAÇÃO
H21: 0 | I21: 0 | J21: 0.2663 | K21: 0 | L21: COTAÇÃO
H22: 0 | I22: 0 | J22: 0.2663 | K22: 0 | L22: COTAÇÃO
H23: 0 | I23: 0 | J23: 0.2663 | K23: 0 | L23: COTAÇÃO
H24: 0 | I24: 0 | J24: 0.2663 | K24: 0 | L24: COTAÇÃO
H25: 0 | I25: 0 | J25: 0.2663 | K25: 0 | L25: COTAÇÃO
H26: 0 | I26: 0 | J26: 0.2663 | K26: 0 | L26: COTAÇÃO
H27: 0 | I27: 0 | J27: 0.2663 | K27: 0 | L27: COTAÇÃO
H28: 0 | I28: 0 | J28: 0.2663 | K28: 0 | L28: COTAÇÃO
H29: 0 | I29: 0 | J29: 0.2663 | K29: 0 | L29: COTAÇÃO
H30: 0 | I30: 0 | J30: 0.2663 | K30: 0 | L30: COTAÇÃO
H31: 0 | I31: 0 | J31: 0.2663 | K31: 0 | L31: COTAÇÃO
H32: 0 | I32: 0 | J32: 0.2663 | K32: 0 | L32: COTAÇÃO
H33: 0 | I33: =H33*F33 -> 0 | J33: =J17 -> 0.2663 | K33: =ROUND(I33*(1+J33),2) -> 0 | L33: COTAÇÃO
H34: 0 | I34: =H34*F34 -> 0 | J34: =J33 -> 0.2663 | K34: =ROUND(I34*(1+J34),2) -> 0 | L34: COTAÇÃO
H35: 0 | I35: =H35*F35 -> 0 | J35: =J34 -> 0.2663 | K35: =ROUND(I35*(1+J35),2) -> 0 | L35: COTAÇÃO
I36: =H36*F36 -> 0
J37: SOMATÓRIO TOTAL MENSAL | K37: =K38/12 -> 0
J38: SOMATÓRIO TOTAL ANUAL | K38: =SUM(K15:K36) -> 0 | N38: =SUM($I$16:$I$35) -> 0 | O38: por ano sem bdi

Sheet SREP (hidden)
C1: CÂMARA DOS DEPUTADOS
C2: DEPARTAMENTO TÉCNICO
C3: Coordenação de Planejamento e Gestão
C5: Data: | D5: ='Dados Gerais'!#REF! -> 
C6: Processo: | D6: ='Dados Gerais'!#REF! -> 
C7: Objeto: | D7: ='Dados Gerais'!#REF! -> 
B11: SISTEMA DE REGISTRO ELETRÔNICO DE PRESENÇA - SREP
C14: PAGAMENTO DA DEPRECIAÇÃO
C15: ITEM | D15: DESCRIÇÃO | E15: QUANT ANUAL | F15: CONTA SIAFI | G15: VALOR DE AQ. | H15: % RESIDUAL | I15: VIDA ÚTIL | J15: DEP. MENSAL | K15: CUSTO TOTAL | L15: BDI (%) | M15: PREÇO TOTAL | N15: FONTE | O15: REFERÊNCIA
C17: 1 | D17: Equipamento de Registro Eletrônico de Ponto, de parede, com teclado externo e leitor biométrico, em conformidade com a Portaria 1.510/2009 do MT | E17: 1 | F17: 12311.01.24 (máquinas e equip eletrônicos) | G17: 1840.33 | H17: 0.1 | I17: 10 | J17: =G17*(1-H17)/(I17*12) -> 13.802475 | K17: =J17*E17 -> 13.802475 | L17: =BDI!E26 -> 0.2663 | M17: =ROUND(K17*(1+L17),2) -> 17.48 | N17: COTAÇÃO
C20: PAGAMENTO DA MANUTENÇÃO
C21: ITEM | D21: DESCRIÇÃO | H21: K (calculado) | I21: MENSAL DEPR. | J21: % MAN X DEP | K21: MENSAL MAN. | L21: BDI (%) | M21: PREÇO TOTAL
C23: 2 | D23: Todos os itens | H23: =H30 -> 1.90003968 | I23: =K17 -> 13.802475 | J23: =H23 -> 1.90003968 | K23: =I23*H23 -> 26.22525018 | L23: =L17 -> 0.2663 | M23: =ROUND(K23*(1+L23),2) -> 33.21
E25: K1 | F25: K2 | G25: K3 | H25: K4
E26: 0.85 | F26: 1 | G26: 0.8 | H26: 1.4
E27: K5 | F27: K6 | G27: K7 | H27: K8
E28: 1 | F28: 0.6 | G28: 1.6 | H28: 1.1
E29: K9 | F29: K10 | G29: K11 | H29: RESULTADO
D30: * a descrição de cada coeficiente segue abaixo | E30: 1.5 | F30: 0.9 | G30: 1.4 | H30: =E26*F26*G26*H26*E28*F28*G28*H28*E30*F30*G30 -> 1.90003968
C33: PAGAMENTO DO SOFTWARE
C34: ITEM | D34: DESCRIÇÃO | I34: QUANTIDADE | J34: UNIDADE | K34: UNIT. MENSAL | L34: BDI (%) | M34: PREÇO TOTAL
C36: 3 | D36: Software Ponto Secullum 4 - manutenção e suporte técnico com backup - Web Nuvem - Mensalidade | I36: 1 | J36: Licença/mês | K36: 75 | L36: =L42 -> 0.2663 | M36: =ROUND(K36*(1+L36),2) -> 94.97 | N36: COTAÇÃO
C39: MATERIAL DE CONSUMO ASSOCIADO
C40: ITEM | D40: DESCRIÇÃO | H40: QUANTID/ANO | I40: UNIDADE | J40: VALOR DE AQ. | K40: MENSAL MAT | L40: BDI (%) | M40: PREÇO TOTAL
C42: 4 | D42: Bobina térmica específica para o registrador eletrônico de ponto, com papel termossensível, superfície de impressão externa ao rolo, durabilidade de impressão mínima de 5 anos e comprimento mínimo de 300m | E42: * estimado um gasto anual de 21 bobinas por equipamento | H42: 10 | I42: Bobina | J42: 28.01 | K42: =J42*H42/12 -> 23.34166667 | L42: =L23 -> 0.2663 | M42: =ROUND(K42*(1+L42),2) -> 29.56 | N42: COTAÇÃO
C45: MATERIAL DE CONSUMO ASSOCIADO
C46: ITEM | D46: DESCRIÇÃO | M46: PREÇO TOTAL
C48: 1 | D48: Componente DEPRECIAÇÃO | M48: =M17 -> 17.48
C49: 2 | D49: Componente MANUTENÇÃO | M49: =M23 -> 33.21
C50: 3 | D50: Componente SOFTWARE | M50: =M36 -> 94.97
C51: 4 | D51: Componente MATERIAL DE CONSUMO ASSOCIADO | M51: =M42 -> 29.56
L53: SOMATÓRIO TOTAL MENSAL | M53: =SUM(M47:M52) -> 175.22
L54: SOMATÓRIO TOTAL ANUAL | M54: =M53*12 -> 2102.64
C57: MATERIAL DE CONSUMO ASSOCIADO
C58: MEMÓRIA DE CÁLCULO DO COEFICIENTE DE CORRELAÇÃO MANUTENÇÃO X DEPRECIAÇÃO (K)
C60: JUSTIFICATIVAS | E60: TIPO | F60: K1 | H60: Condições de Trab | I60: K4 | K60: Tempo Vida (anos) | L60: K6 | N60: Temperatura | O60: K8
E61: Guindaste | F61: 0.5 | H61: Em espera | I61: 0.4 | K61: 1 | L61: 0.6 | N61: Muito quente (> 40º C) | O61: 1.3
C62: K1 | D62: Considerado o valor médio de 0,85 | E62: Caminhão-comum | F62: 0.8 | H62: Leves | I62: 0.8 | K62: 2 | L62: 0.7 | N62: Quente (30º a 40º C) | O62: 1.1
C63: K2 | D63: Considerado o operador médio | E63: Fora-de-estrada | F63: 1 | H63: Médias | I63: 1 | K63: 3 | L63: 0.8 | N63: Médio (10º a 30º C) | O63: 1
C64: K3 | D64: Consideradas ferramentas de primeira qualidade | E64: Carregadeira | F64: 1 | H64: Pesadas | I64: 1.4 | K64: 4 | L64: 0.9 | N64: Frio (< 10º C) | O64: 1.2
C65: K4 | D65: Há todo o tipo de trabalho, foi considerado condições pesadas | E65: Escavadeira | F65: 1.4 | H65: Severas | I65: 2 | K65: 5 | L65: 1
C66: K5 | D66: Considerando manutenção normal | E66: Motoescrêiper | F66: 1.1 | K66: 6 | L66: 1 | N66: Ritmo de Trabalho | O66: K9
C67: K6 | D67: Equipamentos novos | E67: Trator de esteira | F67: 1.2 | H67: Manutenção | I67: K5 | K67: 7 | L67: 1 | N67: Folgado | O67: 0.9
C68: K7 | D68: 44h por dia, 252 dias por ano | H68: Excelente | I68: 0.6 | K68: 8 | L68: 1.2 | N68: Médio | O68: 1
C69: K8 | D69: Clima quente, acima de 30º C | E69: Qualid do Operador | F69: K2 | H69: Boa | I69: 0.8 | K69: 9 | L69: 1.3 | N69: Com pressa | O69: 1.5
C70: K9 | D70: Ritmo de trabalho usualmente com pressa | E70: Excelente | F70: 0.8 | H70: Média | I70: 1 | K70: 10 | L70: 1.4
C71: K10 | D71: Considerado o operador médio | E71: Boa | F71: 0.9 | H71: Ruim | I71: 1.5 | K71: 11 | L71: 2 | N71: Conh do Serviço | O71: K10
C72: K11 | D72: Foi considerada a opção de aluguel a terceiros, ainda que a simulação seja dos custos do contratado, contudo a execução dos serviços é em local de terceiros | E72: Média | F72: 1 | H72: Inexistente | I72: 3 | K72: 15 | L72: 2 | N72: Grande | O72: 0.8
E73: Ruim | F73: 1.2 | N73: Médio | O73: 0.9
E74: Péssima | F74: 2 | H74: Horas de Uso | I74: K7 | J74: 6000 | K74: 1 | N74: Pouco | O74: 1
H75: 1000 | I75: 0.5 | J75: 8000 | K75: 1.3
E76: Qualidade do Equip | F76: K3 | H76: 2000 | I76: 0.5 | J76: 10000 | K76: 1.6 | N76: Tipo do Serviço | O76: K11
E77: De primeira | F77: 0.8 | H77: 3000 | I77: 0.6 | J77: 12000 | K77: 1.9 | N77: Mina ou Pedreira | O77: 0.8
E78: Média | F78: 1 | H78: 4000 | I78: 0.7 | J78: 15000 | K78: 2.3 | N78: Construção Geral | O78: 1
E79: Ruim | F79: 1.5 | H79: 5000 | I79: 0.9 | J79: 20000 | K79: 3 | N79: Aluguel a Terceiros | O79: 1.4
E81: Fonte:
E82: MATTOS, Aldo Dórea. Como preparar orçamentos de obras. São Paulo: Pini, 2006. 281 p., il

Sheet Not. Demanda (hidden)
B3: ADICIONAL NOTURNO SOB DEMANDA
C6: CATEGORIAS | G6: HORAS / ANO | H6: % NOTURNA
C8: 3 | D8: =HLOOKUP($C8,'Dados Gerais'!$D$5:$BH$10,6) -> Analista de TI - Analista de Dados - sênior | H8: 0.2
C11: AJUSTE DE HORAS FICTAS | E11: AJUSTE H.NOT | F11: HORA NORMAL | G11: H.FICTAS/ANO | H11: H.ÚTEIS/MÊS
C13: 3 | D13: =HLOOKUP($C13,'Dados Gerais'!$D$5:$BH$10,6) -> Analista de TI - Analista de Dados - sênior | E13: 52.5 | F13: 60 | G13: =G8*(F13/E13) -> 0 | H13: =HLOOKUP(C13,'Dados Gerais'!$D$5:$G$16,12,0) -> 200
C16: VALOR DO ADICIONAL NOTURNO | F16: SALÁRIO MÊS | G16: VL.H.NORMAL | H16: ADIC.H.FICTAS
C18: 3 | D18: =HLOOKUP($C18,'Dados Gerais'!$D$5:$BH$10,6) -> Analista de TI - Analista de Dados - sênior | F18: =HLOOKUP(C18,'Dados Gerais'!$D$5:$G$12,8,0) -> 9747.54 | G18: =F18/H13 -> 48.7377 | H18: =G18*(H8) -> 9.74754
C21: RESUMO DO ADICIONAL NOTURNO SOB DEMANDA
C22: TOTAIS ANUAIS | G22: PREÇO ANUAL
C24: 3 | D24: =HLOOKUP($C24,'Dados Gerais'!$D$5:$BH$10,6) -> Analista de TI - Analista de Dados - sênior | G24: =H18*G13 -> 0
F26: SOMATÓRIO TOTAL MENSAL | G26: =G27/12 -> 0
F27: SOMATÓRIO TOTAL ANUAL | G27: =G24 -> 0
C30: ENCARGOS SOCIAIS E BDI SOBRE ADICIONAL NOTURNO SOB DEMANDA
C31: TOTAIS MENSAIS | F31: PERCENTUAIS | G31: PREÇO MENSAL
D33: ENCARGOS SOCIAIS | F33: ='Encargos Sociais'!$E$45 -> 0.6817 | G33: =F33*G26 -> 0
D34: BDI | F34: =BDI!$E$26 -> 0.2663 | G34: =F34*(G26+G33) -> 0
F36: SOMATÓRIO TOTAL MENSAL | G36: =SUM(G33:G35) -> 0
F37: SOMATÓRIO TOTAL ANUAL | G37: =G36*12 -> 0
C40: VALOR TOTAL ADICIONAL NOTURNO SOB DEMANDA (COM ENCARGOS SOCIAIS E BDI INCLUSOS)
C41: TOTAIS MENSAIS | F41: PERCENTUAIS | G41: PREÇO MENSAL
F43: SOMATÓRIO TOTAL MENSAL | G43: =G36+G26 -> 0
F44: SOMATÓRIO TOTAL ANUAL | G44: =G43*12 -> 0

Sheet Equip Rel (hidden)
C1: CÂMARA DOS DEPUTADOS
C2: DEPARTAMENTO TÉCNICO
C3: Coordenação de Planejamento e Gestão
C5: Data: | D5: ='Dados Gerais'!#REF! -> 
C6: Processo: | D6: ='Dados Gerais'!#REF! -> 
C7: Objeto: | D7: ='Dados Gerais'!#REF! -> 
B11: EQUIPAMENTOS RELACIONADOS AO POSTO - PAGAMENTO DA DEPRECIAÇÃO / MANUTENÇÃO | Q11: 1 | S11: =Q11+1 -> 2 | U11: =S11+1 -> 3 | W11: =U11+1 -> 4 | Y11: =W11+1 -> 5 | AA11: =Y11+1 -> 6 | AC11: =AA11+1 -> 7 | AE11: =AC11+1 -> 8 | AG11: =AE11+1 -> 9 | AI11: =AG11+1 -> 10 | AK11: =AI11+1 -> 11 | AM11: =AK11+1 -> 12 | AO11: =AM11+1 -> 13 | AQ11: =AO11+1 -> 14 | AS11: =AQ11+1 -> 15 | AU11: =AS11+1 -> 16 | AW11: =AU11+1 -> 17 | AY11: =AW11+1 -> 18 | BA11: =AY11+1 -> 19 | BC11: =BA11+1 -> 20 | BE11: =BC11+1 -> 21 | BG11: =BE11+1 -> 22 | BI11: =BG11+1 -> 23 | BK11: =BI11+1 -> 24 | BM11: =BK11+1 -> 25 | BO11: =BM11+1 -> 26 | BQ11: =BO11+1 -> 27 | BS11: =BQ11+1 -> 28 | BU11: =BS11+1 -> 29 | BW11: =BU11+1 -> 30 | BY11: =BW11+1 -> 31 | CA11: =BY11+1 -> 32 | CC11: =CA11+1 -> 33 | CE11: =CC11+1 -> 34 | CG11: =CE11+1 -> 35 | CI11: =CG11+1 -> 36 | CK11: =CI11+1 -> 37 | CM11: =CK11+1 -> 38 | CO11: =CM11+1 -> 39 | CQ11: =CO11+1 -> 40 | CS11: =CQ11+1 -> 41 | CU11: =CS11+1 -> 42 | CW11: =CU11+1 -> 43 | CY11: =CW11+1 -> 44 | DA11: =CY11+1 -> 45 | DC11: =DA11+1 -> 46 | DE11: =DC11+1 -> 47 | DG11: =DE11+1 -> 48 | DI11: =DG11+1 -> 49 | DK11: =DI11+1 -> 50 | DM11: =DK11+1 -> 51 | DO11: =DM11+1 -> 52 | DQ11: =DO11+1 -> 53 | DS11: =DQ11+1 -> 54 | DU11: =DS11+1 -> 55 | DW11: =DU11+1 -> 56 | DY11: =DW11+1 -> 57 | EA11: =DY11+1 -> 58 | EC11: =EA11+1 -> 59 | EE11: =EC11+1 -> 60
Q13: =SUM(R12:R61) -> 0 | S13: =SUM(T12:T61) -> 0 | U13: =SUM(V12:V61) -> 0 | W13: =SUM(X12:X61) -> 0 | Y13: =SUM(Z12:Z61) -> 0 | AA13: =SUM(AB12:AB61) -> 0 | AC13: =SUM(AD12:AD61) -> 0 | AE13: =SUM(AF12:AF61) -> 0 | AG13: =SUM(AH12:AH61) -> 0 | AI13: =SUM(AJ12:AJ61) -> 0 | AK13: =SUM(AL12:AL61) -> 0 | AM13: =SUM(AN12:AN61) -> 0 | AO13: =SUM(AP12:AP61) -> 0 | AQ13: =SUM(AR12:AR61) -> 0 | AS13: =SUM(AT12:AT61) -> 0 | AU13: =SUM(AV12:AV61) -> 0 | AW13: =SUM(AX12:AX61) -> 0 | AY13: =SUM(AZ12:AZ61) -> 0 | BA13: =SUM(BB12:BB61) -> 0 | BC13: =SUM(BD12:BD61) -> 0 | BE13: =SUM(BF12:BF61) -> 0 | BG13: =SUM(BH12:BH61) -> 0 | BI13: =SUM(BJ12:BJ61) -> 0 | BK13: =SUM(BL12:BL61) -> 0 | BM13: =SUM(BN12:BN61) -> 0 | BO13: =SUM(BP12:BP61) -> 0 | BQ13: =SUM(BR12:BR61) -> 0 | BS13: =SUM(BT12:BT61) -> 0 | BU13: =SUM(BV12:BV61) -> 0 | BW13: =SUM(BX12:BX61) -> 0 | BY13: =SUM(BZ12:BZ61) -> 0 | CA13: =SUM(CB12:CB61) -> 0 | CC13: =SUM(CD12:CD61) -> 0 | CE13: =SUM(CF12:CF61) -> 0 | CG13: =SUM(CH12:CH61) -> 0 | CI13: =SUM(CJ12:CJ61) -> 0 | CK13: =SUM(CL12:CL61) -> 0 | CM13: =SUM(CN12:CN61) -> 0 | CO13: =SUM(CP12:CP61) -> 0 | CQ13: =SUM(CR12:CR61) -> 0 | CS13: =SUM(CT12:CT61) -> 0 | CU13: =SUM(CV12:CV61) -> 0 | CW13: =SUM(CX12:CX61) -> 0 | CY13: =SUM(CZ12:CZ61) -> 0 | DA13: =SUM(DB12:DB61) -> 0 | DC13: =SUM(DD12:DD61) -> 0 | DE13: =SUM(DF12:DF61) -> 0 | DG13: =SUM(DH12:DH61) -> 0 | DI13: =SUM(DJ12:DJ61) -> 0 | DK13: =SUM(DL12:DL61) -> 0 | DM13: =SUM(DN12:DN61) -> 0 | DO13: =SUM(DP12:DP61) -> 0 | DQ13: =SUM(DR12:DR61) -> 0 | DS13: =SUM(DT12:DT61) -> 0 | DU13: =SUM(DV12:DV61) -> 0 | DW13: =SUM(DX12:DX61) -> 0 | DY13: =SUM(DZ12:DZ61) -> 0 | EA13: =SUM(EB12:EB61) -> 0 | EC13: =SUM(ED12:ED61) -> 0 | EE13: =SUM(EF12:EF61) -> 0
C14: CATEGORIAS | E14: QUANTIDADE
Q15: =IF($C15=Q$11,1,0) -> 0 | S15: =IF($C15=S$11,1,0) -> 0 | U15: =IF($C15=U$11,1,0) -> 0 | W15: =IF($C15=W$11,1,0) -> 0 | Y15: =IF($C15=Y$11,1,0) -> 0 | AA15: =IF($C15=AA$11,1,0) -> 0 | AC15: =IF($C15=AC$11,1,0) -> 0 | AE15: =IF($C15=AE$11,1,0) -> 0 | AG15: =IF($C15=AG$11,1,0) -> 0 | AI15: =IF($C15=AI$11,1,0) -> 0 | AK15: =IF($C15=AK$11,1,0) -> 0 | AM15: =IF($C15=AM$11,1,0) -> 0 | AO15: =IF($C15=AO$11,1,0) -> 0 | AQ15: =IF($C15=AQ$11,1,0) -> 0 | AS15: =IF($C15=AS$11,1,0) -> 0 | AU15: =IF($C15=AU$11,1,0) -> 0 | AW15: =IF($C15=AW$11,1,0) -> 0 | AY15: =IF($C15=AY$11,1,0) -> 0 | BA15: =IF($C15=BA$11,1,0) -> 0 | BC15: =IF($C15=BC$11,1,0) -> 0 | BE15: =IF($C15=BE$11,1,0) -> 0 | BG15: =IF($C15=BG$11,1,0) -> 0 | BI15: =IF($C15=BI$11,1,0) -> 0 | BK15: =IF($C15=BK$11,1,0) -> 0 | BM15: =IF($C15=BM$11,1,0) -> 0 | BO15: =IF($C15=BO$11,1,0) -> 0 | BQ15: =IF($C15=BQ$11,1,0) -> 0 | BS15: =IF($C15=BS$11,1,0) -> 0 | BU15: =IF($C15=BU$11,1,0) -> 0 | BW15: =IF($C15=BW$11,1,0) -> 0 | BY15: =IF($C15=BY$11,1,0) -> 0 | CA15: =IF($C15=CA$11,1,0) -> 0 | CC15: =IF($C15=CC$11,1,0) -> 0 | CE15: =IF($C15=CE$11,1,0) -> 0 | CG15: =IF($C15=CG$11,1,0) -> 0 | CI15: =IF($C15=CI$11,1,0) -> 0 | CK15: =IF($C15=CK$11,1,0) -> 0 | CM15: =IF($C15=CM$11,1,0) -> 0 | CO15: =IF($C15=CO$11,1,0) -> 0 | CQ15: =IF($C15=CQ$11,1,0) -> 0 | CS15: =IF($C15=CS$11,1,0) -> 0 | CU15: =IF($C15=CU$11,1,0) -> 0 | CW15: =IF($C15=CW$11,1,0) -> 0 | CY15: =IF($C15=CY$11,1,0) -> 0 | DA15: =IF($C15=DA$11,1,0) -> 0 | DC15: =IF($C15=DC$11,1,0) -> 0 | DE15: =IF($C15=DE$11,1,0) -> 0 | DG15: =IF($C15=DG$11,1,0) -> 0 | DI15: =IF($C15=DI$11,1,0) -> 0 | DK15: =IF($C15=DK$11,1,0) -> 0 | DM15: =IF($C15=DM$11,1,0) -> 0 | DO15: =IF($C15=DO$11,1,0) -> 0 | DQ15: =IF($C15=DQ$11,1,0) -> 0 | DS15: =IF($C15=DS$11,1,0) -> 0 | DU15: =IF($C15=DU$11,1,0) -> 0 | DW15: =IF($C15=DW$11,1,0) -> 0 | DY15: =IF($C15=DY$11,1,0) -> 0 | EA15: =IF($C15=EA$11,1,0) -> 0 | EC15: =IF($C15=EC$11,1,0) -> 0 | EE15: =IF($C15=EE$11,1,0) -> 0
D16: =HLOOKUP($C16,'Dados Gerais'!$D$5:$BH$10,6) ->  | E16: =HLOOKUP($C16,'Dados Gerais'!$D$5:$BH$14,10) ->  | Q16: =IF($C16=Q$11,1,0) -> 0 | S16: =IF($C16=S$11,1,0) -> 0 | U16: =IF($C16=U$11,1,0) -> 0 | W16: =IF($C16=W$11,1,0) -> 0 | Y16: =IF($C16=Y$11,1,0) -> 0 | AA16: =IF($C16=AA$11,1,0) -> 0 | AC16: =IF($C16=AC$11,1,0) -> 0 | AE16: =IF($C16=AE$11,1,0) -> 0 | AG16: =IF($C16=AG$11,1,0) -> 0 | AI16: =IF($C16=AI$11,1,0) -> 0 | AK16: =IF($C16=AK$11,1,0) -> 0 | AM16: =IF($C16=AM$11,1,0) -> 0 | AO16: =IF($C16=AO$11,1,0) -> 0 | AQ16: =IF($C16=AQ$11,1,0) -> 0 | AS16: =IF($C16=AS$11,1,0) -> 0 | AU16: =IF($C16=AU$11,1,0) -> 0 | AW16: =IF($C16=AW$11,1,0) -> 0 | AY16: =IF($C16=AY$11,1,0) -> 0 | BA16: =IF($C16=BA$11,1,0) -> 0 | BC16: =IF($C16=BC$11,1,0) -> 0 | BE16: =IF($C16=BE$11,1,0) -> 0 | BG16: =IF($C16=BG$11,1,0) -> 0 | BI16: =IF($C16=BI$11,1,0) -> 0 | BK16: =IF($C16=BK$11,1,0) -> 0 | BM16: =IF($C16=BM$11,1,0) -> 0 | BO16: =IF($C16=BO$11,1,0) -> 0 | BQ16: =IF($C16=BQ$11,1,0) -> 0 | BS16: =IF($C16=BS$11,1,0) -> 0 | BU16: =IF($C16=BU$11,1,0) -> 0 | BW16: =IF($C16=BW$11,1,0) -> 0 | BY16: =IF($C16=BY$11,1,0) -> 0 | CA16: =IF($C16=CA$11,1,0) -> 0 | CC16: =IF($C16=CC$11,1,0) -> 0 | CE16: =IF($C16=CE$11,1,0) -> 0 | CG16: =IF($C16=CG$11,1,0) -> 0 | CI16: =IF($C16=CI$11,1,0) -> 0 | CK16: =IF($C16=CK$11,1,0) -> 0 | CM16: =IF($C16=CM$11,1,0) -> 0 | CO16: =IF($C16=CO$11,1,0) -> 0 | CQ16: =IF($C16=CQ$11,1,0) -> 0 | CS16: =IF($C16=CS$11,1,0) -> 0 | CU16: =IF($C16=CU$11,1,0) -> 0 | CW16: =IF($C16=CW$11,1,0) -> 0 | CY16: =IF($C16=CY$11,1,0) -> 0 | DA16: =IF($C16=DA$11,1,0) -> 0 | DC16: =IF($C16=DC$11,1,0) -> 0 | DE16: =IF($C16=DE$11,1,0) -> 0 | DG16: =IF($C16=DG$11,1,0) -> 0 | DI16: =IF($C16=DI$11,1,0) -> 0 | DK16: =IF($C16=DK$11,1,0) -> 0 | DM16: =IF($C16=DM$11,1,0) -> 0 | DO16: =IF($C16=DO$11,1,0) -> 0 | DQ16: =IF($C16=DQ$11,1,0) -> 0 | DS16: =IF($C16=DS$11,1,0) -> 0 | DU16: =IF($C16=DU$11,1,0) -> 0 | DW16: =IF($C16=DW$11,1,0) -> 0 | DY16: =IF($C16=DY$11,1,0) -> 0 | EA16: =IF($C16=EA$11,1,0) -> 0 | EC16: =IF($C16=EC$11,1,0) -> 0 | EE16: =IF($C16=EE$11,1,0) -> 0
Q17: =IF($C17=Q$11,1,0) -> 0 | S17: =IF($C17=S$11,1,0) -> 0 | U17: =IF($C17=U$11,1,0) -> 0 | W17: =IF($C17=W$11,1,0) -> 0 | Y17: =IF($C17=Y$11,1,0) -> 0 | AA17: =IF($C17=AA$11,1,0) -> 0 | AC17: =IF($C17=AC$11,1,0) -> 0 | AE17: =IF($C17=AE$11,1,0) -> 0 | AG17: =IF($C17=AG$11,1,0) -> 0 | AI17: =IF($C17=AI$11,1,0) -> 0 | AK17: =IF($C17=AK$11,1,0) -> 0 | AM17: =IF($C17=AM$11,1,0) -> 0 | AO17: =IF($C17=AO$11,1,0) -> 0 | AQ17: =IF($C17=AQ$11,1,0) -> 0 | AS17: =IF($C17=AS$11,1,0) -> 0 | AU17: =IF($C17=AU$11,1,0) -> 0 | AW17: =IF($C17=AW$11,1,0) -> 0 | AY17: =IF($C17=AY$11,1,0) -> 0 | BA17: =IF($C17=BA$11,1,0) -> 0 | BC17: =IF($C17=BC$11,1,0) -> 0 | BE17: =IF($C17=BE$11,1,0) -> 0 | BG17: =IF($C17=BG$11,1,0) -> 0 | BI17: =IF($C17=BI$11,1,0) -> 0 | BK17: =IF($C17=BK$11,1,0) -> 0 | BM17: =IF($C17=BM$11,1,0) -> 0 | BO17: =IF($C17=BO$11,1,0) -> 0 | BQ17: =IF($C17=BQ$11,1,0) -> 0 | BS17: =IF($C17=BS$11,1,0) -> 0 | BU17: =IF($C17=BU$11,1,0) -> 0 | BW17: =IF($C17=BW$11,1,0) -> 0 | BY17: =IF($C17=BY$11,1,0) -> 0 | CA17: =IF($C17=CA$11,1,0) -> 0 | CC17: =IF($C17=CC$11,1,0) -> 0 | CE17: =IF($C17=CE$11,1,0) -> 0 | CG17: =IF($C17=CG$11,1,0) -> 0 | CI17: =IF($C17=CI$11,1,0) -> 0 | CK17: =IF($C17=CK$11,1,0) -> 0 | CM17: =IF($C17=CM$11,1,0) -> 0 | CO17: =IF($C17=CO$11,1,0) -> 0 | CQ17: =IF($C17=CQ$11,1,0) -> 0 | CS17: =IF($C17=CS$11,1,0) -> 0 | CU17: =IF($C17=CU$11,1,0) -> 0 | CW17: =IF($C17=CW$11,1,0) -> 0 | CY17: =IF($C17=CY$11,1,0) -> 0 | DA17: =IF($C17=DA$11,1,0) -> 0 | DC17: =IF($C17=DC$11,1,0) -> 0 | DE17: =IF($C17=DE$11,1,0) -> 0 | DG17: =IF($C17=DG$11,1,0) -> 0 | DI17: =IF($C17=DI$11,1,0) -> 0 | DK17: =IF($C17=DK$11,1,0) -> 0 | DM17: =IF($C17=DM$11,1,0) -> 0 | DO17: =IF($C17=DO$11,1,0) -> 0 | DQ17: =IF($C17=DQ$11,1,0) -> 0 | DS17: =IF($C17=DS$11,1,0) -> 0 | DU17: =IF($C17=DU$11,1,0) -> 0 | DW17: =IF($C17=DW$11,1,0) -> 0 | DY17: =IF($C17=DY$11,1,0) -> 0 | EA17: =IF($C17=EA$11,1,0) -> 0 | EC17: =IF($C17=EC$11,1,0) -> 0 | EE17: =IF($C17=EE$11,1,0) -> 0
C19: PAGAMENTO DA DEPRECIAÇÃO
C20: ITEM | D20: DESCRIÇÃO | E20: QUANT ANUAL | F20: CONTA SIAFI | G20: VALOR DE AQ. | H20: % RESIDUAL | I20: VIDA ÚTIL | J20: DEP. MENSAL | K20: CUSTO TOTAL | L20: BDI (%) | M20: PREÇO TOTAL | N20: FONTE | O20: REFERÊNCIA
J22: =G22*(1-H22)/(I22*12) ->  | K22: =J22*E22 ->  | L22: =BDI!E26 -> 0.2663 | M22: =ROUND(K22*(1+L22),2) ->  | N22: COTAÇÃO
C25: PAGAMENTO DA MANUTENÇÃO
C26: ITEM | D26: DESCRIÇÃO | H26: K (calculado) | I26: MENSAL DEPR. | J26: % MAN X DEP | K26: MENSAL MAN. | L26: BDI (%) | M26: PREÇO TOTAL
H28: =H35 -> 0.2395008 | I28: =M22 ->  | J28: =H28 -> 0.2395008 | K28: =I28*H28 ->  | L28: =L22 -> 0.2663 | M28: =ROUND(K28*(1+L28),2) -> 
E30: K1 | F30: K2 | G30: K3 | H30: K4
E31: 1 | F31: 1 | G31: 0.8 | H31: 0.8
E32: K5 | F32: K6 | G32: K7 | H32: K8
E33: 1 | F33: 0.6 | G33: 0.5 | H33: 1.1
E34: K9 | F34: K10 | G34: K11 | H34: RESULTADO
D35: * a descrição de cada coeficiente segue abaixo | E35: 0.9 | F35: 0.9 | G35: 1.4 | H35: =E31*F31*G31*H31*E33*F33*G33*H33*E35*F35*G35 -> 0.2395008
C38: MATERIAL DE CONSUMO ASSOCIADO
C39: ITEM | D39: DESCRIÇÃO | H39: QUANTID/ANO | I39: UNIDADE | J39: VALOR DE AQ. | K39: MENSAL MAT | L39: BDI (%) | M39: PREÇO TOTAL
K41: =J41*H41/12 -> 0 | L41: =L28 -> 0.2663 | M41: =ROUND(K41*(1+L41),2) -> 0
C44: MATERIAL DE CONSUMO ASSOCIADO
C45: ITEM | D45: DESCRIÇÃO | M45: PREÇO TOTAL
C47: 1 | D47: Componente DEPRECIAÇÃO - POR POSTO | M47: =M22 -> 
C48: 2 | D48: Componente MANUTENÇÃO - POR POSTO | M48: =M28 -> 
C49: 3 | D49: Componente MATERIAL DE CONSUMO ASSOCIADO - POR POSTO | M49: =M41 -> 0
L51: SOMATÓRIO TOTAL MENSAL - POR POSTO | M51: =SUM(M46:M50) ->  | R51: =IF(SUM(Q$15:Q$17)>0,$M51,0) -> 0 | T51: =IF(SUM(S$15:S$17)>0,$M51,0) -> 0 | V51: =IF(SUM(U$15:U$17)>0,$M51,0) -> 0 | X51: =IF(SUM(W$15:W$17)>0,$M51,0) -> 0 | Z51: =IF(SUM(Y$15:Y$17)>0,$M51,0) -> 0 | AB51: =IF(SUM(AA$15:AA$17)>0,$M51,0) -> 0 | AD51: =IF(SUM(AC$15:AC$17)>0,$M51,0) -> 0 | AF51: =IF(SUM(AE$15:AE$17)>0,$M51,0) -> 0 | AH51: =IF(SUM(AG$15:AG$17)>0,$M51,0) -> 0 | AJ51: =IF(SUM(AI$15:AI$17)>0,$M51,0) -> 0 | AL51: =IF(SUM(AK$15:AK$17)>0,$M51,0) -> 0 | AN51: =IF(SUM(AM$15:AM$17)>0,$M51,0) -> 0 | AP51: =IF(SUM(AO$15:AO$17)>0,$M51,0) -> 0 | AR51: =IF(SUM(AQ$15:AQ$17)>0,$M51,0) -> 0 | AT51: =IF(SUM(AS$15:AS$17)>0,$M51,0) -> 0 | AV51: =IF(SUM(AU$15:AU$17)>0,$M51,0) -> 0 | AX51: =IF(SUM(AW$15:AW$17)>0,$M51,0) -> 0 | AZ51: =IF(SUM(AY$15:AY$17)>0,$M51,0) -> 0 | BB51: =IF(SUM(BA$15:BA$17)>0,$M51,0) -> 0 | BD51: =IF(SUM(BC$15:BC$17)>0,$M51,0) -> 0 | BF51: =IF(SUM(BE$15:BE$17)>0,$M51,0) -> 0 | BH51: =IF(SUM(BG$15:BG$17)>0,$M51,0) -> 0 | BJ51: =IF(SUM(BI$15:BI$17)>0,$M51,0) -> 0 | BL51: =IF(SUM(BK$15:BK$17)>0,$M51,0) -> 0 | BN51: =IF(SUM(BM$15:BM$17)>0,$M51,0) -> 0 | BP51: =IF(SUM(BO$15:BO$17)>0,$M51,0) -> 0 | BR51: =IF(SUM(BQ$15:BQ$17)>0,$M51,0) -> 0 | BT51: =IF(SUM(BS$15:BS$17)>0,$M51,0) -> 0 | BV51: =IF(SUM(BU$15:BU$17)>0,$M51,0) -> 0 | BX51: =IF(SUM(BW$15:BW$17)>0,$M51,0) -> 0 | BZ51: =IF(SUM(BY$15:BY$17)>0,$M51,0) -> 0 | CB51: =IF(SUM(CA$15:CA$17)>0,$M51,0) -> 0 | CD51: =IF(SUM(CC$15:CC$17)>0,$M51,0) -> 0 | CF51: =IF(SUM(CE$15:CE$17)>0,$M51,0) -> 0 | CH51: =IF(SUM(CG$15:CG$17)>0,$M51,0) -> 0 | CJ51: =IF(SUM(CI$15:CI$17)>0,$M51,0) -> 0 | CL51: =IF(SUM(CK$15:CK$17)>0,$M51,0) -> 0 | CN51: =IF(SUM(CM$15:CM$17)>0,$M51,0) -> 0 | CP51: =IF(SUM(CO$15:CO$17)>0,$M51,0) -> 0 | CR51: =IF(SUM(CQ$15:CQ$17)>0,$M51,0) -> 0 | CT51: =IF(SUM(CS$15:CS$17)>0,$M51,0) -> 0 | CV51: =IF(SUM(CU$15:CU$17)>0,$M51,0) -> 0 | CX51: =IF(SUM(CW$15:CW$17)>0,$M51,0) -> 0 | CZ51: =IF(SUM(CY$15:CY$17)>0,$M51,0) -> 0 | DB51: =IF(SUM(DA$15:DA$17)>0,$M51,0) -> 0 | DD51: =IF(SUM(DC$15:DC$17)>0,$M51,0) -> 0 | DF51: =IF(SUM(DE$15:DE$17)>0,$M51,0) -> 0 | DH51: =IF(SUM(DG$15:DG$17)>0,$M51,0) -> 0 | DJ51: =IF(SUM(DI$15:DI$17)>0,$M51,0) -> 0 | DL51: =IF(SUM(DK$15:DK$17)>0,$M51,0) -> 0 | DN51: =IF(SUM(DM$15:DM$17)>0,$M51,0) -> 0 | DP51: =IF(SUM(DO$15:DO$17)>0,$M51,0) -> 0 | DR51: =IF(SUM(DQ$15:DQ$17)>0,$M51,0) -> 0 | DT51: =IF(SUM(DS$15:DS$17)>0,$M51,0) -> 0 | DV51: =IF(SUM(DU$15:DU$17)>0,$M51,0) -> 0 | DX51: =IF(SUM(DW$15:DW$17)>0,$M51,0) -> 0 | DZ51: =IF(SUM(DY$15:DY$17)>0,$M51,0) -> 0 | EB51: =IF(SUM(EA$15:EA$17)>0,$M51,0) -> 0 | ED51: =IF(SUM(EC$15:EC$17)>0,$M51,0) -> 0 | EF51: =IF(SUM(EE$15:EE$17)>0,$M51,0) -> 0
L52: SOMATÓRIO TOTAL ANUAL - POR POSTO | M52: =M51*12 -> 
C55: MATERIAL DE CONSUMO ASSOCIADO
C56: MEMÓRIA DE CÁLCULO DO COEFICIENTE DE CORRELAÇÃO MANUTENÇÃO X DEPRECIAÇÃO (K)
C58: JUSTIFICATIVAS | E58: TIPO | F58: K1 | H58: Condições de Trab | I58: K4 | K58: Tempo Vida (anos) | L58: K6 | N58: Temperatura | O58: K8
E59: Guindaste | F59: 0.5 | H59: Em espera | I59: 0.4 | K59: 1 | L59: 0.6 | N59: Muito quente (> 40º C) | O59: 1.3
C60: K1 | D60: Arbitrado 1 | E60: Caminhão-comum | F60: 0.8 | H60: Leves | I60: 0.8 | K60: 2 | L60: 0.7 | N60: Quente (30º a 40º C) | O60: 1.1
C61: K2 | D61: Considerado o operador médio | E61: Fora-de-estrada | F61: 1 | H61: Médias | I61: 1 | K61: 3 | L61: 0.8 | N61: Médio (10º a 30º C) | O61: 1
C62: K3 | D62: Consideradas ferramentas de primeira qualidade | E62: Carregadeira | F62: 1 | H62: Pesadas | I62: 1.4 | K62: 4 | L62: 0.9 | N62: Frio (< 10º C) | O62: 1.2
C63: K4 | D63: Consições leves | E63: Escavadeira | F63: 1.4 | H63: Severas | I63: 2 | K63: 5 | L63: 1
C64: K5 | D64: Considerando manutenção normal | E64: Motoescrêiper | F64: 1.1 | K64: 6 | L64: 1 | N64: Ritmo de Trabalho | O64: K9
C65: K6 | D65: Equipamentos novos | E65: Trator de esteira | F65: 1.2 | H65: Manutenção | I65: K5 | K65: 7 | L65: 1 | N65: Folgado | O65: 0.9
C66: K7 | D66: 220h por mês, 252 dias por ano | H66: Excelente | I66: 0.6 | K66: 8 | L66: 1.2 | N66: Médio | O66: 1
C67: K8 | D67: Clima quente, acima de 30º C | E67: Qualid do Operador | F67: K2 | H67: Boa | I67: 0.8 | K67: 9 | L67: 1.3 | N67: Com pressa | O67: 1.5
C68: K9 | D68: Ritmo de trabalho usualmente folgado | E68: Excelente | F68: 0.8 | H68: Média | I68: 1 | K68: 10 | L68: 1.4
C69: K10 | D69: Considerado o operador médio | E69: Boa | F69: 0.9 | H69: Ruim | I69: 1.5 | K69: 11 | L69: 2 | N69: Conh do Serviço | O69: K10
C70: K11 | D70: Foi considerada a opção de aluguel a terceiros, ainda que a simulação seja dos custos do contratado, contudo a execução dos serviços é em local de terceiros | E70: Média | F70: 1 | H70: Inexistente | I70: 3 | K70: 15 | L70: 2 | N70: Grande | O70: 0.8
E71: Ruim | F71: 1.2 | N71: Médio | O71: 0.9
E72: Péssima | F72: 2 | H72: Horas de Uso | I72: K7 | J72: 6000 | K72: 1 | N72: Pouco | O72: 1
H73: 1000 | I73: 0.5 | J73: 8000 | K73: 1.3
E74: Qualidade do Equip | F74: K3 | H74: 2000 | I74: 0.5 | J74: 10000 | K74: 1.6 | N74: Tipo do Serviço | O74: K11
E75: De primeira | F75: 0.8 | H75: 3000 | I75: 0.6 | J75: 12000 | K75: 1.9 | N75: Mina ou Pedreira | O75: 0.8
E76: Média | F76: 1 | H76: 4000 | I76: 0.7 | J76: 15000 | K76: 2.3 | N76: Construção Geral | O76: 1
E77: Ruim | F77: 1.5 | H77: 5000 | I77: 0.9 | J77: 20000 | K77: 3 | N77: Aluguel a Terceiros | O77: 1.4
E79: Fonte:
E80: MATTOS, Aldo Dórea. Como preparar orçamentos de obras. São Paulo: Pini, 2006. 281 p., il

Sheet Não Rel - Mat (hidden)
C1: CÂMARA DOS DEPUTADOS
C2: DEPARTAMENTO TÉCNICO
C3: Coordenação de Planejamento e Gestão
C5: Data: | D5: ='Dados Gerais'!#REF! -> 
C6: Processo: | D6: ='Dados Gerais'!#REF! -> 
C7: Objeto: | D7: ='Dados Gerais'!#REF! -> 
B11: MATERIAIS NÃO RELACIONADOS DIRETAMENTE A UM POSTO DE TRABALHO - AQUISIÇÃO SOB DEMANDA
C14: ITEM | D14: CÓDIGO | E14: DESCRIÇÃO | F14: QUANT ANUAL | G14: UNIDADE | H14: CUSTO UNITÁRIO | I14: CUSTO TOTAL | J14: BDI (%) | K14: PREÇO TOTAL | L14: FONTE | M14: REFERÊNCIA
H16: 0 | I16: =H16*F16 -> 0 | J16: 0 | K16: =ROUND(I16*(1+J16),2) -> 0 | L16: Cotação
H17: 0 | I17: =H17*F17 -> 0 | J17: =J16 -> 0 | K17: =ROUND(I17*(1+J17),2) -> 0 | L17: Cotação
H18: 0 | I18: 0 | J18: =J17 -> 0 | K18: 0 | L18: Cotação
H19: 0 | I19: 0 | J19: 0 | K19: 0 | L19: Cotação
H20: 0 | I20: 0 | J20: 0 | K20: 0 | L20: Cotação
H21: 0 | I21: 0 | J21: 0 | K21: 0 | L21: Cotação
H22: 0 | I22: 0 | J22: 0 | K22: 0 | L22: Cotação
H23: 0 | I23: 0 | J23: 0 | K23: 0 | L23: Cotação
H24: 0 | I24: 0 | J24: 0 | K24: 0 | L24: Cotação
H25: 0 | I25: 0 | J25: 0 | K25: 0 | L25: Cotação
H26: 0 | I26: 0 | J26: 0 | K26: 0 | L26: Cotação
H27: 0 | I27: 0 | J27: 0 | K27: 0 | L27: Cotação
H28: 0 | I28: 0 | J28: 0 | K28: 0 | L28: Cotação
H29: 0 | I29: 0 | J29: 0 | K29: 0 | L29: Cotação
H30: 0 | I30: 0 | J30: 0 | K30: 0 | L30: Cotação
H31: 0 | I31: 0 | J31: 0 | K31: 0 | L31: Cotação
H32: 0 | I32: 0 | J32: 0 | K32: 0 | L32: Cotação
H33: 0 | I33: 0 | J33: 0 | K33: 0 | L33: Cotação
H34: 0 | I34: 0 | J34: 0 | K34: 0 | L34: Cotação
H35: 0 | I35: 0 | J35: 0 | K35: 0 | L35: Cotação
H36: 0 | I36: 0 | J36: 0 | K36: 0 | L36: Cotação
H37: 0 | I37: 0 | J37: 0 | K37: 0 | L37: Cotação
H38: 0 | I38: 0 | J38: 0 | K38: 0 | L38: Cotação
H39: 0 | I39: 0 | J39: 0 | K39: 0 | L39: Cotação
H40: 0 | I40: 0 | J40: 0 | K40: 0 | L40: Cotação
H41: 0 | I41: 0 | J41: 0 | K41: 0 | L41: Cotação
H42: 0 | I42: 0 | J42: 0 | K42: 0 | L42: Cotação
H43: 0 | I43: 0 | J43: 0 | K43: 0 | L43: Cotação
H44: 0 | I44: 0 | J44: 0 | K44: 0 | L44: Cotação
H45: 0 | I45: 0 | J45: 0 | K45: 0 | L45: Cotação
H46: 0 | I46: 0 | J46: 0 | K46: 0 | L46: Cotação
H47: 0 | I47: 0 | J47: 0 | K47: 0 | L47: Cotação
H48: 0 | I48: 0 | J48: 0 | K48: 0 | L48: Cotação
H49: 0 | I49: =H49*F49 -> 0 | J49: 0 | K49: =ROUND(I49*(1+J49),2) -> 0 | L49: Cotação
H50: 0 | I50: =H50*F50 -> 0 | J50: 0 | K50: =ROUND(I50*(1+J50),2) -> 0 | L50: Cotação
H51: 0 | I51: 0 | J51: 0 | K51: 0 | L51: Cotação
H52: 0 | I52: 0 | J52: 0 | K52: 0 | L52: Cotação
H53: 0 | I53: 0 | J53: 0 | K53: 0 | L53: Cotação
H54: 0 | I54: 0 | J54: 0 | K54: 0 | L54: Cotação
H55: 0 | I55: 0 | J55: 0 | K55: 0 | L55: Cotação
H56: 0 | I56: 0 | J56: 0 | K56: 0 | L56: Cotação
H57: 0 | I57: 0 | J57: 0 | K57: 0 | L57: Cotação
H58: 0 | I58: 0 | J58: 0 | K58: 0 | L58: Cotação
H59: 0 | I59: 0 | J59: 0 | K59: 0 | L59: Cotação
H60: 0 | I60: 0 | J60: 0 | K60: 0 | L60: Cotação
H61: 0 | I61: 0 | J61: 0 | K61: 0 | L61: Cotação
H62: 0 | I62: 0 | J62: 0 | K62: 0 | L62: Cotação
H63: 0 | I63: 0 | J63: 0 | K63: 0 | L63: Cotação
H64: 0 | I64: 0 | J64: 0 | K64: 0 | L64: Cotação
H65: 0 | I65: 0 | J65: 0 | K65: 0 | L65: Cotação
H66: 0 | I66: 0 | J66: 0 | K66: 0 | L66: Cotação
H67: 0 | I67: 0 | J67: 0 | K67: 0 | L67: Cotação
H68: 0 | I68: 0 | J68: 0 | K68: 0 | L68: Cotação
H69: 0 | I69: 0 | J69: 0 | K69: 0 | L69: Cotação
H70: 0 | I70: 0 | J70: 0 | K70: 0 | L70: Cotação
H71: 0 | I71: 0 | J71: 0 | K71: 0 | L71: Cotação
H72: 0 | I72: 0 | J72: 0 | K72: 0 | L72: Cotação
H73: 0 | I73: 0 | J73: 0 | K73: 0 | L73: Cotação
H74: 0 | I74: 0 | J74: 0 | K74: 0 | L74: Cotação
H75: 0 | I75: 0 | J75: 0 | K75: 0 | L75: Cotação
H76: 0 | I76: 0 | J76: 0 | K76: 0 | L76: Cotação
H77: 0 | I77: 0 | J77: 0 | K77: 0 | L77: Cotação
H78: 0 | I78: 0 | J78: 0 | K78: 0 | L78: Cotação
H79: 0 | I79: 0 | J79: 0 | K79: 0 | L79: Cotação
H80: 0 | I80: 0 | J80: 0 | K80: 0 | L80: Cotação
H81: 0 | I81: 0 | J81: 0 | K81: 0 | L81: Cotação
H82: 0 | I82: =H82*F82 -> 0 | J82: =J81 -> 0 | K82: =ROUND(I82*(1+J82),2) -> 0 | L82: Cotação
H83: 0 | I83: =H83*F83 -> 0 | J83: 0 | K83: =ROUND(I83*(1+J83),2) -> 0 | L83: Cotação
H84: 0 | I84: 0 | J84: 0 | K84: 0 | L84: Cotação
H85: 0 | I85: 0 | J85: 0 | K85: 0 | L85: Cotação
H86: 0 | I86: 0 | J86: 0 | K86: 0 | L86: Cotação
H87: 0 | I87: 0 | J87: 0 | K87: 0 | L87: Cotação
H88: 0 | I88: 0 | J88: 0 | K88: 0 | L88: Cotação
H89: 0 | I89: 0 | J89: 0 | K89: 0 | L89: Cotação
H90: 0 | I90: 0 | J90: 0 | K90: 0 | L90: Cotação
H91: 0 | I91: 0 | J91: 0 | K91: 0 | L91: Cotação
H92: 0 | I92: 0 | J92: 0 | K92: 0 | L92: Cotação
H93: 0 | I93: 0 | J93: 0 | K93: 0 | L93: Cotação
H94: 0 | I94: 0 | J94: 0 | K94: 0 | L94: Cotação
H95: 0 | I95: 0 | J95: 0 | K95: 0 | L95: Cotação
H96: 0 | I96: 0 | J96: 0 | K96: 0 | L96: Cotação
H97: 0 | I97: 0 | J97: 0 | K97: 0 | L97: Cotação
H98: 0 | I98: 0 | J98: 0 | K98: 0 | L98: Cotação
H99: 0 | I99: 0 | J99: 0 | K99: 0 | L99: Cotação
H100: 0 | I100: 0 | J100: 0 | K100: 0 | L100: Cotação
H101: 0 | I101: 0 | J101: 0 | K101: 0 | L101: Cotação
H102: 0 | I102: 0 | J102: 0 | K102: 0 | L102: Cotação
H103: 0 | I103: 0 | J103: 0 | K103: 0 | L103: Cotação
H104: 0 | I104: 0 | J104: 0 | K104: 0 | L104: Cotação
H105: 0 | I105: 0 | J105: 0 | K105: 0 | L105: Cotação
H106: 0 | I106: 0 | J106: 0 | K106: 0 | L106: Cotação
H107: 0 | I107: 0 | J107: 0 | K107: 0 | L107: Cotação
H108: 0 | I108: 0 | J108: 0 | K108: 0 | L108: Cotação
H109: 0 | I109: 0 | J109: 0 | K109: 0 | L109: Cotação
H110: 0 | I110: 0 | J110: 0 | K110: 0 | L110: Cotação
H111: 0 | I111: 0 | J111: 0 | K111: 0 | L111: Cotação
H112: 0 | I112: 0 | J112: 0 | K112: 0 | L112: Cotação
H113: 0 | I113: 0 | J113: 0 | K113: 0 | L113: Cotação
H114: 0 | I114: =H114*F114 -> 0 | J114: 0 | K114: =ROUND(I114*(1+J114),2) -> 0 | L114: Cotação
H115: 0 | I115: 0 | J115: 0 | K115: 0 | L115: Cotação
J117: SOMATÓRIO TOTAL MENSAL | K117: =K118/12 -> 0
J118: SOMATÓRIO TOTAL ANUAL | K118: =SUM(K15:K116) -> 0

Sheet Não Rel - Equip (hidden)
C1: CÂMARA DOS DEPUTADOS
C2: DEPARTAMENTO TÉCNICO
C3: Coordenação de Planejamento e Gestão
C5: Data: | D5: ='Dados Gerais'!#REF! -> 
C6: Processo: | D6: ='Dados Gerais'!#REF! -> 
C7: Objeto: | D7: ='Dados Gerais'!#REF! -> 
B11: MATERIAIS NÃO RELACIONADOS DIRETAMENTE A UM POSTO DE TRABALHO - AQUISIÇÃO SOB DEMANDA
C14: ITEM | D14: CÓDIGO | E14: DESCRIÇÃO | F14: QUANT ANUAL | G14: UNIDADE | H14: CUSTO UNITÁRIO | I14: CUSTO TOTAL | J14: BDI (%) | K14: PREÇO TOTAL | L14: FONTE | M14: REFERÊNCIA
H16: 0 | I16: =H16*F16 -> 0 | J16: 0 | K16: =ROUND(I16*(1+J16),2) -> 0 | L16: Cotação
H17: 0 | I17: =H17*F17 -> 0 | J17: =J16 -> 0 | K17: =ROUND(I17*(1+J17),2) -> 0 | L17: Cotação
H18: 0 | I18: 0 | J18: =J17 -> 0 | K18: 0 | L18: Cotação
H19: 0 | I19: 0 | J19: 0 | K19: 0 | L19: Cotação
H20: 0 | I20: 0 | J20: 0 | K20: 0 | L20: Cotação
H21: 0 | I21: 0 | J21: 0 | K21: 0 | L21: Cotação
H22: 0 | I22: 0 | J22: 0 | K22: 0 | L22: Cotação
H23: 0 | I23: 0 | J23: 0 | K23: 0 | L23: Cotação
H24: 0 | I24: 0 | J24: 0 | K24: 0 | L24: Cotação
H25: 0 | I25: 0 | J25: 0 | K25: 0 | L25: Cotação
H26: 0 | I26: 0 | J26: 0 | K26: 0 | L26: Cotação
H27: 0 | I27: 0 | J27: 0 | K27: 0 | L27: Cotação
H28: 0 | I28: 0 | J28: 0 | K28: 0 | L28: Cotação
H29: 0 | I29: 0 | J29: 0 | K29: 0 | L29: Cotação
H30: 0 | I30: 0 | J30: 0 | K30: 0 | L30: Cotação
H31: 0 | I31: 0 | J31: 0 | K31: 0 | L31: Cotação
H32: 0 | I32: 0 | J32: 0 | K32: 0 | L32: Cotação
H33: 0 | I33: 0 | J33: 0 | K33: 0 | L33: Cotação
H34: 0 | I34: 0 | J34: 0 | K34: 0 | L34: Cotação
H35: 0 | I35: 0 | J35: 0 | K35: 0 | L35: Cotação
H36: 0 | I36: 0 | J36: 0 | K36: 0 | L36: Cotação
H37: 0 | I37: 0 | J37: 0 | K37: 0 | L37: Cotação
H38: 0 | I38: 0 | J38: 0 | K38: 0 | L38: Cotação
H39: 0 | I39: 0 | J39: 0 | K39: 0 | L39: Cotação
H40: 0 | I40: 0 | J40: 0 | K40: 0 | L40: Cotação
H41: 0 | I41: 0 | J41: 0 | K41: 0 | L41: Cotação
H42: 0 | I42: 0 | J42: 0 | K42: 0 | L42: Cotação
H43: 0 | I43: 0 | J43: 0 | K43: 0 | L43: Cotação
H44: 0 | I44: 0 | J44: 0 | K44: 0 | L44: Cotação
H45: 0 | I45: 0 | J45: 0 | K45: 0 | L45: Cotação
H46: 0 | I46: 0 | J46: 0 | K46: 0 | L46: Cotação
H47: 0 | I47: 0 | J47: 0 | K47: 0 | L47: Cotação
J49: SOMATÓRIO TOTAL MENSAL | K49: =K50/12 -> 0
J50: SOMATÓRIO TOTAL ANUAL | K50: =SUM(K15:K48) -> 0

Sheet Não Rel - Depr (hidden)
C1: CÂMARA DOS DEPUTADOS
C2: DEPARTAMENTO TÉCNICO
C3: Coordenação de Planejamento e Gestão
C5: Data: | D5: ='Dados Gerais'!#REF! -> 
C6: Processo: | D6: ='Dados Gerais'!#REF! -> 
C7: Objeto: | D7: ='Dados Gerais'!#REF! -> 
B11: MATERIAIS NÃO RELACIONADOS DIRETAMENTE A UM POSTO DE TRABALHO - PAGAMENTO DA DEPRECIAÇÃO / MANUTENÇÃO
C14: PAGAMENTO DA DEPRECIAÇÃO
C15: ITEM | D15: DESCRIÇÃO | E15: QUANT ANUAL | F15: CONTA SIAFI | G15: VALOR DE AQ. | H15: % RESIDUAL | I15: VIDA ÚTIL | J15: DEP. MENSAL | K15: CUSTO TOTAL | L15: BDI (%) | M15: PREÇO TOTAL | N15: FONTE | O15: REFERÊNCIA
C17: 1 | H17: 0.1 | I17: 10 | J17: =G17*(1-H17)/(I17*12) -> 0 | K17: =J17*E17 -> 0 | L17: =BDI!$E$26 -> 0.2663 | M17: =ROUND(K17*(1+L17),2) -> 0 | N17: COTAÇÃO
C18: 2 | H18: 0.1 | I18: 10 | J18: 0 | K18: 0 | L18: =BDI!$E$26 -> 0.2663 | M18: 0 | N18: COTAÇÃO
C19: 3 | H19: 0.1 | I19: 10 | J19: 0 | K19: 0 | L19: =BDI!$E$26 -> 0.2663 | M19: 0 | N19: COTAÇÃO
C20: 4 | H20: 0.1 | I20: 10 | J20: 0 | K20: 0 | L20: =BDI!$E$26 -> 0.2663 | M20: 0 | N20: COTAÇÃO
C21: 5 | H21: 0.1 | I21: 10 | J21: 0 | K21: 0 | L21: =BDI!$E$26 -> 0.2663 | M21: 0 | N21: COTAÇÃO
C22: 6 | H22: 0.1 | I22: 10 | J22: 0 | K22: 0 | L22: =BDI!$E$26 -> 0.2663 | M22: 0 | N22: COTAÇÃO
C23: 7 | H23: 0.1 | I23: 10 | J23: 0 | K23: 0 | L23: =BDI!$E$26 -> 0.2663 | M23: 0 | N23: COTAÇÃO
C24: 8 | H24: 0.1 | I24: 10 | J24: 0 | K24: 0 | L24: =BDI!$E$26 -> 0.2663 | M24: 0 | N24: COTAÇÃO
C25: 9 | H25: 0.1 | I25: 10 | J25: 0 | K25: 0 | L25: =BDI!$E$26 -> 0.2663 | M25: 0 | N25: COTAÇÃO
C26: 10 | H26: 0.1 | I26: 10 | J26: 0 | K26: 0 | L26: =BDI!$E$26 -> 0.2663 | M26: 0 | N26: COTAÇÃO
C27: 11 | H27: 0.1 | I27: 10 | J27: 0 | K27: 0 | L27: =BDI!$E$26 -> 0.2663 | M27: 0 | N27: COTAÇÃO
C28: 12 | H28: 0.1 | I28: 10 | J28: 0 | K28: 0 | L28: =BDI!$E$26 -> 0.2663 | M28: 0 | N28: COTAÇÃO
C29: 13 | H29: 0.1 | I29: 10 | J29: 0 | K29: 0 | L29: =BDI!$E$26 -> 0.2663 | M29: 0 | N29: COTAÇÃO
C30: 14 | H30: 0.1 | I30: 10 | J30: 0 | K30: 0 | L30: =BDI!$E$26 -> 0.2663 | M30: 0 | N30: COTAÇÃO
C31: 15 | H31: 0.1 | I31: 10 | J31: 0 | K31: 0 | L31: =BDI!$E$26 -> 0.2663 | M31: 0 | N31: COTAÇÃO
C32: 16 | H32: 0.1 | I32: 10 | J32: 0 | K32: 0 | L32: =BDI!$E$26 -> 0.2663 | M32: 0 | N32: COTAÇÃO
C33: 17 | H33: 0.1 | I33: 10 | J33: =G33*(1-H33)/(I33*12) -> 0 | K33: =J33*E33 -> 0 | L33: =BDI!$E$26 -> 0.2663 | M33: =ROUND(K33*(1+L33),2) -> 0 | N33: COTAÇÃO
C36: PAGAMENTO DA MANUTENÇÃO
C37: ITEM | D37: DESCRIÇÃO | H37: K (calculado) | I37: MENSAL DEPR. | J37: % MAN X DEP | K37: MENSAL MAN. | L37: BDI (%) | M37: PREÇO TOTAL
H39: =H46 -> 0.5937624 | I39: =SUM(M17:M33) -> 0 | J39: =H39 -> 0.5937624 | K39: =I39*H39 -> 0 | L39: =L33 -> 0.2663 | M39: =ROUND(K39*(1+L39),2) -> 0
E41: K1 | F41: K2 | G41: K3 | H41: K4
E42: 0.85 | F42: 1 | G42: 0.8 | H42: 1.4
E43: K5 | F43: K6 | G43: K7 | H43: K8
E44: 1 | F44: 0.6 | G44: 0.5 | H44: 1.1
E45: K9 | F45: K10 | G45: K11 | H45: RESULTADO
D46: * a descrição de cada coeficiente segue abaixo | E46: 1.5 | F46: 0.9 | G46: 1.4 | H46: =E42*F42*G42*H42*E44*F44*G44*H44*E46*F46*G46 -> 0.5937624
C49: MATERIAL DE CONSUMO ASSOCIADO
C50: ITEM | D50: DESCRIÇÃO | H50: QUANTID/ANO | I50: UNIDADE | J50: VALOR DE AQ. | K50: MENSAL MAT | L50: BDI (%) | M50: PREÇO TOTAL
K52: =J52*H52/12 -> 0 | L52: =BDI!E26 -> 0.2663 | M52: =ROUND(K52*(1+L52),2) -> 0
C55: MATERIAL DE CONSUMO ASSOCIADO
C56: ITEM | D56: DESCRIÇÃO | M56: PREÇO TOTAL
C58: 1 | D58: Componente DEPRECIAÇÃO | M58: =I39 -> 0
C59: 2 | D59: Componente MANUTENÇÃO | M59: =M39 -> 0
C60: 3 | D60: Componente MATERIAL DE CONSUMO ASSOCIADO | M60: =M52 -> 0
L62: SOMATÓRIO TOTAL MENSAL | M62: =SUM(M57:M61) -> 0
L63: SOMATÓRIO TOTAL ANUAL | M63: =M62*12 -> 0
C66: MATERIAL DE CONSUMO ASSOCIADO
C67: MEMÓRIA DE CÁLCULO DO COEFICIENTE DE CORRELAÇÃO MANUTENÇÃO X DEPRECIAÇÃO (K)
C69: JUSTIFICATIVAS | E69: TIPO | F69: K1 | H69: Condições de Trab | I69: K4 | K69: Tempo Vida (anos) | L69: K6 | N69: Temperatura | O69: K8
E70: Guindaste | F70: 0.5 | H70: Em espera | I70: 0.4 | K70: 1 | L70: 0.6 | N70: Muito quente (> 40º C) | O70: 1.3
C71: K1 | D71: Considerado o valor médio de 0,85 | E71: Caminhão-comum | F71: 0.8 | H71: Leves | I71: 0.8 | K71: 2 | L71: 0.7 | N71: Quente (30º a 40º C) | O71: 1.1
C72: K2 | D72: Considerado o operador médio | E72: Fora-de-estrada | F72: 1 | H72: Médias | I72: 1 | K72: 3 | L72: 0.8 | N72: Médio (10º a 30º C) | O72: 1
C73: K3 | D73: Consideradas ferramentas de primeira qualidade | E73: Carregadeira | F73: 1 | H73: Pesadas | I73: 1.4 | K73: 4 | L73: 0.9 | N73: Frio (< 10º C) | O73: 1.2
C74: K4 | D74: Há todo o tipo de trabalho, foi considerado o valor médio | E74: Escavadeira | F74: 1.4 | H74: Severas | I74: 2 | K74: 5 | L74: 1
C75: K5 | D75: Considerando manutenção normal | E75: Motoescrêiper | F75: 1.1 | K75: 6 | L75: 1 | N75: Ritmo de Trabalho | O75: K9
C76: K6 | D76: Equipamentos novos | E76: Trator de esteira | F76: 1.2 | H76: Manutenção | I76: K5 | K76: 7 | L76: 1 | N76: Folgado | O76: 0.9
C77: K7 | D77: 220h por mês, 252 dias por ano | H77: Excelente | I77: 0.6 | K77: 8 | L77: 1.2 | N77: Médio | O77: 1
C78: K8 | D78: Clima quente, acima de 30º C | E78: Qualid do Operador | F78: K2 | H78: Boa | I78: 0.8 | K78: 9 | L78: 1.3 | N78: Com pressa | O78: 1.5
C79: K9 | D79: Ritmo de trabalho usualmente com pressa | E79: Excelente | F79: 0.8 | H79: Média | I79: 1 | K79: 10 | L79: 1.4
C80: K10 | D80: Considerado o operador médio | E80: Boa | F80: 0.9 | H80: Ruim | I80: 1.5 | K80: 11 | L80: 2 | N80: Conh do Serviço | O80: K10
C81: K11 | D81: Foi considerada a opção de aluguel a terceiros, ainda que a simulação seja dos custos do contratado, contudo a execução dos serviços é em local de terceiros | E81: Média | F81: 1 | H81: Inexistente | I81: 3 | K81: 15 | L81: 2 | N81: Grande | O81: 0.8
E82: Ruim | F82: 1.2 | N82: Médio | O82: 0.9
E83: Péssima | F83: 2 | H83: Horas de Uso | I83: K7 | J83: 6000 | K83: 1 | N83: Pouco | O83: 1
H84: 1000 | I84: 0.5 | J84: 8000 | K84: 1.3
E85: Qualidade do Equip | F85: K3 | H85: 2000 | I85: 0.5 | J85: 10000 | K85: 1.6 | N85: Tipo do Serviço | O85: K11
E86: De primeira | F86: 0.8 | H86: 3000 | I86: 0.6 | J86: 12000 | K86: 1.9 | N86: Mina ou Pedreira | O86: 0.8
E87: Média | F87: 1 | H87: 4000 | I87: 0.7 | J87: 15000 | K87: 2.3 | N87: Construção Geral | O87: 1
E88: Ruim | F88: 1.5 | H88: 5000 | I88: 0.9 | J88: 20000 | K88: 3 | N88: Aluguel a Terceiros | O88: 1.4
E90: Fonte:
E91: MATTOS, Aldo Dórea. Como preparar orçamentos de obras. São Paulo: Pini, 2006. 281 p., il
